Directorate,Department,Expenditure Type,Ref.Doc.1,Vendor Name,Expenditure Amount (exc VAT),Payment Date
Balance Sheet,Balance Sheet,Technology Benefits,0080026216,STORMFRONT RETAIL LTD,"1,706.66",13/06/2019
COMMERCIAL,HOUSING NEEDS RESOURCES,Professional Services,0060133025,TBG OPEN DOOR LIMITED,"1,710,251.81",26/06/2019
COMMERCIAL,HOUSING NEEDS RESOURCES,Professional Services,0060133027,TBG OPEN DOOR LIMITED,"4,030,493.43",26/06/2019
COMMERCIAL,HOUSING REVENUE ACCOUNT,Other Agencies - Third Party P,0060133061,THE BARNETGROUP LIMITED,"1,495,561.66",28/06/2019
COMMERCIAL,HOUSING REVENUE ACCOUNT,Other Agencies - Third Party P,0060133054,THE BARNETGROUP LIMITED,"544,315.63",28/06/2019
Commercial,HRA,Consultants Fees,0060105667,P P C R ASSOCIATES LTD,432.68,17/06/2019
Commercial,HRA,Consultants Fees,0060132200,P P C R ASSOCIATES LTD,105.00,13/06/2019
Commercial,HRA,Consultants Fees,0060132201,P P C R ASSOCIATES LTD,40.00,13/06/2019
Commercial,HRA,Consultants Fees,0060132222,P P C R ASSOCIATES LTD,40.00,13/06/2019
Commercial,HRA,Consultants Fees,0060132234,P P C R ASSOCIATES LTD,105.00,13/06/2019
Commercial,HRA,Consultants Fees,0060132243,P P C R ASSOCIATES LTD,630.36,13/06/2019
Commercial,HRA,Consultants Fees,0060132248,P P C R ASSOCIATES LTD,368.35,13/06/2019
Commercial,HRA,Consultants Fees,0060132913,TROWERS & HAMLINS,590.00,24/06/2019
Commercial,HRA,Consultants Fees,0060131473,PRIORITY ESTATES PROJECT LTD,"2,584.45",19/06/2019
Commercial,HRA,Other Services,0060131438,UK POWER NETWORKS,"9,108.85",03/06/2019
Commercial,HRA,Other Services,0060131415,AFFINITY WATER LIMITED,"17,255.07",26/06/2019
Commercial,HRA,Other Services,0060131429,AFFINITY WATER LIMITED,240.45,26/06/2019
Commercial,HRA,Other Services,0060131441,AFFINITY WATER LIMITED,518.48,26/06/2019
Commercial,HRA,Building Repairs & Maintenance,0060131650,AFFINITY WATER LIMITED,12.82,06/06/2019
Commercial,HRA,Agency/Interim Non Hays,0060128401,THE BARNETGROUP LIMITED,"64,618.89",03/06/2019
Commercial,HRA,Agency/Interim Non Hays,0060128410,THE BARNETGROUP LIMITED,"22,973.56",03/06/2019
Commercial,HRA,Other Services,0060133077,THE BARNETGROUP LIMITED,"2,020,145.93",28/06/2019
Commercial,HRA,Private Contractors - Third Pa,0080026928,REDACTED - PERSONAL DATA,"3,500.00",19/06/2019
Commercial,Regional Enterprise,Refunds,0080025957,CARPENTERS ROSE SOLICITORS,145.00,26/06/2019
Commercial,Regional Enterprise,Refunds,0080025916,REDACTED - PERSONAL DATA,346.50,24/06/2019
Commercial,Regional Enterprise,Other Services,0060131618,CASTLE WATER LTD,124.04,05/06/2019
Commercial,Regional Enterprise,Other Services,0060131640,CASTLE WATER LTD,5.83,05/06/2019
Commercial,Regional Enterprise,Other Services,0060131649,CASTLE WATER LTD,7.30,05/06/2019
Commercial,Regional Enterprise,Other Services,0060130989,KENT COUNTY COUNCIL (KCS),55.89,05/06/2019
Commercial,Regional Enterprise,Other Services,0060131009,KENT COUNTY COUNCIL (KCS),51.79,05/06/2019
Commercial,Regional Enterprise,Advertising,0060128949,TMP (UK) LTD,188.00,13/06/2019
Commercial,Regional Enterprise,Advertising,0060129292,TMP (UK) LTD,108.00,13/06/2019
Commercial,Regional Enterprise,Advertising,0060129566,TMP (UK) LTD,170.00,13/06/2019
Commercial,Regional Enterprise,Advertising,0060129611,TMP (UK) LTD,179.00,13/06/2019
Commercial,Regional Enterprise,Advertising,0060129673,TMP (UK) LTD,188.00,13/06/2019
Commercial,Regional Enterprise,Advertising,0060130228,TMP (UK) LTD,99.00,13/06/2019
Commercial,Regional Enterprise,Advertising,0060130246,TMP (UK) LTD,108.00,13/06/2019
Commercial,Regional Enterprise,Advertising,0060130310,TMP (UK) LTD,90.00,13/06/2019
Commercial,Regional Enterprise,Advertising,0060132175,TMP (UK) LTD,660.00,12/06/2019
Commercial,Regional Enterprise,Refunds,0080025960,CAPITAL ARCHITECTURAL DESIGN,116.00,24/06/2019
Commercial,Regional Enterprise,Professional Services,0060131332,WATES LIVING SPACE,96.11,03/06/2019
Commercial,Regional Enterprise,Professional Services,0060131711,WATES LIVING SPACE,296.14,05/06/2019
Commercial,Regional Enterprise,Professional Services,0060132208,WATES LIVING SPACE,999.77,27/06/2019
Commercial,Regional Enterprise,Professional Services,0060132688,WATES LIVING SPACE,136.47,27/06/2019
Commercial,Regional Enterprise,Professional Services,0060132699,WATES LIVING SPACE,27.29,27/06/2019
Commercial,Regional Enterprise,Professional Services,0060132744,WATES LIVING SPACE,93.01,27/06/2019
Commercial,Regional Enterprise,Professional Services,0060132889,WATES LIVING SPACE,93.01,27/06/2019
Commercial,Regional Enterprise,Professional Services,0060132898,WATES LIVING SPACE,286.58,27/06/2019
Commercial,Regional Enterprise,Advertising,0060128360,TMP (UK) LTD,444.00,05/06/2019
Commercial,Regional Enterprise,Other Services,0060131403,RM COUNTRYSIDE SERVICES LTD,"1,020.00",03/06/2019
Commercial,Regional Enterprise,Professional Services,0060131576,AFFINITY WATER LIMITED,414.46,11/06/2019
Commercial,Regional Enterprise,Professional Services,0060129418,PUBLIC ANALYST SCIENTIFIC SERVS. LT,500.00,03/06/2019
Commercial,Regional Enterprise,Professional Services,0060130233,PUBLIC ANALYST SCIENTIFIC SERVS. LT,779.70,12/06/2019
Commercial,Regional Enterprise,Other Services,0060130690,BOUYGUES E&S INFRASTRUCTURE UK LTD,356.12,11/06/2019
Commercial,Regional Enterprise,Other Services,0060128070,CONWAY AECOM LTD,37.80,11/06/2019
Commercial,Regional Enterprise,Other Services,0060128372,CONWAY AECOM LTD,53.44,11/06/2019
Commercial,Regional Enterprise,Other Services,0060128396,CONWAY AECOM LTD,361.42,11/06/2019
Commercial,Regional Enterprise,Other Services,0060128419,CONWAY AECOM LTD,117.29,11/06/2019
Commercial,Regional Enterprise,Other Services,0060128429,CONWAY AECOM LTD,163.54,11/06/2019
Commercial,Regional Enterprise,Other Services,0060128438,CONWAY AECOM LTD,377.94,11/06/2019
Commercial,Regional Enterprise,Other Services,0060128472,CONWAY AECOM LTD,344.88,11/06/2019
Commercial,Regional Enterprise,Other Services,0060128483,CONWAY AECOM LTD,58.41,11/06/2019
Commercial,Regional Enterprise,Other Services,0060128487,CONWAY AECOM LTD,266.25,11/06/2019
Commercial,Regional Enterprise,Other Services,0060128495,CONWAY AECOM LTD,100.12,11/06/2019
Commercial,Regional Enterprise,Other Services,0060128689,CONWAY AECOM LTD,283.46,11/06/2019
Commercial,Regional Enterprise,Other Services,0060128787,CONWAY AECOM LTD,326.20,11/06/2019
Commercial,Regional Enterprise,Other Services,0060128790,CONWAY AECOM LTD,130.48,11/06/2019
Commercial,Regional Enterprise,Other Services,0060128791,CONWAY AECOM LTD,87.01,11/06/2019
Commercial,Regional Enterprise,Other Services,0060128856,CONWAY AECOM LTD,51.74,11/06/2019
Commercial,Regional Enterprise,Other Services,0060129295,CONWAY AECOM LTD,60.90,11/06/2019
Commercial,Regional Enterprise,Other Services,0060129296,CONWAY AECOM LTD,54.93,11/06/2019
Commercial,Regional Enterprise,Other Services,0060129314,CONWAY AECOM LTD,140.87,11/06/2019
Commercial,Regional Enterprise,Other Services,0060129317,CONWAY AECOM LTD,202.59,11/06/2019
Commercial,Regional Enterprise,Other Services,0060129318,CONWAY AECOM LTD,6.78,12/06/2019
Commercial,Regional Enterprise,Other Services,0060129325,CONWAY AECOM LTD,70.97,11/06/2019
Commercial,Regional Enterprise,Other Services,0060129355,CONWAY AECOM LTD,31.07,11/06/2019
Commercial,Regional Enterprise,Other Services,0060129357,CONWAY AECOM LTD,159.50,11/06/2019
Commercial,Regional Enterprise,Other Services,0060129360,CONWAY AECOM LTD,354.33,11/06/2019
Commercial,Regional Enterprise,Other Services,0060129371,CONWAY AECOM LTD,29.99,11/06/2019
Commercial,Regional Enterprise,Other Services,0060129378,CONWAY AECOM LTD,23.40,13/06/2019
Commercial,Regional Enterprise,Other Services,0060129384,CONWAY AECOM LTD,201.82,11/06/2019
Commercial,Regional Enterprise,Other Services,0060129397,CONWAY AECOM LTD,50.33,12/06/2019
Commercial,Regional Enterprise,Other Services,0060129401,CONWAY AECOM LTD,137.54,12/06/2019
Commercial,Regional Enterprise,Other Services,0060129403,CONWAY AECOM LTD,365.35,11/06/2019
Commercial,Regional Enterprise,Other Services,0060129412,CONWAY AECOM LTD,93.55,11/06/2019
Commercial,Regional Enterprise,Other Services,0060129419,CONWAY AECOM LTD,70.69,13/06/2019
Commercial,Regional Enterprise,Other Services,0060129432,CONWAY AECOM LTD,46.11,12/06/2019
Commercial,Regional Enterprise,Other Services,0060129467,CONWAY AECOM LTD,46.11,11/06/2019
Commercial,Regional Enterprise,Other Services,0060129488,CONWAY AECOM LTD,31.60,12/06/2019
Commercial,Regional Enterprise,Other Services,0060129545,CONWAY AECOM LTD,46.11,12/06/2019
Commercial,Regional Enterprise,Other Services,0060129585,CONWAY AECOM LTD,107.90,11/06/2019
Commercial,Regional Enterprise,Other Services,0060129975,CONWAY AECOM LTD,50.96,11/06/2019
Commercial,Regional Enterprise,Other Services,0060129983,CONWAY AECOM LTD,83.00,11/06/2019
Commercial,Regional Enterprise,Other Services,0060129995,CONWAY AECOM LTD,10.08,25/06/2019
Commercial,Regional Enterprise,Other Services,0060130011,CONWAY AECOM LTD,83.84,11/06/2019
Commercial,Regional Enterprise,Other Services,0060130026,CONWAY AECOM LTD,201.82,11/06/2019
Commercial,Regional Enterprise,Other Services,0060130031,CONWAY AECOM LTD,183.85,11/06/2019
Commercial,Regional Enterprise,Other Services,0060130039,CONWAY AECOM LTD,252.27,11/06/2019
Commercial,Regional Enterprise,Other Services,0060130040,CONWAY AECOM LTD,10.08,12/06/2019
Commercial,Regional Enterprise,Other Services,0060130050,CONWAY AECOM LTD,83.84,11/06/2019
Commercial,Regional Enterprise,Other Services,0060130052,CONWAY AECOM LTD,75.40,11/06/2019
Commercial,Regional Enterprise,Other Services,0060130059,CONWAY AECOM LTD,68.91,11/06/2019
Commercial,Regional Enterprise,Other Services,0060130063,CONWAY AECOM LTD,29.28,11/06/2019
Commercial,Regional Enterprise,Other Services,0060130064,CONWAY AECOM LTD,59.43,12/06/2019
Commercial,Regional Enterprise,Other Services,0060130075,CONWAY AECOM LTD,100.91,11/06/2019
Commercial,Regional Enterprise,Other Services,0060132321,CONWAY AECOM LTD,191.22,17/06/2019
Commercial,Regional Enterprise,Other Services,0060132330,CONWAY AECOM LTD,194.93,25/06/2019
Commercial,Regional Enterprise,Other Services,0060132332,CONWAY AECOM LTD,58.41,25/06/2019
Commercial,Regional Enterprise,Other Services,0060132335,CONWAY AECOM LTD,280.15,25/06/2019
Commercial,Regional Enterprise,Other Services,0060132339,CONWAY AECOM LTD,471.51,17/06/2019
Commercial,Regional Enterprise,Other Services,0060132342,CONWAY AECOM LTD,58.41,17/06/2019
Commercial,Regional Enterprise,Other Services,0060132344,CONWAY AECOM LTD,199.46,17/06/2019
Commercial,Regional Enterprise,Other Services,0060132347,CONWAY AECOM LTD,184.55,25/06/2019
Commercial,Regional Enterprise,Other Services,0060132352,CONWAY AECOM LTD,148.53,20/06/2019
Commercial,Regional Enterprise,Other Services,0060132354,CONWAY AECOM LTD,189.29,17/06/2019
Commercial,Regional Enterprise,Other Services,0060132355,CONWAY AECOM LTD,159.60,20/06/2019
Commercial,Regional Enterprise,Other Services,0060132357,CONWAY AECOM LTD,420.05,20/06/2019
Commercial,Regional Enterprise,Other Services,0060132364,CONWAY AECOM LTD,395.63,20/06/2019
Commercial,Regional Enterprise,Other Services,0060132365,CONWAY AECOM LTD,249.53,20/06/2019
Commercial,Regional Enterprise,Other Services,0060132366,CONWAY AECOM LTD,221.98,25/06/2019
Commercial,Regional Enterprise,Other Services,0060132378,CONWAY AECOM LTD,189.29,20/06/2019
Commercial,Regional Enterprise,Other Services,0060132382,CONWAY AECOM LTD,437.90,20/06/2019
Commercial,Regional Enterprise,Other Services,0060132383,CONWAY AECOM LTD,517.50,17/06/2019
Commercial,Regional Enterprise,Other Services,0060132390,CONWAY AECOM LTD,525.73,20/06/2019
Commercial,Regional Enterprise,Other Services,0060132391,CONWAY AECOM LTD,296.48,20/06/2019
Commercial,Regional Enterprise,Other Services,0060132393,CONWAY AECOM LTD,286.54,25/06/2019
Commercial,Regional Enterprise,Other Services,0060132396,CONWAY AECOM LTD,306.31,20/06/2019
Commercial,Regional Enterprise,Other Services,0060132402,CONWAY AECOM LTD,351.87,20/06/2019
Commercial,Regional Enterprise,Other Services,0060132403,CONWAY AECOM LTD,405.35,25/06/2019
Commercial,Regional Enterprise,Other Services,0060132404,CONWAY AECOM LTD,575.67,20/06/2019
Commercial,Regional Enterprise,Other Services,0060132407,CONWAY AECOM LTD,189.29,20/06/2019
Commercial,Regional Enterprise,Other Services,0060132409,CONWAY AECOM LTD,467.32,17/06/2019
Commercial,Regional Enterprise,Other Services,0060132410,CONWAY AECOM LTD,537.29,17/06/2019
Commercial,Regional Enterprise,Other Services,0060132412,CONWAY AECOM LTD,58.41,20/06/2019
Commercial,Regional Enterprise,Other Services,0060132430,CONWAY AECOM LTD,334.18,18/06/2019
Commercial,Regional Enterprise,Other Services,0060132447,CONWAY AECOM LTD,186.40,20/06/2019
Commercial,Regional Enterprise,Other Services,0060132454,CONWAY AECOM LTD,70.11,18/06/2019
Commercial,Regional Enterprise,Other Services,0060132468,CONWAY AECOM LTD,73.46,18/06/2019
Commercial,Regional Enterprise,Other Services,0060132487,CONWAY AECOM LTD,336.78,18/06/2019
Commercial,Regional Enterprise,Other Services,0060132488,CONWAY AECOM LTD,159.72,20/06/2019
Commercial,Regional Enterprise,Other Services,0060132491,CONWAY AECOM LTD,186.40,20/06/2019
Commercial,Regional Enterprise,Other Services,0060132513,CONWAY AECOM LTD,73.46,18/06/2019
Commercial,Regional Enterprise,Other Services,0060132539,CONWAY AECOM LTD,81.39,19/06/2019
Commercial,Regional Enterprise,Other Services,0060132553,CONWAY AECOM LTD,81.39,19/06/2019
Commercial,Regional Enterprise,Other Services,0060132563,CONWAY AECOM LTD,58.41,20/06/2019
Commercial,Regional Enterprise,Other Services,0060132565,CONWAY AECOM LTD,73.46,19/06/2019
Commercial,Regional Enterprise,Other Services,0060132566,CONWAY AECOM LTD,252.11,19/06/2019
Commercial,Regional Enterprise,Other Services,0060132582,CONWAY AECOM LTD,154.48,20/06/2019
Commercial,Regional Enterprise,Other Services,0060132589,CONWAY AECOM LTD,125.22,20/06/2019
Commercial,Regional Enterprise,Other Services,0060132603,CONWAY AECOM LTD,75.94,25/06/2019
Commercial,Regional Enterprise,Other Services,0060132611,CONWAY AECOM LTD,242.05,19/06/2019
Commercial,Regional Enterprise,Other Services,0060132616,CONWAY AECOM LTD,125.22,20/06/2019
Commercial,Regional Enterprise,Other Services,0060132617,CONWAY AECOM LTD,237.39,19/06/2019
Commercial,Regional Enterprise,Other Services,0060132622,CONWAY AECOM LTD,229.50,20/06/2019
Commercial,Regional Enterprise,Other Services,0060132626,CONWAY AECOM LTD,162.79,20/06/2019
Commercial,Regional Enterprise,Other Services,0060132627,CONWAY AECOM LTD,228.93,19/06/2019
Commercial,Regional Enterprise,Other Services,0060132643,CONWAY AECOM LTD,228.93,19/06/2019
Commercial,Regional Enterprise,Other Services,0060132645,CONWAY AECOM LTD,186.04,20/06/2019
Commercial,Regional Enterprise,Other Services,0060132651,CONWAY AECOM LTD,237.85,19/06/2019
Commercial,Regional Enterprise,Other Services,0060132675,CONWAY AECOM LTD,73.46,21/06/2019
Commercial,Regional Enterprise,Other Services,0060132676,CONWAY AECOM LTD,245.91,25/06/2019
Commercial,Regional Enterprise,Other Services,0060132680,CONWAY AECOM LTD,221.42,21/06/2019
Commercial,Regional Enterprise,Other Services,0060132683,CONWAY AECOM LTD,300.46,20/06/2019
Commercial,Regional Enterprise,Other Services,0060132685,CONWAY AECOM LTD,64.55,21/06/2019
Commercial,Regional Enterprise,Other Services,0060132690,CONWAY AECOM LTD,58.41,21/06/2019
Commercial,Regional Enterprise,Other Services,0060132691,CONWAY AECOM LTD,220.37,20/06/2019
Commercial,Regional Enterprise,Other Services,0060132693,CONWAY AECOM LTD,46.04,20/06/2019
Commercial,Regional Enterprise,Other Services,0060132694,CONWAY AECOM LTD,175.90,25/06/2019
Commercial,Regional Enterprise,Other Services,0060132697,CONWAY AECOM LTD,110.27,21/06/2019
Commercial,Regional Enterprise,Other Services,0060132698,CONWAY AECOM LTD,58.41,21/06/2019
Commercial,Regional Enterprise,Other Services,0060132701,CONWAY AECOM LTD,248.53,21/06/2019
Commercial,Regional Enterprise,Other Services,0060132708,CONWAY AECOM LTD,58.41,21/06/2019
Commercial,Regional Enterprise,Other Services,0060132709,CONWAY AECOM LTD,52.29,20/06/2019
Commercial,Regional Enterprise,Other Services,0060132720,CONWAY AECOM LTD,205.93,20/06/2019
Commercial,Regional Enterprise,Other Services,0060132732,CONWAY AECOM LTD,387.29,25/06/2019
Commercial,Regional Enterprise,Other Services,0060132740,CONWAY AECOM LTD,66.49,20/06/2019
Commercial,Regional Enterprise,Other Services,0060132741,CONWAY AECOM LTD,70.67,25/06/2019
Commercial,Regional Enterprise,Other Services,0060132748,CONWAY AECOM LTD,187.83,21/06/2019
Commercial,Regional Enterprise,Other Services,0060132750,CONWAY AECOM LTD,77.00,21/06/2019
Commercial,Regional Enterprise,Other Services,0060132755,CONWAY AECOM LTD,292.07,20/06/2019
Commercial,Regional Enterprise,Other Services,0060132757,CONWAY AECOM LTD,511.13,21/06/2019
Commercial,Regional Enterprise,Other Services,0060132761,CONWAY AECOM LTD,104.58,21/06/2019
Commercial,Regional Enterprise,Other Services,0060132762,CONWAY AECOM LTD,304.66,20/06/2019
Commercial,Regional Enterprise,Other Services,0060132767,CONWAY AECOM LTD,58.41,21/06/2019
Commercial,Regional Enterprise,Other Services,0060132777,CONWAY AECOM LTD,403.88,21/06/2019
Commercial,Regional Enterprise,Other Services,0060132781,CONWAY AECOM LTD,110.27,25/06/2019
Commercial,Regional Enterprise,Other Services,0060132786,CONWAY AECOM LTD,104.58,25/06/2019
Commercial,Regional Enterprise,Other Services,0060132788,CONWAY AECOM LTD,104.58,21/06/2019
Commercial,Regional Enterprise,Other Services,0060132789,CONWAY AECOM LTD,193.64,25/06/2019
Commercial,Regional Enterprise,Other Services,0060132794,CONWAY AECOM LTD,256.57,20/06/2019
Commercial,Regional Enterprise,Other Services,0060132797,CONWAY AECOM LTD,64.55,20/06/2019
Commercial,Regional Enterprise,Other Services,0060132799,CONWAY AECOM LTD,132.80,21/06/2019
Commercial,Regional Enterprise,Other Services,0060132802,CONWAY AECOM LTD,58.41,25/06/2019
Commercial,Regional Enterprise,Other Services,0060132815,CONWAY AECOM LTD,47.32,25/06/2019
Commercial,Regional Enterprise,Other Services,0060132816,CONWAY AECOM LTD,116.84,25/06/2019
Commercial,Regional Enterprise,Other Services,0060132822,CONWAY AECOM LTD,156.32,21/06/2019
Commercial,Regional Enterprise,Other Services,0060132833,CONWAY AECOM LTD,47.32,25/06/2019
Commercial,Regional Enterprise,Other Services,0060132868,CONWAY AECOM LTD,104.58,25/06/2019
Commercial,Regional Enterprise,Other Services,0060132872,CONWAY AECOM LTD,87.97,25/06/2019
Commercial,Regional Enterprise,Other Services,0060132876,CONWAY AECOM LTD,47.32,25/06/2019
Commercial,Regional Enterprise,Other Services,0060132883,CONWAY AECOM LTD,43.32,25/06/2019
Commercial,Regional Enterprise,Other Services,0060132885,CONWAY AECOM LTD,97.47,25/06/2019
Commercial,Regional Enterprise,Other Services,0060132891,CONWAY AECOM LTD,47.32,25/06/2019
Commercial,Regional Enterprise,Other Services,0060132895,CONWAY AECOM LTD,47.32,25/06/2019
Commercial,Regional Enterprise,Other Services,0060132902,CONWAY AECOM LTD,156.32,21/06/2019
Commercial,Regional Enterprise,Other Services,0060132916,CONWAY AECOM LTD,415.11,24/06/2019
Commercial,Regional Enterprise,Other Services,0060132938,CONWAY AECOM LTD,274.62,25/06/2019
Commercial,Regional Enterprise,Other Services,0060132944,CONWAY AECOM LTD,186.59,25/06/2019
Commercial,Regional Enterprise,Other Services,0060132964,CONWAY AECOM LTD,183.13,25/06/2019
Commercial,Regional Enterprise,Other Services,0060132967,CONWAY AECOM LTD,203.08,25/06/2019
Commercial,Regional Enterprise,Other Services,0060132983,CONWAY AECOM LTD,132.50,25/06/2019
Commercial,Regional Enterprise,Other Services,0060132987,CONWAY AECOM LTD,58.41,25/06/2019
Commercial,Regional Enterprise,Other Services,0060132989,CONWAY AECOM LTD,141.96,25/06/2019
Commercial,Regional Enterprise,Other Services,0060132990,CONWAY AECOM LTD,47.32,25/06/2019
Commercial,Regional Enterprise,Other Services,0060132991,CONWAY AECOM LTD,52.29,25/06/2019
Commercial,Regional Enterprise,Other Services,0060132992,CONWAY AECOM LTD,194.93,25/06/2019
Commercial,Regional Enterprise,Other Services,0060133001,CONWAY AECOM LTD,47.32,25/06/2019
Commercial,Regional Enterprise,Other Services,0060133008,CONWAY AECOM LTD,52.29,25/06/2019
Commercial,Regional Enterprise,Other Services,0060133019,CONWAY AECOM LTD,58.41,25/06/2019
Commercial,Regional Enterprise,Other Services,0060133089,CONWAY AECOM LTD,175.24,26/06/2019
Commercial,Regional Enterprise,Other Services,0060133128,CONWAY AECOM LTD,175.24,26/06/2019
Commercial,Regional Enterprise,Other Services,0060133142,CONWAY AECOM LTD,350.49,27/06/2019
Commercial,Regional Enterprise,Other Services,0060133149,CONWAY AECOM LTD,379.69,27/06/2019
Commercial,Regional Enterprise,Other Services,0060128119,CONWAY AECOM LTD,330.75,14/06/2019
Commercial,Regional Enterprise,Other Services,0060128134,CONWAY AECOM LTD,"1,285.20",14/06/2019
Commercial,Regional Enterprise,Grant Payments,0080026941,REDACTED - PERSONAL DATA,294.50,28/06/2019
Commercial,Regional Enterprise,Fees and Charges,0080026763,MAJOR PROPERTIES LONDON LIMITED,"1,128.46",24/06/2019
Commercial,Regional Enterprise,Fees and Charges,0080026764,MAJOR PROPERTIES LONDON LIMITED,"4,333.18",20/06/2019
Commercial,Regional Enterprise,Professional Services,0060133124,RE (REGIONAL ENTERPRISE) LIMITED,"373,067.00",26/06/2019
Commercial,Regional Enterprise,Professional Services,0060133088,RE (REGIONAL ENTERPRISE) LIMITED,"301,459.00",26/06/2019
Commercial,Regional Enterprise,Advertising,0080026394,REDACTED - PERSONAL DATA,500.00,05/06/2019
Commercial,Regional Enterprise,Professional Services,0060133167,PHOENIX CANOE CLUB LIMITED,"5,000.00",27/06/2019
Commercial,Regional Enterprise,Professional Services,0060128158,RE (REGIONAL ENTERPRISE) LIMITED,"233,750.00",20/06/2019
Commercial,Regional Enterprise,Professional Services,0010015231,RE (REGIONAL ENTERPRISE) LIMITED,"220,000.00",21/06/2019
Commercial,Regional Enterprise,Professional Services,0060131569,RE (REGIONAL ENTERPRISE) LIMITED,"189,000.00",10/06/2019
Commercial,Regional Enterprise,Professional Services,0060131853,RE (REGIONAL ENTERPRISE) LIMITED,"27,750.00",07/06/2019
Commercial,Regional Enterprise,Professional Services,0060131854,RE (REGIONAL ENTERPRISE) LIMITED,"16,932.90",07/06/2019
Commercial,Regional Enterprise,Professional Services,0060131796,RE (REGIONAL ENTERPRISE) LIMITED,"11,000.00",10/06/2019
Commercial,Regional Enterprise,Professional Services,0060131808,RE (REGIONAL ENTERPRISE) LIMITED,"11,000.00",10/06/2019
Commercial,Regional Enterprise,Professional Services,0060131813,RE (REGIONAL ENTERPRISE) LIMITED,"11,000.00",10/06/2019
Commercial,Regional Enterprise,Professional Services,0060131816,RE (REGIONAL ENTERPRISE) LIMITED,"1,368.05",10/06/2019
Commercial,Regional Enterprise,Professional Services,0060131844,RE (REGIONAL ENTERPRISE) LIMITED,"1,368.05",10/06/2019
Commercial,Regional Enterprise,Professional Services,0060132542,RE (REGIONAL ENTERPRISE) LIMITED,"11,000.00",26/06/2019
Commercial,Regional Enterprise,Professional Services,0060132549,RE (REGIONAL ENTERPRISE) LIMITED,"11,000.00",26/06/2019
Commercial,Regional Enterprise,Professional Services,0060132580,RE (REGIONAL ENTERPRISE) LIMITED,"11,000.00",26/06/2019
Commercial,Regional Enterprise,Professional Services,0060132581,RE (REGIONAL ENTERPRISE) LIMITED,"1,368.00",26/06/2019
Commercial,Regional Enterprise,Professional Services,0060132600,RE (REGIONAL ENTERPRISE) LIMITED,"1,368.00",26/06/2019
Commercial,Regional Enterprise,Professional Services,0060132606,RE (REGIONAL ENTERPRISE) LIMITED,"11,000.00",26/06/2019
Commercial,Regional Enterprise,Professional Services,0060132632,RE (REGIONAL ENTERPRISE) LIMITED,"1,368.00",26/06/2019
Commercial,Regional Enterprise,Professional Services,0060132649,RE (REGIONAL ENTERPRISE) LIMITED,"1,368.00",26/06/2019
Commercial,Regional Enterprise,Professional Services,0060132657,RE (REGIONAL ENTERPRISE) LIMITED,"11,000.00",26/06/2019
Commercial,Regional Enterprise,Professional Services,0060132661,RE (REGIONAL ENTERPRISE) LIMITED,"1,368.00",26/06/2019
Commercial,Regional Enterprise,RE Services Contract Payment,0060131344,RE (REGIONAL ENTERPRISE) LIMITED,"3,800,334.00",13/06/2019
COMMERCIAL,REGIONAL ENTERPRISE,Grant Payments,0080027022,ACCESS & AUTOMATION LTD,"7,240.00",27/06/2019
COMMERCIAL,REGIONAL ENTERPRISE,Grant Payments,0080026328,BELLHOUSE PROPERTY SERVICES LTD,"26,780.00",10/06/2019
COMMERCIAL,REGIONAL ENTERPRISE,Grant Payments,0080027050,H D PROPERTY SERVICES LTD,"5,467.00",27/06/2019
COMMERCIAL,REGIONAL ENTERPRISE,Grant Payments,0080026975,DP BUILDERS DISABLED ADAPTATIONS,"5,947.00",27/06/2019
COMMERCIAL,REGIONAL ENTERPRISE,Grant Payments,0080027053,DP BUILDERS DISABLED ADAPTATIONS,"18,074.00",27/06/2019
COMMERCIAL,REGIONAL ENTERPRISE,Other Services,0060132467,CONWAY AECOM LTD,"39,861.40",18/06/2019
COMMERCIAL,REGIONAL ENTERPRISE,Other Services,0060132478,CONWAY AECOM LTD,"100,416.25",18/06/2019
COMMERCIAL,REGIONAL ENTERPRISE,Other Services,0060132511,CONWAY AECOM LTD,"96,531.00",18/06/2019
COMMERCIAL,REGIONAL ENTERPRISE,Other Services,0060131354,CONWAY AECOM LTD,"10,240.54",03/06/2019
COMMERCIAL,REGIONAL ENTERPRISE,Other Services,0060126469,CONWAY AECOM LTD,"3,528.53",17/06/2019
COMMERCIAL,REGIONAL ENTERPRISE,Other Services,0010015227,TRAFFIC DATA CENTRE,"1,260.00",13/06/2019
COMMERCIAL,REGIONAL ENTERPRISE,Other Services,0060132211,CYCLE CONFIDENT LTD,"26,756.87",28/06/2019
COMMERCIAL,REGIONAL ENTERPRISE,Other Services,0060130851,CYCLEHOOP LTD,"3,250.00",18/06/2019
COMMERCIAL,REGIONAL ENTERPRISE,Other Services,0060131942,ANNEMOUNT NURSERY SCHOOL,"1,050.00",11/06/2019
COMMERCIAL,REGIONAL ENTERPRISE,Other Services,0060132154,HASMONEAN HIGH SCHOOL,800.00,12/06/2019
COMMERCIAL,REGIONAL ENTERPRISE,Other Services,0060131274,CONWAY AECOM LTD,"1,099.05",03/06/2019
COMMERCIAL,REGIONAL ENTERPRISE,Capital Construction and Works,0060132129,BOUYGUES E&S INFRASTRUCTURE UK LTD,920.00,12/06/2019
COMMERCIAL,REGIONAL ENTERPRISE,Other Services,0060132115,BOUYGUES E&S INFRASTRUCTURE UK LTD,"2,939.21",12/06/2019
COMMERCIAL,REGIONAL ENTERPRISE,Other Services,0060132131,BOUYGUES E&S INFRASTRUCTURE UK LTD,999.25,12/06/2019
COMMERCIAL,REGIONAL ENTERPRISE,Other Services,0060130683,CONWAY AECOM LTD,"7,257.33",05/06/2019
COMMERCIAL,REGIONAL ENTERPRISE,Other Services,0060131697,CONWAY AECOM LTD,"12,033.00",05/06/2019
COMMERCIAL,REGIONAL ENTERPRISE,Other Services,0060131672,INTELLIGENT DATA COLLECTION,"2,310.00",05/06/2019
COMMERCIAL,REGIONAL ENTERPRISE,Other Services,0060132462,CONWAY AECOM LTD,"4,289.49",27/06/2019
COMMERCIAL,REGIONAL ENTERPRISE,Other Services,0060132469,CONWAY AECOM LTD,"27,494.21",18/06/2019
COMMERCIAL,REGIONAL ENTERPRISE,Other Services,0060132516,CONWAY AECOM LTD,"15,314.70",18/06/2019
COMMERCIAL,REGIONAL ENTERPRISE,Professional Services,0060131924,BLAKEDOWN LANDSCAPE (SE) LTD,"288,127.88",12/06/2019
COMMERCIAL,REGIONAL ENTERPRISE,Consultants Fees,0010015237,FLUID DESIGN LTD,"4,970.00",24/06/2019
COMMERCIAL,REGIONAL ENTERPRISE,Equipment and Materials Purcha,0060133063,JOHN GRAHAM CONSTRUCTION LTD,"550,118.33",25/06/2019
COMMERCIAL,REGIONAL ENTERPRISE,Consultants Fees,0060130691,NETWORK RAIL INFRASTRUCTURE LTD,"38,864.65",13/06/2019
COMMERCIAL,REGIONAL ENTERPRISE,Consultants Fees,0060130726,NETWORK RAIL INFRASTRUCTURE LTD,"143,989.05",13/06/2019
COMMERCIAL,REGIONAL ENTERPRISE,Consultants Fees,0060131770,NETWORK RAIL INFRASTRUCTURE LTD,"2,470,999.71",12/06/2019
COMMERCIAL,REGIONAL ENTERPRISE,Professional Services,0080026687,ABSOLUTE PHOTOGRAPHY LTD,325.00,24/06/2019
COMMERCIAL,REGIONAL ENTERPRISE,Professional Services,0060133094,RE (REGIONAL ENTERPRISE) LIMITED,"3,068,389.00",26/06/2019
COMMERCIAL,REGIONAL ENTERPRISE,Professional Services,0060133030,APPLEYARD & TREW LLP,"4,147.33",25/06/2019
COMMERCIAL,REGIONAL ENTERPRISE,Professional Services,0060131891,EMERGENT VERNACULAR ARCHITECTURE LTD,"8,563.06",12/06/2019
COMMERCIAL,REGIONAL ENTERPRISE,Professional Services,0060131959,EMERGENT VERNACULAR ARCHITECTURE LTD,"8,225.56",11/06/2019
COMMERCIAL,REGIONAL ENTERPRISE,Professional Services,0060132363,EMERGENT VERNACULAR ARCHITECTURE LTD,"8,563.06",28/06/2019
COMMISSIONING,COMMISSIONING GROUP,Legal and Court Fees,0060132610,BEVAN BRITTAN LLP,"28,675.97",19/06/2019
COMMISSIONING,COMMISSIONING GROUP,Equipment and Materials Purcha,0060131338,BIRKIN CLEANING SERVICES LTD,"4,472.20",07/06/2019
COMMISSIONING,COMMISSIONING GROUP,Stationery,0060131718,STAPLES UK LTD,74.92,27/06/2019
COMMISSIONING,COMMISSIONING GROUP,Stationery,0060131755,STAPLES UK LTD,912.66,27/06/2019
COMMISSIONING,COMMISSIONING GROUP,Ttl IT & Comms,0060131351,TELEFONICA UK LTD,"1,000.00",20/06/2019
COMMISSIONING,COMMISSIONING GROUP,Building Repairs & Maintenance,0060133051,VINCI CONSTRUCTION UK LTD,"61,130.24",25/06/2019
COMMISSIONING,COMMISSIONING GROUP,Equipment and Materials Purcha,0060132336,NSL LTD,"14,283.50",17/06/2019
COMMISSIONING,COMMISSIONING GROUP,Other Services,0060131655,CONWAY AECOM LTD,"24,189.30",05/06/2019
COMMISSIONING,COMMISSIONING GROUP,Other Services,0060131691,CONWAY AECOM LTD,776.62,06/06/2019
COMMISSIONING,COMMISSIONING GROUP,Equipment and Materials Purcha,0060132097,BOUYGUES E&S INFRASTRUCTURE UK LTD,396.75,12/06/2019
COMMISSIONING,COMMISSIONING GROUP,Ttl IT & Comms,0060130223,MISL LTD,345.46,06/06/2019
COMMISSIONING,COMMISSIONING GROUP,Ttl IT & Comms,0060131218,MISL LTD,300.60,18/06/2019
COMMISSIONING,COMMISSIONING GROUP,Ttl IT & Comms,0060131790,MISL LTD,369.51,27/06/2019
COMMISSIONING,COMMISSIONING GROUP,Building Repairs & Maintenance,0060131202,OAKRAY LIMITED,"1,964.42",20/06/2019
Corporate Accounting,Corporate Accounting,Fees and Charges,0080026345,ARCHER ACADEMY,"41,805.31",05/06/2019
Corporate Accounting,Corporate Accounting,Grant Payments,0080026775,BRIDGING THE GAP CIC,"7,000.00",20/06/2019
Corporate Accounting,Corporate Accounting,Grant Payments,0080027125,THE GOLF TRUST,"2,500.00",27/06/2019
Corporate Accounting,Corporate Accounting,Other Agencies - Third Party P,0060133072,THE BARNETGROUP LIMITED,"91,666.67",28/06/2019
Corporate Accounting,Corporate Accounting,Other Transfer Payments to Soc,0080026646,THE SHARE FOUNDATION,"24,230.47",18/06/2019
Corporate Accounting,Corporate Accounting,Other Transfer Payments to Soc,0080026889,REDACTED - PERSONAL DATA,680.00,18/06/2019
Corporate Accounting,Corporate Accounting,Other Transfer Payments to Soc,0080026879,WIRECARD (FS INSTANT 2040880892973),"35,000.00",18/06/2019
Corporate Accounting,Corporate Accounting,Private Contractors - Third Pa,0080026922,REDACTED - PERSONAL DATA,"6,300.00",21/06/2019
Corporate Accounting,Corporate Accounting,Private Contractors - Third Pa,0080027091,REDACTED - PERSONAL DATA,"4,920.00",26/06/2019
Corporate Accounting,Corporate Accounting,Private Contractors - Third Pa,0080027170,REDACTED - PERSONAL DATA,"6,000.00",28/06/2019
Corporate Accounting,Corporate Accounting,Private Contractors - Third Pa,0080027206,REDACTED - PERSONAL DATA,"4,935.00",28/06/2019
Corporate Accounting,Corporate Accounting,Employee Expenses,0060131401,EDENRED,"3,413.00",11/06/2019
Corporate Accounting,Corporate Accounting,Fees and Charges,0080026450,HARRIS CALNAN CONSTRUCTION CO LTD,"1,830.00",27/06/2019
Corporate Accounting,Corporate Accounting,Fees and Charges,0080026475,SOUTH EAST ECO UTILTIES,"1,460.75",27/06/2019
Corporate Accounting,Corporate Accounting,Fees and Charges,0080026629,TAPSTER STREET PROPERTIES,"6,681.60",21/06/2019
Delivery Units,Adults and Health,Voluntary Associations - Third,0050001264,BARNET MENCAP,"11,142.65",18/06/2019
Delivery Units,Adults and Health,Voluntary Associations - Third,0050001266,CHRISTIAN ACTION (ENFIELD),365.80,18/06/2019
Delivery Units,Adults and Health,Voluntary Associations - Third,0050001267,ELEANOR PALMER TRUST NO 2 A/C.,486.50,18/06/2019
Delivery Units,Adults and Health,Voluntary Associations - Third,0050001269,HABINTEG HOUSING ASSOCIATION,446.37,18/06/2019
Delivery Units,Adults and Health,Voluntary Associations - Third,0050001270,JEWISH COMMUNITY HOUSING ASSOCIATIO,568.17,18/06/2019
Delivery Units,Adults and Health,Voluntary Associations - Third,0050001275,LINEN & WOOLLEN DRAPERS COTTAGE,730.11,18/06/2019
Delivery Units,Adults and Health,Voluntary Associations - Third,0050001272,METROPOLITAN SUPPORT TRUST,"6,443.80",18/06/2019
Delivery Units,Adults and Health,Voluntary Associations - Third,0050001273,ORCHARD HOUSING ASSOCIATION,196.62,18/06/2019
Delivery Units,Adults and Health,Voluntary Associations - Third,0050001276,SANCTUARY HOUSING ASSOCIATION,"5,924.30",18/06/2019
Delivery Units,Adults and Health,Voluntary Associations - Third,0050001277,SCOTSCARE,361.52,18/06/2019
Delivery Units,Adults and Health,Voluntary Associations - Third,0050001274,ST PANCRAS & HUMANIST H.A.,661.55,18/06/2019
Delivery Units,Adults and Health,Other Services,0050001278,WILLOW HOUSING & CARE LTD.,711.38,18/06/2019
Delivery Units,Adults and Health,Ttl IT & Comms,0060129561,P A CONSULTING SERVICES LTD,"886,503.00",13/06/2019
Delivery Units,Adults and Health,Ttl IT & Comms,0060129572,P A CONSULTING SERVICES LTD,"32,682.09",07/06/2019
Delivery Units,Adults and Health,Ttl IT & Comms,0060129584,P A CONSULTING SERVICES LTD,"31,527.00",07/06/2019
Delivery Units,Adults and Health,Ttl IT & Comms,0060131953,P A CONSULTING SERVICES LTD,"337,556.00",13/06/2019
Delivery Units,Adults and Health,Equipment and Materials Purcha,0060131408,MILLBROOK HEALTHCARE LTD,"298,053.94",17/06/2019
Delivery Units,Adults and Health,Equipment and Materials Purcha,0060131417,MILLBROOK HEALTHCARE LTD,"37,507.78",17/06/2019
Delivery Units,Adults and Health,Equipment and Materials Purcha,0060131434,MILLBROOK HEALTHCARE LTD,"37,507.78",17/06/2019
Delivery Units,Adults and Health,Equipment and Materials Purcha,0060131475,MILLBROOK HEALTHCARE LTD,"265,395.16",17/06/2019
Delivery Units,Adults and Health,Other Contributions,0080025868,O'DWYER INDEPENDENT FUNERAL DIRECTORS,679.00,06/06/2019
Delivery Units,Adults and Health,Other Contributions,0080025870,O'DWYER INDEPENDENT FUNERAL DIRECTORS,815.00,06/06/2019
Delivery Units,Adults and Health,Voluntary Associations - Third,0050001263,AGE CONCERN,"58,333.00",18/06/2019
Delivery Units,Adults and Health,Voluntary Associations - Third,0050001265,BARNET MENCAP,"28,583.00",18/06/2019
Delivery Units,Adults and Health,Voluntary Associations - Third,0050001268,GENESIS HOUSING ASSOCIATION LIMITED,"33,577.00",18/06/2019
Delivery Units,Adults and Health,Voluntary Associations - Third,0050001271,MIDDLESEX ASSOCIATION  FOR THE BLIN,"2,394.00",18/06/2019
Delivery Units,Adults and Health,Other Services,0060132327,POHWER,"4,010.00",17/06/2019
Delivery Units,Adults and Health,Other Transfer Payments to Soc,0060131752,PRT BARNET CARERS CENTRE,"96,772.55",13/06/2019
Delivery Units,Adults and Health,Other Establishments - Third P,0060132810,HERTFORDSHIRE PARTNERSHIP,"115,186.08",21/06/2019
Delivery Units,Adults and Health,Other Establishments - Third P,0060132839,HERTFORDSHIRE PARTNERSHIP,"115,186.08",21/06/2019
Delivery Units,Adults and Health,Other Establishments - Third P,0060132890,HERTFORDSHIRE PARTNERSHIP,"115,186.09",21/06/2019
Delivery Units,Adults and Health,Translation Exp / Interpret,0060123255,D.A. LANGUAGES LTD,38.48,14/06/2019
Delivery Units,Adults and Health,Translation Exp / Interpret,0060130318,D.A. LANGUAGES LTD,27.50,05/06/2019
Delivery Units,Adults and Health,Equipment and Materials Purcha,0060128743,BACK CARE SOLUTIONS LIMITED,35.45,20/06/2019
Delivery Units,Adults and Health,Equipment and Materials Purcha,0060121077,HANDS FREE COMPUTING LTD,458.99,28/06/2019
Delivery Units,Adults and Health,Equipment and Materials Purcha,0060126895,HANDS FREE COMPUTING LTD,478.00,27/06/2019
Delivery Units,Adults and Health,Equipment and Materials Purcha,0060128379,HANDS FREE COMPUTING LTD,239.00,27/06/2019
Delivery Units,Adults and Health,Travelling Expenses,0060131881,M1 EXPRESS CAR SERVICES,94.00,11/06/2019
Delivery Units,Adults and Health,Travelling Expenses,0060132063,M1 EXPRESS CAR SERVICES,157.50,11/06/2019
Delivery Units,Adults and Health,Transport Hire Charges,0060132960,BRENT COURIERS LIMITED,"2,150.00",25/06/2019
Delivery Units,Adults and Health,Other Transfer Payments to Soc,0060130445,KORU MEDICAL LTD,354.16,24/06/2019
Delivery Units,Adults and Health,Water Services,0060133040,ANGEL SPRINGS LTD,678.55,25/06/2019
Delivery Units,Adults and Health,Water Services,0060133041,ANGEL SPRINGS LTD,22.00,25/06/2019
Delivery Units,Adults and Health,Gas,0010015218,BRITISH GAS BUSINESS,"1,871.82",12/06/2019
Delivery Units,Adults and Health,Ttl IT & Comms,0060131852,BRITISH TELECOM PLC,55.89,07/06/2019
Delivery Units,Adults and Health,Water Services,0060131803,CASTLE WATER LTD,19.39,07/06/2019
Delivery Units,Adults and Health,Water Services,0060133071,CASTLE WATER LTD,15.42,25/06/2019
Delivery Units,Adults and Health,Gas,0060132003,KENT COUNTY COUNCIL (KCS),219.30,11/06/2019
Delivery Units,Adults and Health,Food Costs,0060131082,MULLER MILK & INGREDIENTS,0.88,07/06/2019
Delivery Units,Adults and Health,Food Costs,0060131495,MULLER MILK & INGREDIENTS,0.88,04/06/2019
Delivery Units,Adults and Health,Food Costs,0060131577,MULLER MILK & INGREDIENTS,0.88,14/06/2019
Delivery Units,Adults and Health,Food Costs,0060131789,MULLER MILK & INGREDIENTS,0.88,21/06/2019
Delivery Units,Adults and Health,Food Costs,0060132267,MULLER MILK & INGREDIENTS,0.88,28/06/2019
Delivery Units,Adults and Health,Other Services,0060131842,THE KEYHOLDING CO LTD,44.32,07/06/2019
Delivery Units,Adults and Health,Other Services,0060133011,THE KEYHOLDING CO LTD,461.28,24/06/2019
Delivery Units,Adults and Health,Grounds maintenance,0060133106,REDACTED - PERSONAL DATA,100.00,26/06/2019
Delivery Units,Adults and Health,Training,0060132218,ME LEARNING LTD,"6,500.00",27/06/2019
Delivery Units,Adults and Health,Other Transfer Payments to Soc,0060132121,M1 EXPRESS CAR SERVICES,30.00,12/06/2019
Delivery Units,Adults and Health,Equipment and Materials Purcha,0060130580,BACK CARE SOLUTIONS LIMITED,522.00,19/06/2019
Delivery Units,Adults and Health,Translation Exp / Interpret,0060132051,D.A. LANGUAGES LTD,33.75,11/06/2019
Delivery Units,Adults and Health,Other Transfer Payments to Soc,0060132726,MOTT MACDONALD LTD/CAMBRIDGE EDUCATION,30.00,21/06/2019
Delivery Units,Adults and Health,Other Services,0080026808,REDACTED - PERSONAL DATA,30.00,14/06/2019
Delivery Units,Adults and Health,Other Services,0080026494,REDACTED - PERSONAL DATA,335.00,05/06/2019
Delivery Units,Adults and Health,Other Transfer Payments to Soc,0060130378,PEACEABLE HABITATION LTD,820.89,17/06/2019
Delivery Units,Adults and Health,Other Agencies - Third Party P,0090169473,AARANDALE MANOR CARE HOME,"2,570.56",03/06/2019
Delivery Units,Adults and Health,Other Agencies - Third Party P,0090169474,AARANDALE MANOR CARE HOME,"4,428.57",03/06/2019
Delivery Units,Adults and Health,Other Agencies - Third Party P,0090169513,AARANDALE MANOR CARE HOME,"3,741.92",03/06/2019
Delivery Units,Adults and Health,Other Agencies - Third Party P,0090169514,AARANDALE MANOR CARE HOME,"2,129.79",03/06/2019
Delivery Units,Adults and Health,Other Agencies - Third Party P,0090170893,AARANDALE MANOR CARE HOME,"2,061.09",13/06/2019
Delivery Units,Adults and Health,Other Agencies - Third Party P,0090170894,AARANDALE MANOR CARE HOME,"3,621.21",13/06/2019
Delivery Units,Adults and Health,Other Agencies - Third Party P,0090170895,AARANDALE MANOR CARE HOME,"2,487.64",13/06/2019
Delivery Units,Adults and Health,Other Agencies - Third Party P,0090170896,AARANDALE MANOR CARE HOME,"4,285.71",13/06/2019
Delivery Units,Adults and Health,Other Agencies - Third Party P,0090173224,AARANDALE MANOR CARE HOME,"4,971.43",21/06/2019
Delivery Units,Adults and Health,Other Agencies - Third Party P,0090173225,AARANDALE MANOR CARE HOME,"2,571.43",21/06/2019
Delivery Units,Adults and Health,Other Agencies - Third Party P,0090171217,ABBEY RAVENSCROFT PARK NURSING HOME,"3,214.29",14/06/2019
Delivery Units,Adults and Health,Other Agencies - Third Party P,0090171218,ABBEY RAVENSCROFT PARK NURSING HOME,"3,214.29",14/06/2019
Delivery Units,Adults and Health,Other Agencies - Third Party P,0090171221,ABBEY RAVENSCROFT PARK NURSING HOME,"2,698.37",14/06/2019
Delivery Units,Adults and Health,Other Agencies - Third Party P,0090171223,ABBEY RAVENSCROFT PARK NURSING HOME,"2,698.37",14/06/2019
Delivery Units,Adults and Health,Other Agencies - Third Party P,0090171224,ABBEY RAVENSCROFT PARK NURSING HOME,"3,214.29",14/06/2019
Delivery Units,Adults and Health,Other Agencies - Third Party P,0090171225,ABBEY RAVENSCROFT PARK NURSING HOME,"3,000.00",14/06/2019
Delivery Units,Adults and Health,Other Agencies - Third Party P,0090171228,ABBEY RAVENSCROFT PARK NURSING HOME,"2,698.37",14/06/2019
Delivery Units,Adults and Health,Other Agencies - Third Party P,0090171230,ABBEY RAVENSCROFT PARK NURSING HOME,"3,214.29",14/06/2019
Delivery Units,Adults and Health,Other Agencies - Third Party P,0090171231,ABBEY RAVENSCROFT PARK NURSING HOME,"4,834.29",14/06/2019
Delivery Units,Adults and Health,Other Agencies - Third Party P,0090171232,ABBEY RAVENSCROFT PARK NURSING HOME,"2,698.37",14/06/2019
Delivery Units,Adults and Health,Other Agencies - Third Party P,0090171235,ABBEY RAVENSCROFT PARK NURSING HOME,"3,428.57",14/06/2019
Delivery Units,Adults and Health,Other Agencies - Third Party P,0090171737,ABBEY RAVENSCROFT PARK NURSING HOME,"4,995.43",17/06/2019
Delivery Units,Adults and Health,Other Agencies - Third Party P,0090171738,ABBEY RAVENSCROFT PARK NURSING HOME,"4,512.00",17/06/2019
Delivery Units,Adults and Health,Other Agencies - Third Party P,0090176294,ABBEY RAVENSCROFT PARK NURSING HOME,"1,289.14",25/06/2019
Delivery Units,Adults and Health,Other Agencies - Third Party P,0090176295,ABBEY RAVENSCROFT PARK NURSING HOME,"4,995.43",25/06/2019
Delivery Units,Adults and Health,Other Agencies - Third Party P,0090176310,ABBEY RAVENSCROFT PARK NURSING HOME,"1,257.14",25/06/2019
Delivery Units,Adults and Health,Other Agencies - Third Party P,0090176311,ABBEY RAVENSCROFT PARK NURSING HOME,"3,542.86",25/06/2019
Delivery Units,Adults and Health,Other Agencies - Third Party P,0090176312,ABBEY RAVENSCROFT PARK NURSING HOME,-571.43,25/06/2019
Delivery Units,Adults and Health,Other Agencies - Third Party P,0090170134,AGUDAS ISRAEL HOUSING ASSCTN LTD,"2,736.86",14/06/2019
Delivery Units,Adults and Health,Other Agencies - Third Party P,0090170413,AGUDAS ISRAEL HOUSING ASSCTN LTD,"2,648.57",12/06/2019
Delivery Units,Adults and Health,Other Agencies - Third Party P,0090171775,APPLE TREE COURT CARE HOME,"2,657.14",17/06/2019
Delivery Units,Adults and Health,Other Agencies - Third Party P,0090171776,APPLE TREE COURT CARE HOME,"2,399.58",17/06/2019
Delivery Units,Adults and Health,Other Agencies - Third Party P,0090175092,APPLE TREE COURT CARE HOME,"2,671.16",21/06/2019
Delivery Units,Adults and Health,Other Agencies - Third Party P,0090175093,APPLE TREE COURT CARE HOME,"5,830.31",21/06/2019
Delivery Units,Adults and Health,Other Agencies - Third Party P,0090175095,APPLE TREE COURT CARE HOME,"5,292.86",21/06/2019
Delivery Units,Adults and Health,Other Agencies - Third Party P,0090175096,APPLE TREE COURT CARE HOME,"2,640.67",21/06/2019
Delivery Units,Adults and Health,Other Agencies - Third Party P,0090175099,APPLE TREE COURT CARE HOME,"4,714.29",21/06/2019
Delivery Units,Adults and Health,Other Agencies - Third Party P,0090169480,ASHTON LODGE CARE CENTRE,"3,959.20",03/06/2019
Delivery Units,Adults and Health,Other Agencies - Third Party P,0090170359,ASHTON LODGE CARE CENTRE,"3,086.96",12/06/2019
Delivery Units,Adults and Health,Other Agencies - Third Party P,0090170360,ASHTON LODGE CARE CENTRE,"3,467.91",12/06/2019
Delivery Units,Adults and Health,Other Agencies - Third Party P,0090170362,ASHTON LODGE CARE CENTRE,"3,031.67",12/06/2019
Delivery Units,Adults and Health,Other Agencies - Third Party P,0090170363,ASHTON LODGE CARE CENTRE,"3,249.77",12/06/2019
Delivery Units,Adults and Health,Other Agencies - Third Party P,0090170364,ASHTON LODGE CARE CENTRE,"3,621.21",12/06/2019
Delivery Units,Adults and Health,Other Agencies - Third Party P,0090170365,ASHTON LODGE CARE CENTRE,"3,686.01",12/06/2019
Delivery Units,Adults and Health,Other Agencies - Third Party P,0090170367,ASHTON LODGE CARE CENTRE,"2,892.30",12/06/2019
Delivery Units,Adults and Health,Other Agencies - Third Party P,0090170368,ASHTON LODGE CARE CENTRE,"3,026.44",12/06/2019
Delivery Units,Adults and Health,Other Agencies - Third Party P,0090170369,ASHTON LODGE CARE CENTRE,"3,393.60",12/06/2019
Delivery Units,Adults and Health,Other Agencies - Third Party P,0090170370,ASHTON LODGE CARE CENTRE,"3,489.94",12/06/2019
Delivery Units,Adults and Health,Other Agencies - Third Party P,0090170372,ASHTON LODGE CARE CENTRE,"3,708.09",12/06/2019
Delivery Units,Adults and Health,Other Agencies - Third Party P,0090170374,ASHTON LODGE CARE CENTRE,"3,467.91",12/06/2019
Delivery Units,Adults and Health,Other Agencies - Third Party P,0090170375,ASHTON LODGE CARE CENTRE,"4,036.46",12/06/2019
Delivery Units,Adults and Health,Other Agencies - Third Party P,0090170376,ASHTON LODGE CARE CENTRE,"3,393.60",12/06/2019
Delivery Units,Adults and Health,Other Agencies - Third Party P,0090170377,ASHTON LODGE CARE CENTRE,"3,031.67",12/06/2019
Delivery Units,Adults and Health,Other Agencies - Third Party P,0090170378,ASHTON LODGE CARE CENTRE,"3,244.54",12/06/2019
Delivery Units,Adults and Health,Other Agencies - Third Party P,0090170379,ASHTON LODGE CARE CENTRE,"4,036.46",12/06/2019
Delivery Units,Adults and Health,Other Agencies - Third Party P,0090170380,ASHTON LODGE CARE CENTRE,"2,801.61",12/06/2019
Delivery Units,Adults and Health,Other Agencies - Third Party P,0090170381,ASHTON LODGE CARE CENTRE,"2,801.61",12/06/2019
Delivery Units,Adults and Health,Other Agencies - Third Party P,0090170382,ASHTON LODGE CARE CENTRE,"3,031.67",12/06/2019
Delivery Units,Adults and Health,Other Agencies - Third Party P,0090170383,ASHTON LODGE CARE CENTRE,"3,271.84",12/06/2019
Delivery Units,Adults and Health,Other Agencies - Third Party P,0090170384,ASHTON LODGE CARE CENTRE,"2,529.60",12/06/2019
Delivery Units,Adults and Health,Other Agencies - Third Party P,0090170386,ASHTON LODGE CARE CENTRE,"3,027.51",12/06/2019
Delivery Units,Adults and Health,Other Agencies - Third Party P,0090170387,ASHTON LODGE CARE CENTRE,"3,454.33",12/06/2019
Delivery Units,Adults and Health,Other Agencies - Third Party P,0090170298,AUTUMN GARDENS,"4,800.00",12/06/2019
Delivery Units,Adults and Health,Other Agencies - Third Party P,0090170299,AUTUMN GARDENS,"3,440.00",12/06/2019
Delivery Units,Adults and Health,Other Agencies - Third Party P,0090172024,AUTUMN GARDENS,"4,800.00",17/06/2019
Delivery Units,Adults and Health,Other Agencies - Third Party P,0090169482,BUPA CARE HOMES,"1,360.82",03/06/2019
Delivery Units,Adults and Health,Other Agencies - Third Party P,0090169483,BUPA CARE HOMES,"3,865.12",03/06/2019
Delivery Units,Adults and Health,Other Agencies - Third Party P,0090169485,BUPA CARE HOMES,"2,315.32",03/06/2019
Delivery Units,Adults and Health,Other Agencies - Third Party P,0090170188,BUPA CARE HOMES,"2,563.39",12/06/2019
Delivery Units,Adults and Health,Other Agencies - Third Party P,0090170428,BUPA CARE HOMES,"3,556.23",14/06/2019
Delivery Units,Adults and Health,Other Agencies - Third Party P,0090170429,BUPA CARE HOMES,"2,567.20",14/06/2019
Delivery Units,Adults and Health,Other Agencies - Third Party P,0090170430,BUPA CARE HOMES,"3,615.84",14/06/2019
Delivery Units,Adults and Health,Other Agencies - Third Party P,0090170432,BUPA CARE HOMES,"3,412.44",14/06/2019
Delivery Units,Adults and Health,Other Agencies - Third Party P,0090170448,BUPA CARE HOMES,"2,399.58",13/06/2019
Delivery Units,Adults and Health,Other Agencies - Third Party P,0090170449,BUPA CARE HOMES,"1,238.49",13/06/2019
Delivery Units,Adults and Health,Other Agencies - Third Party P,0090170450,BUPA CARE HOMES,"2,399.58",13/06/2019
Delivery Units,Adults and Health,Other Agencies - Third Party P,0090170451,BUPA CARE HOMES,"2,399.58",13/06/2019
Delivery Units,Adults and Health,Other Agencies - Third Party P,0090170452,BUPA CARE HOMES,"2,413.57",13/06/2019
Delivery Units,Adults and Health,Other Agencies - Third Party P,0090170453,BUPA CARE HOMES,"3,210.71",13/06/2019
Delivery Units,Adults and Health,Other Agencies - Third Party P,0090170454,BUPA CARE HOMES,"2,780.70",13/06/2019
Delivery Units,Adults and Health,Other Agencies - Third Party P,0090170456,BUPA CARE HOMES,"2,399.58",13/06/2019
Delivery Units,Adults and Health,Other Agencies - Third Party P,0090171763,BUPA CARE HOMES,"3,556.23",17/06/2019
Delivery Units,Adults and Health,Other Agencies - Third Party P,0090171764,BUPA CARE HOMES,"2,567.20",17/06/2019
Delivery Units,Adults and Health,Other Agencies - Third Party P,0090171765,BUPA CARE HOMES,"3,615.84",17/06/2019
Delivery Units,Adults and Health,Other Agencies - Third Party P,0090171767,BUPA CARE HOMES,"3,412.44",17/06/2019
Delivery Units,Adults and Health,Other Agencies - Third Party P,0090172012,BUPA CARE HOMES,"2,315.32",19/06/2019
Delivery Units,Adults and Health,Other Agencies - Third Party P,0090172014,BUPA CARE HOMES,"3,865.12",19/06/2019
Delivery Units,Adults and Health,Other Agencies - Third Party P,0090172823,BUPA CARE HOMES,"2,322.17",18/06/2019
Delivery Units,Adults and Health,Other Agencies - Third Party P,0090172824,BUPA CARE HOMES,"2,322.17",18/06/2019
Delivery Units,Adults and Health,Other Agencies - Third Party P,0090172825,BUPA CARE HOMES,"2,335.71",18/06/2019
Delivery Units,Adults and Health,Other Agencies - Third Party P,0090172826,BUPA CARE HOMES,"2,322.17",18/06/2019
Delivery Units,Adults and Health,Other Agencies - Third Party P,0090172832,BUPA CARE HOMES,"2,399.58",18/06/2019
Delivery Units,Adults and Health,Other Agencies - Third Party P,0090172835,BUPA CARE HOMES,"1,246.54",18/06/2019
Delivery Units,Adults and Health,Other Agencies - Third Party P,0090172836,BUPA CARE HOMES,"3,107.14",18/06/2019
Delivery Units,Adults and Health,Other Agencies - Third Party P,0090172837,BUPA CARE HOMES,"2,322.17",18/06/2019
Delivery Units,Adults and Health,Other Agencies - Third Party P,0090172839,BUPA CARE HOMES,"2,691.00",18/06/2019
Delivery Units,Adults and Health,Other Agencies - Third Party P,0090172840,BUPA CARE HOMES,"2,493.08",18/06/2019
Delivery Units,Adults and Health,Other Agencies - Third Party P,0090172841,BUPA CARE HOMES,267.12,18/06/2019
Delivery Units,Adults and Health,Other Agencies - Third Party P,0090172844,BUPA CARE HOMES,"2,322.17",18/06/2019
Delivery Units,Adults and Health,Other Agencies - Third Party P,0090175089,BUPA CARE HOMES,"2,399.58",21/06/2019
Delivery Units,Adults and Health,Other Agencies - Third Party P,0090170152,BUPA NURSING HOMES LTD - ARKLEY,"2,243.20",06/06/2019
Delivery Units,Adults and Health,Other Agencies - Third Party P,0090170154,BUPA NURSING HOMES LTD - ARKLEY,"2,318.76",06/06/2019
Delivery Units,Adults and Health,Other Agencies - Third Party P,0090170155,BUPA NURSING HOMES LTD - ARKLEY,"2,318.76",06/06/2019
Delivery Units,Adults and Health,Other Agencies - Third Party P,0090170156,BUPA NURSING HOMES LTD - ARKLEY,"2,318.76",06/06/2019
Delivery Units,Adults and Health,Other Agencies - Third Party P,0090175090,BUPA NURSING HOMES LTD - ARKLEY,"2,318.76",21/06/2019
Delivery Units,Adults and Health,Other Agencies - Third Party P,0090175091,BUPA NURSING HOMES LTD - ARKLEY,"2,318.76",21/06/2019
Delivery Units,Adults and Health,Other Agencies - Third Party P,0090170322,CARETECH COMMUNITY SERVICES LTD,"4,767.43",28/06/2019
Delivery Units,Adults and Health,Other Agencies - Third Party P,0090171523,CARLTON COURT (TLC GROUP),"4,285.71",14/06/2019
Delivery Units,Adults and Health,Other Agencies - Third Party P,0090171525,CARLTON COURT (TLC GROUP),"3,616.07",14/06/2019
Delivery Units,Adults and Health,Other Agencies - Third Party P,0090171529,CARLTON COURT (TLC GROUP),"2,369.79",14/06/2019
Delivery Units,Adults and Health,Other Agencies - Third Party P,0090171768,CEDARS NURSING HOME,"6,242.85",17/06/2019
Delivery Units,Adults and Health,Other Agencies - Third Party P,0090170289,CHISWICK HOUSE,"3,214.20",25/06/2019
Delivery Units,Adults and Health,Other Agencies - Third Party P,0090176308,CONTEMPLATION HOMES,"3,409.78",25/06/2019
Delivery Units,Adults and Health,Other Agencies - Third Party P,0090176309,CONTEMPLATION HOMES,"3,299.79",28/06/2019
Delivery Units,Adults and Health,Other Agencies - Third Party P,0090172028,FERNBANK NURSING HOME.,"1,255.80",19/06/2019
Delivery Units,Adults and Health,Other Agencies - Third Party P,0090173209,FERNBANK NURSING HOME.,"2,427.00",21/06/2019
Delivery Units,Adults and Health,Other Agencies - Third Party P,0090173210,FERNBANK NURSING HOME.,"2,427.00",21/06/2019
Delivery Units,Adults and Health,Other Agencies - Third Party P,0090173211,FERNBANK NURSING HOME.,"2,670.90",21/06/2019
Delivery Units,Adults and Health,Other Agencies - Third Party P,0090173213,FERNBANK NURSING HOME.,"2,670.90",21/06/2019
Delivery Units,Adults and Health,Other Agencies - Third Party P,0090173214,FERNBANK NURSING HOME.,"4,221.30",21/06/2019
Delivery Units,Adults and Health,Other Agencies - Third Party P,0090173215,FERNBANK NURSING HOME.,"2,427.00",21/06/2019
Delivery Units,Adults and Health,Other Agencies - Third Party P,0090173216,FERNBANK NURSING HOME.,"2,427.00",21/06/2019
Delivery Units,Adults and Health,Other Agencies - Third Party P,0090173217,FERNBANK NURSING HOME.,"2,427.00",21/06/2019
Delivery Units,Adults and Health,Other Agencies - Third Party P,0090170168,FOUR SEASONS HEALTH CARE,654.67,06/06/2019
Delivery Units,Adults and Health,Other Agencies - Third Party P,0090170169,FOUR SEASONS HEALTH CARE,"1,636.69",06/06/2019
Delivery Units,Adults and Health,Other Agencies - Third Party P,0090170171,FOUR SEASONS HEALTH CARE,654.67,06/06/2019
Delivery Units,Adults and Health,Other Agencies - Third Party P,0090170172,FOUR SEASONS HEALTH CARE,"1,636.69",06/06/2019
Delivery Units,Adults and Health,Other Agencies - Third Party P,0090170173,FOUR SEASONS HEALTH CARE,729.01,06/06/2019
Delivery Units,Adults and Health,Other Agencies - Third Party P,0090170174,FOUR SEASONS HEALTH CARE,"1,822.51",06/06/2019
Delivery Units,Adults and Health,Other Agencies - Third Party P,0090170175,FOUR SEASONS HEALTH CARE,728.78,06/06/2019
Delivery Units,Adults and Health,Other Agencies - Third Party P,0090170176,FOUR SEASONS HEALTH CARE,"1,821.94",06/06/2019
Delivery Units,Adults and Health,Other Agencies - Third Party P,0090170177,FOUR SEASONS HEALTH CARE,654.67,06/06/2019
Delivery Units,Adults and Health,Other Agencies - Third Party P,0090170178,FOUR SEASONS HEALTH CARE,"1,636.69",06/06/2019
Delivery Units,Adults and Health,Other Agencies - Third Party P,0090170182,FOUR SEASONS HEALTH CARE,728.78,06/06/2019
Delivery Units,Adults and Health,Other Agencies - Third Party P,0090170183,FOUR SEASONS HEALTH CARE,"1,821.94",06/06/2019
Delivery Units,Adults and Health,Other Agencies - Third Party P,0090170198,FOUR SEASONS HEALTH CARE,"2,291.36",06/06/2019
Delivery Units,Adults and Health,Other Agencies - Third Party P,0090170328,FOUR SEASONS HEALTH CARE,"2,291.37",12/06/2019
Delivery Units,Adults and Health,Other Agencies - Third Party P,0090170331,FOUR SEASONS HEALTH CARE,"2,550.72",12/06/2019
Delivery Units,Adults and Health,Other Agencies - Third Party P,0090170333,FOUR SEASONS HEALTH CARE,"2,291.36",12/06/2019
Delivery Units,Adults and Health,Other Agencies - Third Party P,0090170335,FOUR SEASONS HEALTH CARE,"2,291.36",12/06/2019
Delivery Units,Adults and Health,Other Agencies - Third Party P,0090170336,FOUR SEASONS HEALTH CARE,"2,551.52",12/06/2019
Delivery Units,Adults and Health,Other Agencies - Third Party P,0090170337,FOUR SEASONS HEALTH CARE,"2,291.36",12/06/2019
Delivery Units,Adults and Health,Other Agencies - Third Party P,0090170339,FOUR SEASONS HEALTH CARE,"2,551.52",12/06/2019
Delivery Units,Adults and Health,Other Agencies - Third Party P,0090170340,FOUR SEASONS HEALTH CARE,"2,550.72",12/06/2019
Delivery Units,Adults and Health,Other Agencies - Third Party P,0090170341,FOUR SEASONS HEALTH CARE,"2,291.36",12/06/2019
Delivery Units,Adults and Health,Other Agencies - Third Party P,0090170148,HC-ONE OVAL LTD,"2,292.21",27/06/2019
Delivery Units,Adults and Health,Other Agencies - Third Party P,0090170409,HC-ONE OVAL LTD,"2,368.62",12/06/2019
Delivery Units,Adults and Health,Other Agencies - Third Party P,0090170410,HC-ONE OVAL LTD,"2,292.21",12/06/2019
Delivery Units,Adults and Health,Other Agencies - Third Party P,0090175847,HC-ONE OVAL LTD,"2,368.62",24/06/2019
Delivery Units,Adults and Health,Other Agencies - Third Party P,0090173218,HENRY NIHILL HOUSE,"2,167.36",21/06/2019
Delivery Units,Adults and Health,Other Agencies - Third Party P,0090173220,HENRY NIHILL HOUSE,"2,167.36",21/06/2019
Delivery Units,Adults and Health,Other Agencies - Third Party P,0090173226,HENRY NIHILL HOUSE,"2,167.36",21/06/2019
Delivery Units,Adults and Health,Other Agencies - Third Party P,0090173227,HENRY NIHILL HOUSE,"2,167.36",21/06/2019
Delivery Units,Adults and Health,Other Agencies - Third Party P,0090173228,HENRY NIHILL HOUSE,"2,167.36",21/06/2019
Delivery Units,Adults and Health,Other Agencies - Third Party P,0090173229,HENRY NIHILL HOUSE,"2,167.36",21/06/2019
Delivery Units,Adults and Health,Other Agencies - Third Party P,0090173230,HENRY NIHILL HOUSE,"2,167.36",21/06/2019
Delivery Units,Adults and Health,Other Agencies - Third Party P,0090172025,HUSKARDS NEW CARE LTD,"2,320.37",17/06/2019
Delivery Units,Adults and Health,Other Agencies - Third Party P,0090169108,JEWISH CARE,"2,649.36",03/06/2019
Delivery Units,Adults and Health,Other Agencies - Third Party P,0090169109,JEWISH CARE,"2,649.36",03/06/2019
Delivery Units,Adults and Health,Other Agencies - Third Party P,0090169118,JEWISH CARE,"13,401.36",03/06/2019
Delivery Units,Adults and Health,Other Agencies - Third Party P,0090169123,JEWISH CARE,"2,649.36",03/06/2019
Delivery Units,Adults and Health,Other Agencies - Third Party P,0090169133,JEWISH CARE,"2,649.36",03/06/2019
Delivery Units,Adults and Health,Other Agencies - Third Party P,0090169134,JEWISH CARE,"2,649.36",03/06/2019
Delivery Units,Adults and Health,Other Agencies - Third Party P,0090169135,JEWISH CARE,"2,410.28",03/06/2019
Delivery Units,Adults and Health,Other Agencies - Third Party P,0090169137,JEWISH CARE,"2,649.36",03/06/2019
Delivery Units,Adults and Health,Other Agencies - Third Party P,0090169141,JEWISH CARE,"2,410.28",03/06/2019
Delivery Units,Adults and Health,Other Agencies - Third Party P,0090169152,JEWISH CARE,"2,410.28",03/06/2019
Delivery Units,Adults and Health,Other Agencies - Third Party P,0090169157,JEWISH CARE,"2,410.28",03/06/2019
Delivery Units,Adults and Health,Other Agencies - Third Party P,0090169163,JEWISH CARE,"2,410.28",03/06/2019
Delivery Units,Adults and Health,Other Agencies - Third Party P,0090169164,JEWISH CARE,"2,410.28",03/06/2019
Delivery Units,Adults and Health,Other Agencies - Third Party P,0090169173,JEWISH CARE,"2,410.28",03/06/2019
Delivery Units,Adults and Health,Other Agencies - Third Party P,0090169181,JEWISH CARE,"2,380.92",03/06/2019
Delivery Units,Adults and Health,Other Agencies - Third Party P,0090169184,JEWISH CARE,"2,649.36",03/06/2019
Delivery Units,Adults and Health,Other Agencies - Third Party P,0090169202,JEWISH CARE,"2,410.28",03/06/2019
Delivery Units,Adults and Health,Other Agencies - Third Party P,0090169203,JEWISH CARE,"2,410.28",03/06/2019
Delivery Units,Adults and Health,Other Agencies - Third Party P,0090169212,JEWISH CARE,"3,489.64",03/06/2019
Delivery Units,Adults and Health,Other Agencies - Third Party P,0090169214,JEWISH CARE,"2,410.28",03/06/2019
Delivery Units,Adults and Health,Other Agencies - Third Party P,0090169217,JEWISH CARE,"2,365.50",03/06/2019
Delivery Units,Adults and Health,Other Agencies - Third Party P,0090169221,JEWISH CARE,"2,410.28",03/06/2019
Delivery Units,Adults and Health,Other Agencies - Third Party P,0090169222,JEWISH CARE,"2,649.36",03/06/2019
Delivery Units,Adults and Health,Other Agencies - Third Party P,0090171780,JEWISH CARE,"2,610.96",17/06/2019
Delivery Units,Adults and Health,Other Agencies - Third Party P,0090171781,JEWISH CARE,"2,237.97",17/06/2019
Delivery Units,Adults and Health,Other Agencies - Third Party P,0090176070,JEWISH CARE,"13,401.36",24/06/2019
Delivery Units,Adults and Health,Other Agencies - Third Party P,0090176075,JEWISH CARE,"2,649.36",24/06/2019
Delivery Units,Adults and Health,Other Agencies - Third Party P,0090176085,JEWISH CARE,"2,649.36",24/06/2019
Delivery Units,Adults and Health,Other Agencies - Third Party P,0090176086,JEWISH CARE,"2,649.36",24/06/2019
Delivery Units,Adults and Health,Other Agencies - Third Party P,0090176087,JEWISH CARE,"2,410.28",24/06/2019
Delivery Units,Adults and Health,Other Agencies - Third Party P,0090176089,JEWISH CARE,"2,649.36",24/06/2019
Delivery Units,Adults and Health,Other Agencies - Third Party P,0090176090,JEWISH CARE,"2,649.36",24/06/2019
Delivery Units,Adults and Health,Other Agencies - Third Party P,0090176108,JEWISH CARE,"2,410.28",24/06/2019
Delivery Units,Adults and Health,Other Agencies - Third Party P,0090176109,JEWISH CARE,"2,410.28",24/06/2019
Delivery Units,Adults and Health,Other Agencies - Third Party P,0090176118,JEWISH CARE,"2,410.28",24/06/2019
Delivery Units,Adults and Health,Other Agencies - Third Party P,0090176126,JEWISH CARE,"2,380.92",24/06/2019
Delivery Units,Adults and Health,Other Agencies - Third Party P,0090176131,JEWISH CARE,"2,410.28",24/06/2019
Delivery Units,Adults and Health,Other Agencies - Third Party P,0090176141,JEWISH CARE,"2,410.28",24/06/2019
Delivery Units,Adults and Health,Other Agencies - Third Party P,0090176146,JEWISH CARE,"2,410.28",24/06/2019
Delivery Units,Adults and Health,Other Agencies - Third Party P,0090176152,JEWISH CARE,"2,410.28",24/06/2019
Delivery Units,Adults and Health,Other Agencies - Third Party P,0090176153,JEWISH CARE,"1,032.97",24/06/2019
Delivery Units,Adults and Health,Other Agencies - Third Party P,0090176166,JEWISH CARE,"2,649.36",24/06/2019
Delivery Units,Adults and Health,Other Agencies - Third Party P,0090176167,JEWISH CARE,"2,649.36",24/06/2019
Delivery Units,Adults and Health,Other Agencies - Third Party P,0090176177,JEWISH CARE,"3,489.64",24/06/2019
Delivery Units,Adults and Health,Other Agencies - Third Party P,0090176179,JEWISH CARE,"2,410.28",24/06/2019
Delivery Units,Adults and Health,Other Agencies - Third Party P,0090176185,JEWISH CARE,"2,410.28",24/06/2019
Delivery Units,Adults and Health,Other Agencies - Third Party P,0090176186,JEWISH CARE,"2,649.36",24/06/2019
Delivery Units,Adults and Health,Other Agencies - Third Party P,0090176234,JEWISH CARE,"2,356.88",25/06/2019
Delivery Units,Adults and Health,Other Agencies - Third Party P,0090176235,JEWISH CARE,"4,713.76",25/06/2019
Delivery Units,Adults and Health,Other Agencies - Third Party P,0090176236,JEWISH CARE,"2,356.88",25/06/2019
Delivery Units,Adults and Health,Other Agencies - Third Party P,0090176237,JEWISH CARE,"1,936.01",25/06/2019
Delivery Units,Adults and Health,Other Agencies - Third Party P,0090176238,JEWISH CARE,589.22,25/06/2019
Delivery Units,Adults and Health,Other Agencies - Third Party P,0090176239,JEWISH CARE,252.52,25/06/2019
Delivery Units,Adults and Health,Other Agencies - Third Party P,0090171537,KARUNA MANOR,"4,071.43",14/06/2019
Delivery Units,Adults and Health,Other Agencies - Third Party P,0090171538,KARUNA MANOR,"4,250.74",14/06/2019
Delivery Units,Adults and Health,Other Agencies - Third Party P,0090169479,LARCHWOOD CARE HOMES(SOUTH)LT,"1,335.71",03/06/2019
Delivery Units,Adults and Health,Other Agencies - Third Party P,0090171553,LARCHWOOD CARE HOMES(SOUTH)LT,"3,400.00",14/06/2019
Delivery Units,Adults and Health,Other Agencies - Third Party P,0090177803,LARCHWOOD CARE HOMES(SOUTH)LT,"3,400.00",27/06/2019
Delivery Units,Adults and Health,Other Agencies - Third Party P,0090172017,LIFESTYLE CARE PLC,"2,764.07",17/06/2019
Delivery Units,Adults and Health,Other Agencies - Third Party P,0090173236,LIFESTYLE CARE PLC,"2,655.55",21/06/2019
Delivery Units,Adults and Health,Other Agencies - Third Party P,0090173238,LIFESTYLE CARE PLC,"2,397.72",21/06/2019
Delivery Units,Adults and Health,Other Agencies - Third Party P,0090173239,LIFESTYLE CARE PLC,"2,842.43",21/06/2019
Delivery Units,Adults and Health,Other Agencies - Third Party P,0090173241,LIFESTYLE CARE PLC,"2,655.55",21/06/2019
Delivery Units,Adults and Health,Other Agencies - Third Party P,0090173242,LIFESTYLE CARE PLC,"2,397.72",21/06/2019
Delivery Units,Adults and Health,Other Agencies - Third Party P,0090173243,LIFESTYLE CARE PLC,"2,397.72",21/06/2019
Delivery Units,Adults and Health,Other Agencies - Third Party P,0090173244,LIFESTYLE CARE PLC,"2,397.72",21/06/2019
Delivery Units,Adults and Health,Other Agencies - Third Party P,0090173245,LIFESTYLE CARE PLC,"2,655.55",21/06/2019
Delivery Units,Adults and Health,Other Agencies - Third Party P,0090173246,LIFESTYLE CARE PLC,"2,397.72",21/06/2019
Delivery Units,Adults and Health,Other Agencies - Third Party P,0090173247,LIFESTYLE CARE PLC,77.35,21/06/2019
Delivery Units,Adults and Health,Other Agencies - Third Party P,0090173248,LIFESTYLE CARE PLC,464.07,21/06/2019
Delivery Units,Adults and Health,Other Agencies - Third Party P,0090176293,LIFESTYLE CARE PLC,"3,426.51",27/06/2019
Delivery Units,Adults and Health,Other Agencies - Third Party P,0090172015,M D HOMES,"2,973.21",17/06/2019
Delivery Units,Adults and Health,Other Agencies - Third Party P,0090170149,MEERA NURSING HOME LIMITED,"3,393.60",10/06/2019
Delivery Units,Adults and Health,Other Agencies - Third Party P,0090170150,MEERA NURSING HOME LIMITED,"3,000.00",10/06/2019
Delivery Units,Adults and Health,Other Agencies - Third Party P,0090172827,MEERA NURSING HOME LIMITED,400.00,18/06/2019
Delivery Units,Adults and Health,Other Agencies - Third Party P,0090172828,MEERA NURSING HOME LIMITED,"3,100.00",18/06/2019
Delivery Units,Adults and Health,Other Agencies - Third Party P,0090172829,MEERA NURSING HOME LIMITED,"3,000.00",18/06/2019
Delivery Units,Adults and Health,Other Agencies - Third Party P,0090172830,MEERA NURSING HOME LIMITED,"3,100.00",18/06/2019
Delivery Units,Adults and Health,Other Agencies - Third Party P,0090170442,NIGHTINGALE HOUSE,"2,952.35",12/06/2019
Delivery Units,Adults and Health,Other Agencies - Third Party P,0090170497,PINELODGE CARE HOME,"2,569.89",28/06/2019
Delivery Units,Adults and Health,Other Agencies - Third Party P,0090172016,SANCTUARY CARE LTD,"2,459.10",17/06/2019
Delivery Units,Adults and Health,Other Agencies - Third Party P,0090170388,SONESTA NURSING HOME LTD.,"2,320.37",12/06/2019
Delivery Units,Adults and Health,Other Agencies - Third Party P,0090170391,SONESTA NURSING HOME LTD.,"2,322.17",12/06/2019
Delivery Units,Adults and Health,Other Agencies - Third Party P,0090175856,ST JOHNS WOOD CARE CENTRE,"2,748.47",28/06/2019
Delivery Units,Adults and Health,Other Agencies - Third Party P,0090175859,ST JOHNS WOOD CARE CENTRE,"2,764.07",24/06/2019
Delivery Units,Adults and Health,Other Agencies - Third Party P,0090175860,ST JOHNS WOOD CARE CENTRE,"2,856.21",24/06/2019
Delivery Units,Adults and Health,Other Agencies - Third Party P,0090170433,THE LEONARD CHESHIRE FOUNDATION,"6,634.00",26/06/2019
Delivery Units,Adults and Health,Other Agencies - Third Party P,0090171754,THE LEONARD CHESHIRE FOUNDATION,"6,634.00",17/06/2019
Delivery Units,Adults and Health,Other Agencies - Third Party P,0090170498,WESTGATE HOUSE CARE CENTRE,"3,605.57",11/06/2019
Delivery Units,Adults and Health,Other Agencies - Third Party P,0090171243,WESTMINSTER HEALTH CARE LTD,"2,548.60",14/06/2019
Delivery Units,Adults and Health,Other Agencies - Third Party P,0090171245,WESTMINSTER HEALTH CARE LTD,"2,548.60",14/06/2019
Delivery Units,Adults and Health,Other Agencies - Third Party P,0090170521,WILSMERE HOUSE CARE CENTRE,"4,818.73",12/06/2019
Delivery Units,Adults and Health,Other Agencies - Third Party P,0090173232,WILSMERE HOUSE CARE CENTRE,"23,661.51",21/06/2019
Delivery Units,Adults and Health,Other Agencies - Third Party P,0090169472,3A CARE (LONDON) LTD,"2,550.86",05/06/2019
Delivery Units,Adults and Health,Other Agencies - Third Party P,0090171219,ABBEY RAVENSCROFT PARK NURSING HOME,"3,214.29",14/06/2019
Delivery Units,Adults and Health,Other Agencies - Third Party P,0090171220,ABBEY RAVENSCROFT PARK NURSING HOME,"3,214.29",14/06/2019
Delivery Units,Adults and Health,Other Agencies - Third Party P,0090176296,ABBEY RAVENSCROFT PARK NURSING HOME,"7,200.00",25/06/2019
Delivery Units,Adults and Health,Other Agencies - Third Party P,0090176300,ALEXANDRA HOUSE (RUNWOOD HOMES),"2,043.72",25/06/2019
Delivery Units,Adults and Health,Other Agencies - Third Party P,0090176301,ALEXANDRA HOUSE (RUNWOOD HOMES),"2,262.69",25/06/2019
Delivery Units,Adults and Health,Other Agencies - Third Party P,0090176302,ALEXANDRA HOUSE (RUNWOOD HOMES),"2,189.70",25/06/2019
Delivery Units,Adults and Health,Other Agencies - Third Party P,0090176303,ALEXANDRA HOUSE (RUNWOOD HOMES),"2,262.69",25/06/2019
Delivery Units,Adults and Health,Other Agencies - Third Party P,0090170297,ANASTASIA LODGE,"3,600.00",12/06/2019
Delivery Units,Adults and Health,Other Agencies - Third Party P,0090170300,ANASTASIA LODGE,"2,800.00",12/06/2019
Delivery Units,Adults and Health,Other Agencies - Third Party P,0090171724,ANASTASIA LODGE,"3,085.71",17/06/2019
Delivery Units,Adults and Health,Other Agencies - Third Party P,0090171772,APPLE TREE COURT CARE HOME,"3,764.29",17/06/2019
Delivery Units,Adults and Health,Other Agencies - Third Party P,0090172026,APPLE TREE COURT CARE HOME,"4,978.58",17/06/2019
Delivery Units,Adults and Health,Other Agencies - Third Party P,0090175097,APPLE TREE COURT CARE HOME,"3,642.86",21/06/2019
Delivery Units,Adults and Health,Other Agencies - Third Party P,0090175100,APPLE TREE COURT CARE HOME,"3,642.86",21/06/2019
Delivery Units,Adults and Health,Other Agencies - Third Party P,0090170159,ASHFIELDS RESIDENTIAL CARE HOME,"2,517.94",06/06/2019
Delivery Units,Adults and Health,Other Agencies - Third Party P,0090170160,ASHFIELDS RESIDENTIAL CARE HOME,"2,343.09",06/06/2019
Delivery Units,Adults and Health,Other Agencies - Third Party P,0090170161,ASHFIELDS RESIDENTIAL CARE HOME,755.38,06/06/2019
Delivery Units,Adults and Health,Other Agencies - Third Party P,0090170366,ASHTON LODGE CARE CENTRE,"3,393.60",12/06/2019
Delivery Units,Adults and Health,Other Agencies - Third Party P,0090170302,AUTUMN GARDENS,"2,880.00",12/06/2019
Delivery Units,Adults and Health,Other Agencies - Third Party P,0090172023,AUTUMN GARDENS,"3,160.00",17/06/2019
Delivery Units,Adults and Health,Other Agencies - Third Party P,0090171544,B & M CARE,"2,176.89",14/06/2019
Delivery Units,Adults and Health,Other Agencies - Third Party P,0090171198,BIRCHWOOD GRANGE CARE HOME,"2,571.43",14/06/2019
Delivery Units,Adults and Health,Other Agencies - Third Party P,0090170187,BUPA CARE HOMES,"2,464.59",12/06/2019
Delivery Units,Adults and Health,Other Agencies - Third Party P,0090170189,BUPA CARE HOMES,"2,589.03",12/06/2019
Delivery Units,Adults and Health,Other Agencies - Third Party P,0090170190,BUPA CARE HOMES,"2,446.74",12/06/2019
Delivery Units,Adults and Health,Other Agencies - Third Party P,0090170153,BUPA NURSING HOMES LTD - ARKLEY,"2,218.04",06/06/2019
Delivery Units,Adults and Health,Other Agencies - Third Party P,0090170435,BUPA NURSING HOMES LTD - ARKLEY,"2,167.68",12/06/2019
Delivery Units,Adults and Health,Other Agencies - Third Party P,0090171521,CARLTON COURT (TLC GROUP),"2,176.89",14/06/2019
Delivery Units,Adults and Health,Other Agencies - Third Party P,0090167317,CATHERINE LODGE,"-1,890.00",03/06/2019
Delivery Units,Adults and Health,Other Agencies - Third Party P,0090169318,CATHERINE LODGE,"3,520.71",06/06/2019
Delivery Units,Adults and Health,Other Agencies - Third Party P,0090170398,CATHERINE LODGE,"3,364.29",13/06/2019
Delivery Units,Adults and Health,Other Agencies - Third Party P,0090170399,CATHERINE LODGE,"2,517.94",13/06/2019
Delivery Units,Adults and Health,Other Agencies - Third Party P,0090170401,CATHERINE LODGE,"2,517.94",13/06/2019
Delivery Units,Adults and Health,Other Agencies - Third Party P,0090170402,CATHERINE LODGE,"2,517.94",13/06/2019
Delivery Units,Adults and Health,Other Agencies - Third Party P,0090170408,CATHERINE LODGE,"2,475.00",13/06/2019
Delivery Units,Adults and Health,Other Agencies - Third Party P,0090170917,CATHERINE LODGE,"1,200.00",19/06/2019
Delivery Units,Adults and Health,Other Agencies - Third Party P,0090171556,CLOVELLY HOUSE RESID. HOME LTD,"2,350.08",14/06/2019
Delivery Units,Adults and Health,Other Agencies - Third Party P,0090171558,CLOVELLY HOUSE RESID. HOME LTD,"2,780.00",14/06/2019
Delivery Units,Adults and Health,Other Agencies - Third Party P,0090171560,CLOVELLY HOUSE RESID. HOME LTD,"2,600.00",14/06/2019
Delivery Units,Adults and Health,Other Agencies - Third Party P,0090171566,CLOVELLY HOUSE RESID. HOME LTD,"2,350.08",14/06/2019
Delivery Units,Adults and Health,Other Agencies - Third Party P,0090171567,CLOVELLY HOUSE RESID. HOME LTD,"2,780.00",14/06/2019
Delivery Units,Adults and Health,Other Agencies - Third Party P,0090171568,CLOVELLY HOUSE RESID. HOME LTD,"2,600.00",14/06/2019
Delivery Units,Adults and Health,Other Agencies - Third Party P,0090171569,CLOVELLY HOUSE RESID. HOME LTD,"3,000.00",14/06/2019
Delivery Units,Adults and Health,Other Agencies - Third Party P,0090170197,COUNTRY COURT CARE HOMES T/A LYLE HOUSE,"5,100.00",06/06/2019
Delivery Units,Adults and Health,Other Agencies - Third Party P,0090170494,COUNTRY COURT CARE HOMES T/A LYLE HOUSE,"3,642.86",12/06/2019
Delivery Units,Adults and Health,Other Agencies - Third Party P,0090170129,DR FRENCH MEMORIAL HOME LTD,"3,653.57",06/06/2019
Delivery Units,Adults and Health,Other Agencies - Third Party P,0090170908,DR FRENCH MEMORIAL HOME LTD,"3,428.57",19/06/2019
Delivery Units,Adults and Health,Other Agencies - Third Party P,0090170909,DR FRENCH MEMORIAL HOME LTD,"3,428.57",19/06/2019
Delivery Units,Adults and Health,Other Agencies - Third Party P,0090170910,DR FRENCH MEMORIAL HOME LTD,"3,428.57",19/06/2019
Delivery Units,Adults and Health,Other Agencies - Third Party P,0090170911,DR FRENCH MEMORIAL HOME LTD,"3,428.57",19/06/2019
Delivery Units,Adults and Health,Other Agencies - Third Party P,0090170912,DR FRENCH MEMORIAL HOME LTD,"2,468.57",19/06/2019
Delivery Units,Adults and Health,Other Agencies - Third Party P,0090173249,EALING EVENTIDE HOMES LTD,"1,678.63",21/06/2019
Delivery Units,Adults and Health,Other Agencies - Third Party P,0090170499,ELEANOR PALMER TRUST NO 2 A/C.,"3,214.29",12/06/2019
Delivery Units,Adults and Health,Other Agencies - Third Party P,0090170500,ELEANOR PALMER TRUST NO 2 A/C.,"3,286.93",12/06/2019
Delivery Units,Adults and Health,Other Agencies - Third Party P,0090170501,ELEANOR PALMER TRUST NO 2 A/C.,"3,214.29",12/06/2019
Delivery Units,Adults and Health,Other Agencies - Third Party P,0090170502,ELEANOR PALMER TRUST NO 2 A/C.,"3,214.29",12/06/2019
Delivery Units,Adults and Health,Other Agencies - Third Party P,0090170503,ELEANOR PALMER TRUST NO 2 A/C.,"3,286.93",12/06/2019
Delivery Units,Adults and Health,Other Agencies - Third Party P,0090170504,ELEANOR PALMER TRUST NO 2 A/C.,"2,520.30",12/06/2019
Delivery Units,Adults and Health,Other Agencies - Third Party P,0090170505,ELEANOR PALMER TRUST NO 2 A/C.,"3,286.93",12/06/2019
Delivery Units,Adults and Health,Other Agencies - Third Party P,0090170506,ELEANOR PALMER TRUST NO 2 A/C.,"2,468.57",12/06/2019
Delivery Units,Adults and Health,Other Agencies - Third Party P,0090170507,ELEANOR PALMER TRUST NO 2 A/C.,"2,315.14",12/06/2019
Delivery Units,Adults and Health,Other Agencies - Third Party P,0090170508,ELEANOR PALMER TRUST NO 2 A/C.,"3,214.29",12/06/2019
Delivery Units,Adults and Health,Other Agencies - Third Party P,0090170509,ELEANOR PALMER TRUST NO 2 A/C.,"3,286.93",12/06/2019
Delivery Units,Adults and Health,Other Agencies - Third Party P,0090170510,ELEANOR PALMER TRUST NO 2 A/C.,"3,286.93",12/06/2019
Delivery Units,Adults and Health,Other Agencies - Third Party P,0090170511,ELEANOR PALMER TRUST NO 2 A/C.,"3,286.93",12/06/2019
Delivery Units,Adults and Health,Other Agencies - Third Party P,0090170512,ELEANOR PALMER TRUST NO 2 A/C.,"2,315.14",12/06/2019
Delivery Units,Adults and Health,Other Agencies - Third Party P,0090170513,ELEANOR PALMER TRUST NO 2 A/C.,"2,520.30",12/06/2019
Delivery Units,Adults and Health,Other Agencies - Third Party P,0090170514,ELEANOR PALMER TRUST NO 2 A/C.,"3,214.29",12/06/2019
Delivery Units,Adults and Health,Other Agencies - Third Party P,0090170515,ELEANOR PALMER TRUST NO 2 A/C.,"3,286.93",12/06/2019
Delivery Units,Adults and Health,Other Agencies - Third Party P,0090169497,ELM PARK LODGE,"3,242.51",06/06/2019
Delivery Units,Adults and Health,Other Agencies - Third Party P,0090171190,ELM PARK LODGE,"2,185.71",14/06/2019
Delivery Units,Adults and Health,Other Agencies - Third Party P,0090169313,ELMHURST RESIDENTIAL HOME,"2,914.28",03/06/2019
Delivery Units,Adults and Health,Other Agencies - Third Party P,0090170179,FOUR SEASONS HEALTH CARE,"2,400.00",06/06/2019
Delivery Units,Adults and Health,Other Agencies - Third Party P,0090170338,FOUR SEASONS HEALTH CARE,"2,400.00",12/06/2019
Delivery Units,Adults and Health,Other Agencies - Third Party P,0090170648,FREMANTLE TRUST,"2,096.00",12/06/2019
Delivery Units,Adults and Health,Other Agencies - Third Party P,0090170649,FREMANTLE TRUST,"2,284.00",12/06/2019
Delivery Units,Adults and Health,Other Agencies - Third Party P,0090170650,FREMANTLE TRUST,"2,284.00",12/06/2019
Delivery Units,Adults and Health,Other Agencies - Third Party P,0090170651,FREMANTLE TRUST,"2,284.00",12/06/2019
Delivery Units,Adults and Health,Other Agencies - Third Party P,0090170654,FREMANTLE TRUST,"2,096.00",12/06/2019
Delivery Units,Adults and Health,Other Agencies - Third Party P,0090170655,FREMANTLE TRUST,"2,096.00",12/06/2019
Delivery Units,Adults and Health,Other Agencies - Third Party P,0090170656,FREMANTLE TRUST,"2,284.00",12/06/2019
Delivery Units,Adults and Health,Other Agencies - Third Party P,0090170657,FREMANTLE TRUST,"2,096.00",12/06/2019
Delivery Units,Adults and Health,Other Agencies - Third Party P,0090170660,FREMANTLE TRUST,"2,284.00",12/06/2019
Delivery Units,Adults and Health,Other Agencies - Third Party P,0090170661,FREMANTLE TRUST,"2,284.00",12/06/2019
Delivery Units,Adults and Health,Other Agencies - Third Party P,0090170663,FREMANTLE TRUST,"2,096.00",12/06/2019
Delivery Units,Adults and Health,Other Agencies - Third Party P,0090170664,FREMANTLE TRUST,"2,284.00",12/06/2019
Delivery Units,Adults and Health,Other Agencies - Third Party P,0090170665,FREMANTLE TRUST,"2,284.00",12/06/2019
Delivery Units,Adults and Health,Other Agencies - Third Party P,0090170666,FREMANTLE TRUST,"2,096.00",12/06/2019
Delivery Units,Adults and Health,Other Agencies - Third Party P,0090170669,FREMANTLE TRUST,"2,096.00",12/06/2019
Delivery Units,Adults and Health,Other Agencies - Third Party P,0090170671,FREMANTLE TRUST,"2,096.00",12/06/2019
Delivery Units,Adults and Health,Other Agencies - Third Party P,0090170672,FREMANTLE TRUST,"2,284.00",12/06/2019
Delivery Units,Adults and Health,Other Agencies - Third Party P,0090170673,FREMANTLE TRUST,"2,096.00",12/06/2019
Delivery Units,Adults and Health,Other Agencies - Third Party P,0090170674,FREMANTLE TRUST,"2,284.00",12/06/2019
Delivery Units,Adults and Health,Other Agencies - Third Party P,0090170675,FREMANTLE TRUST,"2,096.00",12/06/2019
Delivery Units,Adults and Health,Other Agencies - Third Party P,0090170676,FREMANTLE TRUST,"2,284.00",12/06/2019
Delivery Units,Adults and Health,Other Agencies - Third Party P,0090170677,FREMANTLE TRUST,"2,284.00",12/06/2019
Delivery Units,Adults and Health,Other Agencies - Third Party P,0090170678,FREMANTLE TRUST,"2,284.00",12/06/2019
Delivery Units,Adults and Health,Other Agencies - Third Party P,0090170679,FREMANTLE TRUST,"2,284.00",12/06/2019
Delivery Units,Adults and Health,Other Agencies - Third Party P,0090170680,FREMANTLE TRUST,"2,284.00",12/06/2019
Delivery Units,Adults and Health,Other Agencies - Third Party P,0090170681,FREMANTLE TRUST,"2,284.00",12/06/2019
Delivery Units,Adults and Health,Other Agencies - Third Party P,0090170682,FREMANTLE TRUST,"2,284.00",12/06/2019
Delivery Units,Adults and Health,Other Agencies - Third Party P,0090170683,FREMANTLE TRUST,"2,284.00",12/06/2019
Delivery Units,Adults and Health,Other Agencies - Third Party P,0090170684,FREMANTLE TRUST,"2,284.00",12/06/2019
Delivery Units,Adults and Health,Other Agencies - Third Party P,0090170685,FREMANTLE TRUST,"2,284.00",12/06/2019
Delivery Units,Adults and Health,Other Agencies - Third Party P,0090170686,FREMANTLE TRUST,"2,096.00",12/06/2019
Delivery Units,Adults and Health,Other Agencies - Third Party P,0090170687,FREMANTLE TRUST,"2,284.00",12/06/2019
Delivery Units,Adults and Health,Other Agencies - Third Party P,0090170689,FREMANTLE TRUST,"2,096.00",12/06/2019
Delivery Units,Adults and Health,Other Agencies - Third Party P,0090170690,FREMANTLE TRUST,"2,096.00",12/06/2019
Delivery Units,Adults and Health,Other Agencies - Third Party P,0090170691,FREMANTLE TRUST,"2,096.00",12/06/2019
Delivery Units,Adults and Health,Other Agencies - Third Party P,0090170693,FREMANTLE TRUST,"2,096.00",12/06/2019
Delivery Units,Adults and Health,Other Agencies - Third Party P,0090170694,FREMANTLE TRUST,"2,096.00",12/06/2019
Delivery Units,Adults and Health,Other Agencies - Third Party P,0090170695,FREMANTLE TRUST,"2,096.00",12/06/2019
Delivery Units,Adults and Health,Other Agencies - Third Party P,0090170696,FREMANTLE TRUST,"2,096.00",12/06/2019
Delivery Units,Adults and Health,Other Agencies - Third Party P,0090170697,FREMANTLE TRUST,"2,096.00",12/06/2019
Delivery Units,Adults and Health,Other Agencies - Third Party P,0090170698,FREMANTLE TRUST,"2,096.00",12/06/2019
Delivery Units,Adults and Health,Other Agencies - Third Party P,0090170699,FREMANTLE TRUST,"2,096.00",12/06/2019
Delivery Units,Adults and Health,Other Agencies - Third Party P,0090170701,FREMANTLE TRUST,"2,096.00",12/06/2019
Delivery Units,Adults and Health,Other Agencies - Third Party P,0090170702,FREMANTLE TRUST,"2,096.00",12/06/2019
Delivery Units,Adults and Health,Other Agencies - Third Party P,0090170703,FREMANTLE TRUST,"2,096.00",12/06/2019
Delivery Units,Adults and Health,Other Agencies - Third Party P,0090170704,FREMANTLE TRUST,"2,096.00",12/06/2019
Delivery Units,Adults and Health,Other Agencies - Third Party P,0090170705,FREMANTLE TRUST,"2,096.00",12/06/2019
Delivery Units,Adults and Health,Other Agencies - Third Party P,0090170706,FREMANTLE TRUST,"2,284.00",12/06/2019
Delivery Units,Adults and Health,Other Agencies - Third Party P,0090170707,FREMANTLE TRUST,"2,096.00",12/06/2019
Delivery Units,Adults and Health,Other Agencies - Third Party P,0090170709,FREMANTLE TRUST,"2,096.00",12/06/2019
Delivery Units,Adults and Health,Other Agencies - Third Party P,0090170710,FREMANTLE TRUST,"2,096.00",12/06/2019
Delivery Units,Adults and Health,Other Agencies - Third Party P,0090170711,FREMANTLE TRUST,"2,284.00",12/06/2019
Delivery Units,Adults and Health,Other Agencies - Third Party P,0090170713,FREMANTLE TRUST,"2,096.00",12/06/2019
Delivery Units,Adults and Health,Other Agencies - Third Party P,0090170714,FREMANTLE TRUST,"2,096.00",12/06/2019
Delivery Units,Adults and Health,Other Agencies - Third Party P,0090170715,FREMANTLE TRUST,"2,096.00",12/06/2019
Delivery Units,Adults and Health,Other Agencies - Third Party P,0090170716,FREMANTLE TRUST,"2,284.00",12/06/2019
Delivery Units,Adults and Health,Other Agencies - Third Party P,0090170717,FREMANTLE TRUST,"2,096.00",12/06/2019
Delivery Units,Adults and Health,Other Agencies - Third Party P,0090170718,FREMANTLE TRUST,"2,284.00",12/06/2019
Delivery Units,Adults and Health,Other Agencies - Third Party P,0090170719,FREMANTLE TRUST,"2,096.00",12/06/2019
Delivery Units,Adults and Health,Other Agencies - Third Party P,0090170720,FREMANTLE TRUST,"2,284.00",12/06/2019
Delivery Units,Adults and Health,Other Agencies - Third Party P,0090170721,FREMANTLE TRUST,"2,284.00",12/06/2019
Delivery Units,Adults and Health,Other Agencies - Third Party P,0090170724,FREMANTLE TRUST,"2,096.00",12/06/2019
Delivery Units,Adults and Health,Other Agencies - Third Party P,0090170725,FREMANTLE TRUST,"2,284.00",12/06/2019
Delivery Units,Adults and Health,Other Agencies - Third Party P,0090170726,FREMANTLE TRUST,"2,096.00",12/06/2019
Delivery Units,Adults and Health,Other Agencies - Third Party P,0090170727,FREMANTLE TRUST,"2,284.00",12/06/2019
Delivery Units,Adults and Health,Other Agencies - Third Party P,0090170729,FREMANTLE TRUST,"2,284.00",12/06/2019
Delivery Units,Adults and Health,Other Agencies - Third Party P,0090170730,FREMANTLE TRUST,"2,096.00",12/06/2019
Delivery Units,Adults and Health,Other Agencies - Third Party P,0090170731,FREMANTLE TRUST,"2,096.00",12/06/2019
Delivery Units,Adults and Health,Other Agencies - Third Party P,0090170732,FREMANTLE TRUST,"2,284.00",12/06/2019
Delivery Units,Adults and Health,Other Agencies - Third Party P,0090170733,FREMANTLE TRUST,"2,096.00",12/06/2019
Delivery Units,Adults and Health,Other Agencies - Third Party P,0090170735,FREMANTLE TRUST,"2,284.00",12/06/2019
Delivery Units,Adults and Health,Other Agencies - Third Party P,0090170736,FREMANTLE TRUST,"2,284.00",12/06/2019
Delivery Units,Adults and Health,Other Agencies - Third Party P,0090170737,FREMANTLE TRUST,"2,096.00",12/06/2019
Delivery Units,Adults and Health,Other Agencies - Third Party P,0090170738,FREMANTLE TRUST,"2,096.00",12/06/2019
Delivery Units,Adults and Health,Other Agencies - Third Party P,0090170739,FREMANTLE TRUST,"4,491.43",12/06/2019
Delivery Units,Adults and Health,Other Agencies - Third Party P,0090170740,FREMANTLE TRUST,"4,548.86",12/06/2019
Delivery Units,Adults and Health,Other Agencies - Third Party P,0090170741,FREMANTLE TRUST,"4,222.40",12/06/2019
Delivery Units,Adults and Health,Other Agencies - Third Party P,0090170742,FREMANTLE TRUST,"1,423.52",12/06/2019
Delivery Units,Adults and Health,Other Agencies - Third Party P,0090170743,FREMANTLE TRUST,390.00,12/06/2019
Delivery Units,Adults and Health,Other Agencies - Third Party P,0090170744,FREMANTLE TRUST,"2,260.00",12/06/2019
Delivery Units,Adults and Health,Other Agencies - Third Party P,0090170747,FREMANTLE TRUST,"1,796.57",12/06/2019
Delivery Units,Adults and Health,Other Agencies - Third Party P,0090170748,FREMANTLE TRUST,"2,096.00",12/06/2019
Delivery Units,Adults and Health,Other Agencies - Third Party P,0090170749,FREMANTLE TRUST,973.14,12/06/2019
Delivery Units,Adults and Health,Other Agencies - Third Party P,0090170750,FREMANTLE TRUST,"2,284.00",12/06/2019
Delivery Units,Adults and Health,Other Agencies - Third Party P,0090170752,FREMANTLE TRUST,"2,096.00",12/06/2019
Delivery Units,Adults and Health,Other Agencies - Third Party P,0090170753,FREMANTLE TRUST,"2,284.00",12/06/2019
Delivery Units,Adults and Health,Other Agencies - Third Party P,0090169475,FRIARY LODGE,"3,321.43",05/06/2019
Delivery Units,Adults and Health,Other Agencies - Third Party P,0090170287,GCH (HERTFORDSHIRE) LTD T/A,"2,414.68",12/06/2019
Delivery Units,Adults and Health,Other Agencies - Third Party P,0090170286,GCH (NORTH LONDON) T/A THE TUDORS,"2,300.00",12/06/2019
Delivery Units,Adults and Health,Other Agencies - Third Party P,0090169469,HC-ONE OVAL LTD,"2,178.32",03/06/2019
Delivery Units,Adults and Health,Other Agencies - Third Party P,0090169515,HC-ONE OVAL LTD,"2,178.32",19/06/2019
Delivery Units,Adults and Health,Other Agencies - Third Party P,0090176306,HC-ONE OVAL LTD,"2,094.52",25/06/2019
Delivery Units,Adults and Health,Other Agencies - Third Party P,0090176307,HC-ONE OVAL LTD,"2,094.52",25/06/2019
Delivery Units,Adults and Health,Other Agencies - Third Party P,0090170139,HILTON LODGE LTD.,"2,880.00",10/06/2019
Delivery Units,Adults and Health,Other Agencies - Third Party P,0090170132,JACKSON CARE LIMITED,"5,142.86",06/06/2019
Delivery Units,Adults and Health,Other Agencies - Third Party P,0090166832,JEWISH CARE,-73.81,03/06/2019
Delivery Units,Adults and Health,Other Agencies - Third Party P,0090169097,JEWISH CARE,"2,482.36",03/06/2019
Delivery Units,Adults and Health,Other Agencies - Third Party P,0090169102,JEWISH CARE,"2,440.16",03/06/2019
Delivery Units,Adults and Health,Other Agencies - Third Party P,0090169103,JEWISH CARE,"2,484.56",03/06/2019
Delivery Units,Adults and Health,Other Agencies - Third Party P,0090169104,JEWISH CARE,"2,484.56",03/06/2019
Delivery Units,Adults and Health,Other Agencies - Third Party P,0090169105,JEWISH CARE,"2,296.24",03/06/2019
Delivery Units,Adults and Health,Other Agencies - Third Party P,0090169106,JEWISH CARE,"2,480.92",03/06/2019
Delivery Units,Adults and Health,Other Agencies - Third Party P,0090169107,JEWISH CARE,"2,484.56",03/06/2019
Delivery Units,Adults and Health,Other Agencies - Third Party P,0090169110,JEWISH CARE,"2,484.56",03/06/2019
Delivery Units,Adults and Health,Other Agencies - Third Party P,0090169112,JEWISH CARE,"2,296.24",03/06/2019
Delivery Units,Adults and Health,Other Agencies - Third Party P,0090169113,JEWISH CARE,"2,480.92",03/06/2019
Delivery Units,Adults and Health,Other Agencies - Third Party P,0090169116,JEWISH CARE,"2,480.92",03/06/2019
Delivery Units,Adults and Health,Other Agencies - Third Party P,0090169119,JEWISH CARE,"2,484.56",03/06/2019
Delivery Units,Adults and Health,Other Agencies - Third Party P,0090169121,JEWISH CARE,"2,296.24",03/06/2019
Delivery Units,Adults and Health,Other Agencies - Third Party P,0090169124,JEWISH CARE,"2,296.24",03/06/2019
Delivery Units,Adults and Health,Other Agencies - Third Party P,0090169125,JEWISH CARE,"2,296.24",03/06/2019
Delivery Units,Adults and Health,Other Agencies - Third Party P,0090169126,JEWISH CARE,"2,479.68",03/06/2019
Delivery Units,Adults and Health,Other Agencies - Third Party P,0090169128,JEWISH CARE,"2,482.36",03/06/2019
Delivery Units,Adults and Health,Other Agencies - Third Party P,0090169129,JEWISH CARE,"2,482.36",03/06/2019
Delivery Units,Adults and Health,Other Agencies - Third Party P,0090169130,JEWISH CARE,"2,482.36",03/06/2019
Delivery Units,Adults and Health,Other Agencies - Third Party P,0090169131,JEWISH CARE,"2,479.68",03/06/2019
Delivery Units,Adults and Health,Other Agencies - Third Party P,0090169132,JEWISH CARE,"2,296.24",03/06/2019
Delivery Units,Adults and Health,Other Agencies - Third Party P,0090169136,JEWISH CARE,"2,482.36",03/06/2019
Delivery Units,Adults and Health,Other Agencies - Third Party P,0090169140,JEWISH CARE,"2,296.24",03/06/2019
Delivery Units,Adults and Health,Other Agencies - Third Party P,0090169142,JEWISH CARE,"2,649.36",03/06/2019
Delivery Units,Adults and Health,Other Agencies - Third Party P,0090169149,JEWISH CARE,"2,296.24",03/06/2019
Delivery Units,Adults and Health,Other Agencies - Third Party P,0090169150,JEWISH CARE,"2,296.24",03/06/2019
Delivery Units,Adults and Health,Other Agencies - Third Party P,0090169151,JEWISH CARE,"2,480.92",03/06/2019
Delivery Units,Adults and Health,Other Agencies - Third Party P,0090169154,JEWISH CARE,"2,296.24",03/06/2019
Delivery Units,Adults and Health,Other Agencies - Third Party P,0090169155,JEWISH CARE,"2,480.92",03/06/2019
Delivery Units,Adults and Health,Other Agencies - Third Party P,0090169156,JEWISH CARE,"2,484.56",03/06/2019
Delivery Units,Adults and Health,Other Agencies - Third Party P,0090169158,JEWISH CARE,"2,484.56",03/06/2019
Delivery Units,Adults and Health,Other Agencies - Third Party P,0090169160,JEWISH CARE,"2,479.68",03/06/2019
Delivery Units,Adults and Health,Other Agencies - Third Party P,0090169162,JEWISH CARE,"2,482.36",03/06/2019
Delivery Units,Adults and Health,Other Agencies - Third Party P,0090169166,JEWISH CARE,"2,296.24",03/06/2019
Delivery Units,Adults and Health,Other Agencies - Third Party P,0090169167,JEWISH CARE,"2,479.68",03/06/2019
Delivery Units,Adults and Health,Other Agencies - Third Party P,0090169169,JEWISH CARE,"2,480.92",03/06/2019
Delivery Units,Adults and Health,Other Agencies - Third Party P,0090169171,JEWISH CARE,"2,649.36",03/06/2019
Delivery Units,Adults and Health,Other Agencies - Third Party P,0090169172,JEWISH CARE,"2,480.92",03/06/2019
Delivery Units,Adults and Health,Other Agencies - Third Party P,0090169175,JEWISH CARE,"2,479.68",03/06/2019
Delivery Units,Adults and Health,Other Agencies - Third Party P,0090169176,JEWISH CARE,"2,479.68",03/06/2019
Delivery Units,Adults and Health,Other Agencies - Third Party P,0090169177,JEWISH CARE,"2,482.36",03/06/2019
Delivery Units,Adults and Health,Other Agencies - Third Party P,0090169178,JEWISH CARE,"2,484.56",03/06/2019
Delivery Units,Adults and Health,Other Agencies - Third Party P,0090169180,JEWISH CARE,"2,484.56",03/06/2019
Delivery Units,Adults and Health,Other Agencies - Third Party P,0090169182,JEWISH CARE,"2,296.24",03/06/2019
Delivery Units,Adults and Health,Other Agencies - Third Party P,0090169183,JEWISH CARE,"1,558.17",03/06/2019
Delivery Units,Adults and Health,Other Agencies - Third Party P,0090169185,JEWISH CARE,"4,416.04",03/06/2019
Delivery Units,Adults and Health,Other Agencies - Third Party P,0090169186,JEWISH CARE,"2,479.68",03/06/2019
Delivery Units,Adults and Health,Other Agencies - Third Party P,0090169187,JEWISH CARE,"2,480.92",03/06/2019
Delivery Units,Adults and Health,Other Agencies - Third Party P,0090169188,JEWISH CARE,"2,480.92",03/06/2019
Delivery Units,Adults and Health,Other Agencies - Third Party P,0090169189,JEWISH CARE,351.42,03/06/2019
Delivery Units,Adults and Health,Other Agencies - Third Party P,0090169190,JEWISH CARE,"2,479.68",03/06/2019
Delivery Units,Adults and Health,Other Agencies - Third Party P,0090169191,JEWISH CARE,"4,265.48",03/06/2019
Delivery Units,Adults and Health,Other Agencies - Third Party P,0090169193,JEWISH CARE,"2,280.32",03/06/2019
Delivery Units,Adults and Health,Other Agencies - Third Party P,0090169194,JEWISH CARE,"2,296.24",03/06/2019
Delivery Units,Adults and Health,Other Agencies - Third Party P,0090169195,JEWISH CARE,"2,156.80",03/06/2019
Delivery Units,Adults and Health,Other Agencies - Third Party P,0090169198,JEWISH CARE,"2,480.92",03/06/2019
Delivery Units,Adults and Health,Other Agencies - Third Party P,0090169199,JEWISH CARE,"2,482.36",03/06/2019
Delivery Units,Adults and Health,Other Agencies - Third Party P,0090169200,JEWISH CARE,"2,482.36",03/06/2019
Delivery Units,Adults and Health,Other Agencies - Third Party P,0090169201,JEWISH CARE,"2,296.24",03/06/2019
Delivery Units,Adults and Health,Other Agencies - Third Party P,0090169204,JEWISH CARE,"2,482.36",03/06/2019
Delivery Units,Adults and Health,Other Agencies - Third Party P,0090169205,JEWISH CARE,"4,922.72",03/06/2019
Delivery Units,Adults and Health,Other Agencies - Third Party P,0090169206,JEWISH CARE,"2,480.92",03/06/2019
Delivery Units,Adults and Health,Other Agencies - Third Party P,0090169210,JEWISH CARE,"2,296.24",03/06/2019
Delivery Units,Adults and Health,Other Agencies - Third Party P,0090169213,JEWISH CARE,"2,480.92",03/06/2019
Delivery Units,Adults and Health,Other Agencies - Third Party P,0090169216,JEWISH CARE,"2,479.68",03/06/2019
Delivery Units,Adults and Health,Other Agencies - Third Party P,0090169218,JEWISH CARE,"2,479.68",03/06/2019
Delivery Units,Adults and Health,Other Agencies - Third Party P,0090169219,JEWISH CARE,"2,484.56",03/06/2019
Delivery Units,Adults and Health,Other Agencies - Third Party P,0090169220,JEWISH CARE,"2,482.36",03/06/2019
Delivery Units,Adults and Health,Other Agencies - Third Party P,0090169223,JEWISH CARE,"2,484.56",03/06/2019
Delivery Units,Adults and Health,Other Agencies - Third Party P,0090176065,JEWISH CARE,"2,480.92",24/06/2019
Delivery Units,Adults and Health,Other Agencies - Third Party P,0090176068,JEWISH CARE,"2,480.92",24/06/2019
Delivery Units,Adults and Health,Other Agencies - Third Party P,0090176071,JEWISH CARE,"2,484.56",24/06/2019
Delivery Units,Adults and Health,Other Agencies - Third Party P,0090176073,JEWISH CARE,"2,296.24",24/06/2019
Delivery Units,Adults and Health,Other Agencies - Third Party P,0090176076,JEWISH CARE,"2,296.24",24/06/2019
Delivery Units,Adults and Health,Other Agencies - Third Party P,0090176077,JEWISH CARE,"2,296.24",24/06/2019
Delivery Units,Adults and Health,Other Agencies - Third Party P,0090176078,JEWISH CARE,"2,479.68",24/06/2019
Delivery Units,Adults and Health,Other Agencies - Third Party P,0090176080,JEWISH CARE,"2,482.36",24/06/2019
Delivery Units,Adults and Health,Other Agencies - Third Party P,0090176081,JEWISH CARE,"2,482.36",24/06/2019
Delivery Units,Adults and Health,Other Agencies - Third Party P,0090176082,JEWISH CARE,"2,482.36",24/06/2019
Delivery Units,Adults and Health,Other Agencies - Third Party P,0090176083,JEWISH CARE,"2,479.68",24/06/2019
Delivery Units,Adults and Health,Other Agencies - Third Party P,0090176084,JEWISH CARE,"2,296.24",24/06/2019
Delivery Units,Adults and Health,Other Agencies - Third Party P,0090176088,JEWISH CARE,"2,482.36",24/06/2019
Delivery Units,Adults and Health,Other Agencies - Third Party P,0090176091,JEWISH CARE,"4,416.04",24/06/2019
Delivery Units,Adults and Health,Other Agencies - Third Party P,0090176092,JEWISH CARE,"2,479.68",24/06/2019
Delivery Units,Adults and Health,Other Agencies - Third Party P,0090176093,JEWISH CARE,"2,480.92",24/06/2019
Delivery Units,Adults and Health,Other Agencies - Third Party P,0090176094,JEWISH CARE,"2,480.92",24/06/2019
Delivery Units,Adults and Health,Other Agencies - Third Party P,0090176095,JEWISH CARE,887.34,24/06/2019
Delivery Units,Adults and Health,Other Agencies - Third Party P,0090176096,JEWISH CARE,"2,479.68",24/06/2019
Delivery Units,Adults and Health,Other Agencies - Third Party P,0090176097,JEWISH CARE,"4,265.48",24/06/2019
Delivery Units,Adults and Health,Other Agencies - Third Party P,0090176099,JEWISH CARE,"2,280.32",24/06/2019
Delivery Units,Adults and Health,Other Agencies - Third Party P,0090176100,JEWISH CARE,"2,296.24",24/06/2019
Delivery Units,Adults and Health,Other Agencies - Third Party P,0090176101,JEWISH CARE,"2,156.80",24/06/2019
Delivery Units,Adults and Health,Other Agencies - Third Party P,0090176104,JEWISH CARE,"2,480.92",24/06/2019
Delivery Units,Adults and Health,Other Agencies - Third Party P,0090176105,JEWISH CARE,"2,482.36",24/06/2019
Delivery Units,Adults and Health,Other Agencies - Third Party P,0090176106,JEWISH CARE,"2,482.36",24/06/2019
Delivery Units,Adults and Health,Other Agencies - Third Party P,0090176107,JEWISH CARE,"2,296.24",24/06/2019
Delivery Units,Adults and Health,Other Agencies - Third Party P,0090176110,JEWISH CARE,"2,482.36",24/06/2019
Delivery Units,Adults and Health,Other Agencies - Third Party P,0090176111,JEWISH CARE,"2,296.24",24/06/2019
Delivery Units,Adults and Health,Other Agencies - Third Party P,0090176112,JEWISH CARE,"2,479.68",24/06/2019
Delivery Units,Adults and Health,Other Agencies - Third Party P,0090176114,JEWISH CARE,"2,480.92",24/06/2019
Delivery Units,Adults and Health,Other Agencies - Third Party P,0090176116,JEWISH CARE,"2,649.36",24/06/2019
Delivery Units,Adults and Health,Other Agencies - Third Party P,0090176117,JEWISH CARE,"2,480.92",24/06/2019
Delivery Units,Adults and Health,Other Agencies - Third Party P,0090176120,JEWISH CARE,"2,479.68",24/06/2019
Delivery Units,Adults and Health,Other Agencies - Third Party P,0090176121,JEWISH CARE,"2,479.68",24/06/2019
Delivery Units,Adults and Health,Other Agencies - Third Party P,0090176122,JEWISH CARE,"2,482.36",24/06/2019
Delivery Units,Adults and Health,Other Agencies - Third Party P,0090176123,JEWISH CARE,"2,484.56",24/06/2019
Delivery Units,Adults and Health,Other Agencies - Third Party P,0090176125,JEWISH CARE,"2,484.56",24/06/2019
Delivery Units,Adults and Health,Other Agencies - Third Party P,0090176127,JEWISH CARE,"2,296.24",24/06/2019
Delivery Units,Adults and Health,Other Agencies - Third Party P,0090176130,JEWISH CARE,"2,296.24",24/06/2019
Delivery Units,Adults and Health,Other Agencies - Third Party P,0090176138,JEWISH CARE,"2,296.24",24/06/2019
Delivery Units,Adults and Health,Other Agencies - Third Party P,0090176139,JEWISH CARE,"2,296.24",24/06/2019
Delivery Units,Adults and Health,Other Agencies - Third Party P,0090176140,JEWISH CARE,"2,480.92",24/06/2019
Delivery Units,Adults and Health,Other Agencies - Third Party P,0090176143,JEWISH CARE,820.09,24/06/2019
Delivery Units,Adults and Health,Other Agencies - Third Party P,0090176144,JEWISH CARE,"2,480.92",24/06/2019
Delivery Units,Adults and Health,Other Agencies - Third Party P,0090176145,JEWISH CARE,88.73,24/06/2019
Delivery Units,Adults and Health,Other Agencies - Third Party P,0090176147,JEWISH CARE,"2,484.56",24/06/2019
Delivery Units,Adults and Health,Other Agencies - Third Party P,0090176149,JEWISH CARE,"2,479.68",24/06/2019
Delivery Units,Adults and Health,Other Agencies - Third Party P,0090176151,JEWISH CARE,"2,482.36",24/06/2019
Delivery Units,Adults and Health,Other Agencies - Third Party P,0090176155,JEWISH CARE,"2,482.36",24/06/2019
Delivery Units,Adults and Health,Other Agencies - Third Party P,0090176160,JEWISH CARE,"2,440.16",24/06/2019
Delivery Units,Adults and Health,Other Agencies - Third Party P,0090176161,JEWISH CARE,"2,484.56",24/06/2019
Delivery Units,Adults and Health,Other Agencies - Third Party P,0090176162,JEWISH CARE,"2,484.56",24/06/2019
Delivery Units,Adults and Health,Other Agencies - Third Party P,0090176163,JEWISH CARE,"2,296.24",24/06/2019
Delivery Units,Adults and Health,Other Agencies - Third Party P,0090176164,JEWISH CARE,"2,480.92",24/06/2019
Delivery Units,Adults and Health,Other Agencies - Third Party P,0090176165,JEWISH CARE,"2,484.56",24/06/2019
Delivery Units,Adults and Health,Other Agencies - Third Party P,0090176168,JEWISH CARE,"2,484.56",24/06/2019
Delivery Units,Adults and Health,Other Agencies - Third Party P,0090176169,JEWISH CARE,"2,296.24",24/06/2019
Delivery Units,Adults and Health,Other Agencies - Third Party P,0090176170,JEWISH CARE,"4,922.72",24/06/2019
Delivery Units,Adults and Health,Other Agencies - Third Party P,0090176171,JEWISH CARE,"2,480.92",24/06/2019
Delivery Units,Adults and Health,Other Agencies - Third Party P,0090176175,JEWISH CARE,"2,296.24",24/06/2019
Delivery Units,Adults and Health,Other Agencies - Third Party P,0090176178,JEWISH CARE,"2,480.92",24/06/2019
Delivery Units,Adults and Health,Other Agencies - Third Party P,0090176181,JEWISH CARE,"2,479.68",24/06/2019
Delivery Units,Adults and Health,Other Agencies - Third Party P,0090176182,JEWISH CARE,"2,479.68",24/06/2019
Delivery Units,Adults and Health,Other Agencies - Third Party P,0090176183,JEWISH CARE,"2,484.56",24/06/2019
Delivery Units,Adults and Health,Other Agencies - Third Party P,0090176184,JEWISH CARE,"2,482.36",24/06/2019
Delivery Units,Adults and Health,Other Agencies - Third Party P,0090176187,JEWISH CARE,"2,484.56",24/06/2019
Delivery Units,Adults and Health,Other Agencies - Third Party P,0090176188,JEWISH CARE,"2,392.32",24/06/2019
Delivery Units,Adults and Health,Other Agencies - Third Party P,0090176189,JEWISH CARE,"13,723.33",24/06/2019
Delivery Units,Adults and Health,Other Agencies - Third Party P,0090176191,JEWISH CARE,"14,475.48",25/06/2019
Delivery Units,Adults and Health,Other Agencies - Third Party P,0090171535,KARUNA MANOR,"3,981.43",14/06/2019
Delivery Units,Adults and Health,Other Agencies - Third Party P,0090171536,KARUNA MANOR,"4,071.43",14/06/2019
Delivery Units,Adults and Health,Other Agencies - Third Party P,0090177813,LIVABILITY,"3,424.00",27/06/2019
Delivery Units,Adults and Health,Other Agencies - Third Party P,0090177818,LIVABILITY,"3,180.00",27/06/2019
Delivery Units,Adults and Health,Other Agencies - Third Party P,0090171722,LYNDON (THE SALVATION ARMY),"2,104.25",17/06/2019
Delivery Units,Adults and Health,Other Agencies - Third Party P,0090171723,LYNDON (THE SALVATION ARMY),505.02,17/06/2019
Delivery Units,Adults and Health,Other Agencies - Third Party P,0090171759,LYNDON (THE SALVATION ARMY),"2,020.08",17/06/2019
Delivery Units,Adults and Health,Other Agencies - Third Party P,0090176291,MEERA NURSING HOME LIMITED,"4,800.00",25/06/2019
Delivery Units,Adults and Health,Other Agencies - Third Party P,0090169463,METHODIST HOMES FOR THE AGED,857.14,06/06/2019
Delivery Units,Adults and Health,Other Agencies - Third Party P,0090173206,METHODIST HOMES FOR THE AGED,"2,631.76",21/06/2019
Delivery Units,Adults and Health,Other Agencies - Third Party P,0090170416,NAZARETH HOUSE,126.72,12/06/2019
Delivery Units,Adults and Health,Other Agencies - Third Party P,0090170417,NAZARETH HOUSE,117.92,12/06/2019
Delivery Units,Adults and Health,Other Agencies - Third Party P,0090170418,NAZARETH HOUSE,117.92,12/06/2019
Delivery Units,Adults and Health,Other Agencies - Third Party P,0090170419,NAZARETH HOUSE,117.92,12/06/2019
Delivery Units,Adults and Health,Other Agencies - Third Party P,0090170420,NAZARETH HOUSE,126.72,12/06/2019
Delivery Units,Adults and Health,Other Agencies - Third Party P,0090170421,NAZARETH HOUSE,117.92,12/06/2019
Delivery Units,Adults and Health,Other Agencies - Third Party P,0090170422,NAZARETH HOUSE,117.92,12/06/2019
Delivery Units,Adults and Health,Other Agencies - Third Party P,0090170423,NAZARETH HOUSE,117.92,12/06/2019
Delivery Units,Adults and Health,Other Agencies - Third Party P,0090170424,NAZARETH HOUSE,117.92,12/06/2019
Delivery Units,Adults and Health,Other Agencies - Third Party P,0090170425,NAZARETH HOUSE,117.92,12/06/2019
Delivery Units,Adults and Health,Other Agencies - Third Party P,0090171570,NAZARETH HOUSE,"2,144.00",14/06/2019
Delivery Units,Adults and Health,Other Agencies - Third Party P,0090171571,NAZARETH HOUSE,"2,304.00",14/06/2019
Delivery Units,Adults and Health,Other Agencies - Third Party P,0090171572,NAZARETH HOUSE,"2,144.00",14/06/2019
Delivery Units,Adults and Health,Other Agencies - Third Party P,0090171573,NAZARETH HOUSE,"2,144.00",14/06/2019
Delivery Units,Adults and Health,Other Agencies - Third Party P,0090171574,NAZARETH HOUSE,"2,144.00",14/06/2019
Delivery Units,Adults and Health,Other Agencies - Third Party P,0090171575,NAZARETH HOUSE,"2,304.00",14/06/2019
Delivery Units,Adults and Health,Other Agencies - Third Party P,0090171576,NAZARETH HOUSE,"2,144.00",14/06/2019
Delivery Units,Adults and Health,Other Agencies - Third Party P,0090171577,NAZARETH HOUSE,"2,144.00",14/06/2019
Delivery Units,Adults and Health,Other Agencies - Third Party P,0090171578,NAZARETH HOUSE,"2,080.00",14/06/2019
Delivery Units,Adults and Health,Other Agencies - Third Party P,0090171580,NAZARETH HOUSE,"2,144.00",14/06/2019
Delivery Units,Adults and Health,Other Agencies - Third Party P,0090171581,NAZARETH HOUSE,"2,144.00",14/06/2019
Delivery Units,Adults and Health,Other Agencies - Third Party P,0090171582,NAZARETH HOUSE,"2,144.00",14/06/2019
Delivery Units,Adults and Health,Other Agencies - Third Party P,0090171583,NAZARETH HOUSE,"2,144.00",14/06/2019
Delivery Units,Adults and Health,Other Agencies - Third Party P,0090171584,NAZARETH HOUSE,"2,144.00",14/06/2019
Delivery Units,Adults and Health,Other Agencies - Third Party P,0090171585,NAZARETH HOUSE,"2,650.40",14/06/2019
Delivery Units,Adults and Health,Other Agencies - Third Party P,0090171586,NAZARETH HOUSE,"2,208.00",14/06/2019
Delivery Units,Adults and Health,Other Agencies - Third Party P,0090171587,NAZARETH HOUSE,"2,144.00",14/06/2019
Delivery Units,Adults and Health,Other Agencies - Third Party P,0090171588,NAZARETH HOUSE,"2,080.00",14/06/2019
Delivery Units,Adults and Health,Other Agencies - Third Party P,0090171589,NAZARETH HOUSE,"2,080.00",14/06/2019
Delivery Units,Adults and Health,Other Agencies - Third Party P,0090172003,NAZARETH HOUSE,"1,128.20",17/06/2019
Delivery Units,Adults and Health,Other Agencies - Third Party P,0090172004,NAZARETH HOUSE,"1,128.20",17/06/2019
Delivery Units,Adults and Health,Other Agencies - Third Party P,0090175848,NAZARETH HOUSE,117.92,24/06/2019
Delivery Units,Adults and Health,Other Agencies - Third Party P,0090175857,NAZARETH HOUSE,-58.08,24/06/2019
Delivery Units,Adults and Health,Other Agencies - Third Party P,0090175858,NAZARETH HOUSE,117.92,24/06/2019
Delivery Units,Adults and Health,Other Agencies - Third Party P,0090170443,NIGHTINGALE HOUSE,"2,437.71",12/06/2019
Delivery Units,Adults and Health,Other Agencies - Third Party P,0090170444,NIGHTINGALE HOUSE,"2,437.71",12/06/2019
Delivery Units,Adults and Health,Other Agencies - Third Party P,0090170186,ONE HOUSING GROUP - BAYCROFT HOMES,"6,165.24",06/06/2019
Delivery Units,Adults and Health,Other Agencies - Third Party P,0090172814,QUANTUM CARE LIMITED,"3,321.43",18/06/2019
Delivery Units,Adults and Health,Other Agencies - Third Party P,0090173221,QUANTUM CARE LIMITED,"4,207.14",21/06/2019
Delivery Units,Adults and Health,Other Agencies - Third Party P,0090171543,R.M.B.I,"2,176.89",14/06/2019
Delivery Units,Adults and Health,Other Agencies - Third Party P,0090169470,ROSEACRES CARE HOME LIMITED,"2,785.71",03/06/2019
Delivery Units,Adults and Health,Other Agencies - Third Party P,0090169643,ROSEACRES CARE HOME LIMITED,"3,321.43",04/06/2019
Delivery Units,Adults and Health,Other Agencies - Third Party P,0090169644,ROSEACRES CARE HOME LIMITED,"3,214.29",04/06/2019
Delivery Units,Adults and Health,Other Agencies - Third Party P,0090170886,ROSEACRES CARE HOME LIMITED,"3,214.29",19/06/2019
Delivery Units,Adults and Health,Other Agencies - Third Party P,0090170887,ROSEACRES CARE HOME LIMITED,"2,468.57",19/06/2019
Delivery Units,Adults and Health,Other Agencies - Third Party P,0090170889,ROSEACRES CARE HOME LIMITED,"2,297.14",19/06/2019
Delivery Units,Adults and Health,Other Agencies - Third Party P,0090170892,ROSEACRES CARE HOME LIMITED,"3,214.29",19/06/2019
Delivery Units,Adults and Health,Other Agencies - Third Party P,0090170897,ROSEACRES CARE HOME LIMITED,"2,468.57",19/06/2019
Delivery Units,Adults and Health,Other Agencies - Third Party P,0090170898,ROSEACRES CARE HOME LIMITED,"3,214.29",19/06/2019
Delivery Units,Adults and Health,Other Agencies - Third Party P,0090170899,ROSEACRES CARE HOME LIMITED,"2,468.57",19/06/2019
Delivery Units,Adults and Health,Other Agencies - Third Party P,0090170900,ROSEACRES CARE HOME LIMITED,"2,468.57",19/06/2019
Delivery Units,Adults and Health,Other Agencies - Third Party P,0090170901,ROSEACRES CARE HOME LIMITED,"3,642.86",19/06/2019
Delivery Units,Adults and Health,Other Agencies - Third Party P,0090170902,ROSEACRES CARE HOME LIMITED,"2,468.57",19/06/2019
Delivery Units,Adults and Health,Other Agencies - Third Party P,0090170903,ROSEACRES CARE HOME LIMITED,"3,214.29",19/06/2019
Delivery Units,Adults and Health,Other Agencies - Third Party P,0090170306,SCIMITAR CARE HOTELS PLC,"3,857.14",12/06/2019
Delivery Units,Adults and Health,Other Agencies - Third Party P,0090170307,SCIMITAR CARE HOTELS PLC,"3,642.86",27/06/2019
Delivery Units,Adults and Health,Other Agencies - Third Party P,0090170308,SCIMITAR CARE HOTELS PLC,"4,071.43",27/06/2019
Delivery Units,Adults and Health,Other Agencies - Third Party P,0090170309,SCIMITAR CARE HOTELS PLC,"3,310.71",27/06/2019
Delivery Units,Adults and Health,Other Agencies - Third Party P,0090171545,SONNET CARE HOMES (ESSEX) LTD,"4,714.29",18/06/2019
Delivery Units,Adults and Health,Other Agencies - Third Party P,0090169677,SPANISH AND PORTUGUESE JEWISH,"2,674.86",13/06/2019
Delivery Units,Adults and Health,Other Agencies - Third Party P,0090169319,SUNRIDGE HOUSING ASSOCIATION LTD,"15,051.89",06/06/2019
Delivery Units,Adults and Health,Other Agencies - Third Party P,0090170490,SUNRIDGE HOUSING ASSOCIATION LTD,"2,893.14",12/06/2019
Delivery Units,Adults and Health,Other Agencies - Third Party P,0090170491,SUNRIDGE HOUSING ASSOCIATION LTD,"2,804.70",12/06/2019
Delivery Units,Adults and Health,Other Agencies - Third Party P,0090171254,SUNRIDGE HOUSING ASSOCIATION LTD,"2,989.58",14/06/2019
Delivery Units,Adults and Health,Other Agencies - Third Party P,0090170434,SWANBOROUGH HOUSE,"4,121.27",12/06/2019
Delivery Units,Adults and Health,Other Agencies - Third Party P,0090176298,SWANBOROUGH HOUSE,"3,988.33",25/06/2019
Delivery Units,Adults and Health,Other Agencies - Third Party P,0090170496,TENTERDEN HOUSE,"3,829.84",14/06/2019
Delivery Units,Adults and Health,Other Agencies - Third Party P,0090170295,THE CHRISTIAN CARE TRUST,"2,350.08",12/06/2019
Delivery Units,Adults and Health,Other Agencies - Third Party P,0090170296,THE CHRISTIAN CARE TRUST,"2,350.08",12/06/2019
Delivery Units,Adults and Health,Other Agencies - Third Party P,0090170304,THE GRANGE,"2,600.00",12/06/2019
Delivery Units,Adults and Health,Other Agencies - Third Party P,0090170305,THE GRANGE,"2,350.08",12/06/2019
Delivery Units,Adults and Health,Other Agencies - Third Party P,0090170925,THE LIMES RESIDENTIAL HOME,"2,517.94",19/06/2019
Delivery Units,Adults and Health,Other Agencies - Third Party P,0090170926,THE LIMES RESIDENTIAL HOME,"2,343.09",19/06/2019
Delivery Units,Adults and Health,Other Agencies - Third Party P,0090170927,THE LIMES RESIDENTIAL HOME,"2,785.71",19/06/2019
Delivery Units,Adults and Health,Other Agencies - Third Party P,0090170929,THE LIMES RESIDENTIAL HOME,"2,517.94",19/06/2019
Delivery Units,Adults and Health,Other Agencies - Third Party P,0090170930,THE LIMES RESIDENTIAL HOME,"2,517.94",19/06/2019
Delivery Units,Adults and Health,Other Agencies - Third Party P,0090170931,THE LIMES RESIDENTIAL HOME,"2,517.94",19/06/2019
Delivery Units,Adults and Health,Other Agencies - Third Party P,0090170933,THE LIMES RESIDENTIAL HOME,"2,517.94",19/06/2019
Delivery Units,Adults and Health,Other Agencies - Third Party P,0090170934,THE LIMES RESIDENTIAL HOME,"2,343.09",19/06/2019
Delivery Units,Adults and Health,Other Agencies - Third Party P,0090170935,THE LIMES RESIDENTIAL HOME,"2,517.94",19/06/2019
Delivery Units,Adults and Health,Other Agencies - Third Party P,0090170936,THE LIMES RESIDENTIAL HOME,"2,468.57",19/06/2019
Delivery Units,Adults and Health,Other Agencies - Third Party P,0090170937,THE LIMES RESIDENTIAL HOME,"2,517.94",19/06/2019
Delivery Units,Adults and Health,Other Agencies - Third Party P,0090170938,THE LIMES RESIDENTIAL HOME,"2,468.57",19/06/2019
Delivery Units,Adults and Health,Other Agencies - Third Party P,0090170939,THE LIMES RESIDENTIAL HOME,"2,517.94",19/06/2019
Delivery Units,Adults and Health,Other Agencies - Third Party P,0090173192,THE LIMES RESIDENTIAL HOME,"2,517.94",19/06/2019
Delivery Units,Adults and Health,Other Agencies - Third Party P,0090169508,THE WOODSIDE HOME,390.50,06/06/2019
Delivery Units,Adults and Health,Other Agencies - Third Party P,0090171199,THE WOODSIDE HOME,"2,186.88",14/06/2019
Delivery Units,Adults and Health,Other Agencies - Third Party P,0090171200,THE WOODSIDE HOME,"2,186.88",14/06/2019
Delivery Units,Adults and Health,Other Agencies - Third Party P,0090171201,THE WOODSIDE HOME,"2,186.88",14/06/2019
Delivery Units,Adults and Health,Other Agencies - Third Party P,0090171203,THE WOODSIDE HOME,"2,186.88",14/06/2019
Delivery Units,Adults and Health,Other Agencies - Third Party P,0090170913,TORRINGTON HOMES,"2,369.79",13/06/2019
Delivery Units,Adults and Health,Other Agencies - Third Party P,0090170914,TORRINGTON HOMES,"2,176.89",13/06/2019
Delivery Units,Adults and Health,Other Agencies - Third Party P,0090170916,TORRINGTON HOMES,"2,369.79",13/06/2019
Delivery Units,Adults and Health,Other Agencies - Third Party P,0090170918,TORRINGTON HOMES,"2,448.78",13/06/2019
Delivery Units,Adults and Health,Other Agencies - Third Party P,0090170919,TORRINGTON HOMES,"2,249.45",13/06/2019
Delivery Units,Adults and Health,Other Agencies - Third Party P,0090170921,TORRINGTON HOMES,"2,448.78",13/06/2019
Delivery Units,Adults and Health,Other Agencies - Third Party P,0090169471,VENTRY RESIDENTIAL CARE LTD,"1,300.00",03/06/2019
Delivery Units,Adults and Health,Other Agencies - Third Party P,0090176313,VENTRY RESIDENTIAL CARE LTD,"1,200.00",25/06/2019
Delivery Units,Adults and Health,Other Agencies - Third Party P,0090176315,VENTRY RESIDENTIAL CARE LTD,"2,601.87",25/06/2019
Delivery Units,Adults and Health,Other Agencies - Third Party P,0090171244,WESTMINSTER HEALTH CARE LTD,"3,741.92",14/06/2019
Delivery Units,Adults and Health,Other Agencies - Third Party P,0090171993,WILTON HOUSE LTD,"2,621.01",17/06/2019
Delivery Units,Adults and Health,Other Agencies - Third Party P,0090172018,WILTON HOUSE LTD,"2,536.46",17/06/2019
Delivery Units,Adults and Health,Other Agencies - Third Party P,0090172019,WILTON HOUSE LTD,"2,527.24",17/06/2019
Delivery Units,Adults and Health,Other Agencies - Third Party P,0090172020,WILTON HOUSE LTD,"2,611.48",17/06/2019
Delivery Units,Adults and Health,Other Agencies - Third Party P,0090172021,WILTON HOUSE LTD,"2,527.24",17/06/2019
Delivery Units,Adults and Health,Other Agencies - Third Party P,0090169645,WORDSWORTH HOUSE CARE HOME,"2,571.43",04/06/2019
Delivery Units,Adults and Health,Other Agencies - Third Party P,0090169646,WORDSWORTH HOUSE CARE HOME,"2,657.14",04/06/2019
Delivery Units,Adults and Health,Other Agencies - Third Party P,0090169647,WORDSWORTH HOUSE CARE HOME,"2,571.43",04/06/2019
Delivery Units,Adults and Health,Other Agencies - Third Party P,0090169648,WORDSWORTH HOUSE CARE HOME,"2,657.14",04/06/2019
Delivery Units,Adults and Health,Other Agencies - Third Party P,0090170310,WORDSWORTH HOUSE CARE HOME,"2,571.43",12/06/2019
Delivery Units,Adults and Health,Other Agencies - Third Party P,0090170311,WORDSWORTH HOUSE CARE HOME,"2,571.43",12/06/2019
Delivery Units,Adults and Health,Other Agencies - Third Party P,0090172845,YORK HOMES (DORSET) LTD,"2,600.00",18/06/2019
Delivery Units,Adults and Health,Direct Transfer Payments to So,0090166672,REDACTED - PERSONAL DATA,"2,027.36",13/06/2019
Delivery Units,Adults and Health,Fees and Charges,0090171138,REDACTED - PERSONAL DATA,-179.60,25/06/2019
Delivery Units,Adults and Health,Direct Transfer Payments to So,0090177654,REDACTED - PERSONAL DATA,"1,143.16",25/06/2019
Delivery Units,Adults and Health,Direct Transfer Payments to So,0090177167,REDACTED - PERSONAL DATA,360.60,25/06/2019
Delivery Units,Adults and Health,Direct Transfer Payments to So,0090177683,REDACTED - PERSONAL DATA,348.00,25/06/2019
Delivery Units,Adults and Health,Direct Transfer Payments to So,0090177190,REDACTED - PERSONAL DATA,"1,560.72",25/06/2019
Delivery Units,Adults and Health,Direct Transfer Payments to So,0090177553,REDACTED - PERSONAL DATA,377.88,25/06/2019
Delivery Units,Adults and Health,Fees and Charges,0090176203,REDACTED - PERSONAL DATA,-16.00,25/06/2019
Delivery Units,Adults and Health,Direct Transfer Payments to So,0090177087,REDACTED - PERSONAL DATA,"1,185.32",25/06/2019
Delivery Units,Adults and Health,Direct Transfer Payments to So,0090170210,REDACTED - PERSONAL DATA,"1,919.12",06/06/2019
Delivery Units,Adults and Health,Direct Transfer Payments to So,0090171172,REDACTED - PERSONAL DATA,"1,084.77",25/06/2019
Delivery Units,Adults and Health,Direct Transfer Payments to So,0090177790,REDACTED - PERSONAL DATA,349.12,25/06/2019
Delivery Units,Adults and Health,Fees and Charges,0090176209,REDACTED - PERSONAL DATA,-2.40,25/06/2019
Delivery Units,Adults and Health,Direct Transfer Payments to So,0090171148,REDACTED - PERSONAL DATA,"7,199.13",25/06/2019
Delivery Units,Adults and Health,Direct Transfer Payments to So,0090177758,REDACTED - PERSONAL DATA,"2,316.96",25/06/2019
Delivery Units,Adults and Health,Direct Transfer Payments to So,0090177555,REDACTED - PERSONAL DATA,"1,238.92",25/06/2019
Delivery Units,Adults and Health,Direct Transfer Payments to So,0090170200,REDACTED - PERSONAL DATA,"1,649.34",06/06/2019
Delivery Units,Adults and Health,Direct Transfer Payments to So,0090176903,REDACTED - PERSONAL DATA,"1,699.72",25/06/2019
Delivery Units,Adults and Health,Direct Transfer Payments to So,0090177229,REDACTED - PERSONAL DATA,825.44,25/06/2019
Delivery Units,Adults and Health,Direct Transfer Payments to So,0090177661,REDACTED - PERSONAL DATA,975.36,25/06/2019
Delivery Units,Adults and Health,Direct Transfer Payments to So,0090176966,REDACTED - PERSONAL DATA,"1,260.00",25/06/2019
Delivery Units,Adults and Health,Direct Transfer Payments to So,0090177212,REDACTED - PERSONAL DATA,451.92,25/06/2019
Delivery Units,Adults and Health,Fees and Charges,0090171164,REDACTED - PERSONAL DATA,348.32,25/06/2019
Delivery Units,Adults and Health,Direct Transfer Payments to So,0090177352,REDACTED - PERSONAL DATA,"2,304.96",25/06/2019
Delivery Units,Adults and Health,Direct Transfer Payments to So,0090177490,REDACTED - PERSONAL DATA,144.24,25/06/2019
Delivery Units,Adults and Health,Fees and Charges,0090171126,REDACTED - PERSONAL DATA,-182.16,25/06/2019
Delivery Units,Adults and Health,Direct Transfer Payments to So,0090177740,REDACTED - PERSONAL DATA,"1,238.92",25/06/2019
Delivery Units,Adults and Health,Direct Transfer Payments to So,0090176867,REDACTED - PERSONAL DATA,961.60,25/06/2019
Delivery Units,Adults and Health,Direct Transfer Payments to So,0090177273,REDACTED - PERSONAL DATA,547.08,25/06/2019
Delivery Units,Adults and Health,Fees and Charges,0090177525,REDACTED - PERSONAL DATA,-428.72,25/06/2019
Delivery Units,Adults and Health,Fees and Charges,0090171788,REDACTED - PERSONAL DATA,-0.08,17/06/2019
Delivery Units,Adults and Health,Direct Transfer Payments to So,0090171789,REDACTED - PERSONAL DATA,"2,808.08",17/06/2019
Delivery Units,Adults and Health,Fees and Charges,0090177794,REDACTED - PERSONAL DATA,0.25,27/06/2019
Delivery Units,Adults and Health,Direct Transfer Payments to So,0090177391,REDACTED - PERSONAL DATA,589.00,25/06/2019
Delivery Units,Adults and Health,Direct Transfer Payments to So,0090177309,REDACTED - PERSONAL DATA,800.00,25/06/2019
Delivery Units,Adults and Health,Direct Transfer Payments to So,0090177133,REDACTED - PERSONAL DATA,"1,525.44",25/06/2019
Delivery Units,Adults and Health,Direct Transfer Payments to So,0090176993,REDACTED - PERSONAL DATA,295.68,25/06/2019
Delivery Units,Adults and Health,Direct Transfer Payments to So,0090177501,REDACTED - PERSONAL DATA,128.00,25/06/2019
Delivery Units,Adults and Health,Direct Transfer Payments to So,0090176979,REDACTED - PERSONAL DATA,456.76,25/06/2019
Delivery Units,Adults and Health,Direct Transfer Payments to So,0090177216,REDACTED - PERSONAL DATA,"4,093.84",25/06/2019
Delivery Units,Adults and Health,Direct Transfer Payments to So,0090177222,REDACTED - PERSONAL DATA,"1,029.76",25/06/2019
Delivery Units,Adults and Health,Direct Transfer Payments to So,0090177221,REDACTED - PERSONAL DATA,347.20,25/06/2019
Delivery Units,Adults and Health,Fees and Charges,0090171161,REDACTED - PERSONAL DATA,378.64,14/06/2019
Delivery Units,Adults and Health,Fees and Charges,0090176195,REDACTED - PERSONAL DATA,-218.40,25/06/2019
Delivery Units,Adults and Health,Direct Transfer Payments to So,0090177718,REDACTED - PERSONAL DATA,240.00,25/06/2019
Delivery Units,Adults and Health,Direct Transfer Payments to So,0090177633,REDACTED - PERSONAL DATA,903.92,25/06/2019
Delivery Units,Adults and Health,Direct Transfer Payments to So,0090177110,REDACTED - PERSONAL DATA,568.16,25/06/2019
Delivery Units,Adults and Health,Direct Transfer Payments to So,0090171147,REDACTED - PERSONAL DATA,"4,204.09",25/06/2019
Delivery Units,Adults and Health,Direct Transfer Payments to So,0090177757,REDACTED - PERSONAL DATA,"1,353.04",25/06/2019
Delivery Units,Adults and Health,Direct Transfer Payments to So,0090177594,REDACTED - PERSONAL DATA,"1,194.24",25/06/2019
Delivery Units,Adults and Health,Fees and Charges,0090171134,REDACTED - PERSONAL DATA,0.07,14/06/2019
Delivery Units,Adults and Health,Direct Transfer Payments to So,0090176220,REDACTED - PERSONAL DATA,"-4,626.42",25/06/2019
Delivery Units,Adults and Health,Direct Transfer Payments to So,0090177519,REDACTED - PERSONAL DATA,"1,560.72",25/06/2019
Delivery Units,Adults and Health,Fees and Charges,0090170346,REDACTED - PERSONAL DATA,358.21,12/06/2019
Delivery Units,Adults and Health,Fees and Charges,0090170347,REDACTED - PERSONAL DATA,340.08,12/06/2019
Delivery Units,Adults and Health,Fees and Charges,0090170351,REDACTED - PERSONAL DATA,"2,346.18",12/06/2019
Delivery Units,Adults and Health,Direct Transfer Payments to So,0090177131,REDACTED - PERSONAL DATA,"1,545.48",25/06/2019
Delivery Units,Adults and Health,Direct Transfer Payments to So,0090177712,REDACTED - PERSONAL DATA,"4,608.04",25/06/2019
Delivery Units,Adults and Health,Fees and Charges,0090176230,REDACTED - PERSONAL DATA,-178.29,25/06/2019
Delivery Units,Adults and Health,Direct Transfer Payments to So,0090177214,REDACTED - PERSONAL DATA,"2,933.80",25/06/2019
Delivery Units,Adults and Health,Direct Transfer Payments to So,0090177396,REDACTED - PERSONAL DATA,"1,766.96",25/06/2019
Delivery Units,Adults and Health,Direct Transfer Payments to So,0090177689,REDACTED - PERSONAL DATA,"1,431.96",25/06/2019
Delivery Units,Adults and Health,Direct Transfer Payments to So,0090177642,REDACTED - PERSONAL DATA,640.00,25/06/2019
Delivery Units,Adults and Health,Direct Transfer Payments to So,0090177724,REDACTED - PERSONAL DATA,589.68,25/06/2019
Delivery Units,Adults and Health,Direct Transfer Payments to So,0090177358,REDACTED - PERSONAL DATA,889.48,25/06/2019
Delivery Units,Adults and Health,Direct Transfer Payments to So,0090177184,REDACTED - PERSONAL DATA,478.48,25/06/2019
Delivery Units,Adults and Health,Fees and Charges,0090171142,REDACTED - PERSONAL DATA,203.20,25/06/2019
Delivery Units,Adults and Health,Direct Transfer Payments to So,0090177523,REDACTED - PERSONAL DATA,321.80,25/06/2019
Delivery Units,Adults and Health,Direct Transfer Payments to So,0090177528,REDACTED - PERSONAL DATA,136.00,25/06/2019
Delivery Units,Adults and Health,Fees and Charges,0090171178,REDACTED - PERSONAL DATA,288.08,25/06/2019
Delivery Units,Adults and Health,Direct Transfer Payments to So,0090177621,REDACTED - PERSONAL DATA,390.00,25/06/2019
Delivery Units,Adults and Health,Direct Transfer Payments to So,0090177188,REDACTED - PERSONAL DATA,"1,872.00",25/06/2019
Delivery Units,Adults and Health,Direct Transfer Payments to So,0090177480,REDACTED - PERSONAL DATA,"1,113.44",25/06/2019
Delivery Units,Adults and Health,Direct Transfer Payments to So,0090177234,REDACTED - PERSONAL DATA,"2,092.96",25/06/2019
Delivery Units,Adults and Health,Direct Transfer Payments to So,0090177774,REDACTED - PERSONAL DATA,"1,346.12",25/06/2019
Delivery Units,Adults and Health,Direct Transfer Payments to So,0090177295,REDACTED - PERSONAL DATA,772.32,25/06/2019
Delivery Units,Adults and Health,Direct Transfer Payments to So,0090177608,REDACTED - PERSONAL DATA,966.84,25/06/2019
Delivery Units,Adults and Health,Direct Transfer Payments to So,0090162970,REDACTED - PERSONAL DATA,-920.00,25/06/2019
Delivery Units,Adults and Health,Fees and Charges,0090176852,REDACTED - PERSONAL DATA,470.23,25/06/2019
Delivery Units,Adults and Health,Fees and Charges,0090176443,REDACTED - PERSONAL DATA,"-1,043.51",25/06/2019
Delivery Units,Adults and Health,Fees and Charges,0090176441,REDACTED - PERSONAL DATA,247.08,25/06/2019
Delivery Units,Adults and Health,Direct Transfer Payments to So,0090177168,REDACTED - PERSONAL DATA,410.96,25/06/2019
Delivery Units,Adults and Health,Direct Transfer Payments to So,0090177537,REDACTED - PERSONAL DATA,"2,300.00",25/06/2019
Delivery Units,Adults and Health,Direct Transfer Payments to So,0090171170,REDACTED - PERSONAL DATA,"-3,617.46",25/06/2019
Delivery Units,Adults and Health,Direct Transfer Payments to So,0090177278,REDACTED - PERSONAL DATA,560.00,25/06/2019
Delivery Units,Adults and Health,Direct Transfer Payments to So,0090177713,REDACTED - PERSONAL DATA,975.28,25/06/2019
Delivery Units,Adults and Health,Direct Transfer Payments to So,0090177339,REDACTED - PERSONAL DATA,649.08,25/06/2019
Delivery Units,Adults and Health,Direct Transfer Payments to So,0090177356,REDACTED - PERSONAL DATA,392.00,25/06/2019
Delivery Units,Adults and Health,Fees and Charges,0090177464,REDACTED - PERSONAL DATA,-241.60,25/06/2019
Delivery Units,Adults and Health,Direct Transfer Payments to So,0090177667,REDACTED - PERSONAL DATA,"2,349.16",25/06/2019
Delivery Units,Adults and Health,Direct Transfer Payments to So,0090177209,REDACTED - PERSONAL DATA,480.80,25/06/2019
Delivery Units,Adults and Health,Direct Transfer Payments to So,0090177240,REDACTED - PERSONAL DATA,"1,351.56",25/06/2019
Delivery Units,Adults and Health,Direct Transfer Payments to So,0090177179,REDACTED - PERSONAL DATA,"2,066.00",25/06/2019
Delivery Units,Adults and Health,Direct Transfer Payments to So,0090177491,REDACTED - PERSONAL DATA,"1,351.56",25/06/2019
Delivery Units,Adults and Health,Direct Transfer Payments to So,0090177437,REDACTED - PERSONAL DATA,588.24,25/06/2019
Delivery Units,Adults and Health,Direct Transfer Payments to So,0090177194,REDACTED - PERSONAL DATA,"2,518.48",25/06/2019
Delivery Units,Adults and Health,Direct Transfer Payments to So,0090177514,REDACTED - PERSONAL DATA,904.80,25/06/2019
Delivery Units,Adults and Health,Fees and Charges,0090176233,REDACTED - PERSONAL DATA,-48.80,25/06/2019
Delivery Units,Adults and Health,Direct Transfer Payments to So,0090177703,REDACTED - PERSONAL DATA,"2,400.00",25/06/2019
Delivery Units,Adults and Health,Direct Transfer Payments to So,0090177711,REDACTED - PERSONAL DATA,"1,582.00",25/06/2019
Delivery Units,Adults and Health,Direct Transfer Payments to So,0090177156,REDACTED - PERSONAL DATA,"1,104.00",25/06/2019
Delivery Units,Adults and Health,Direct Transfer Payments to So,0090177241,REDACTED - PERSONAL DATA,"1,586.48",25/06/2019
Delivery Units,Adults and Health,Direct Transfer Payments to So,0090177698,REDACTED - PERSONAL DATA,960.00,25/06/2019
Delivery Units,Adults and Health,Direct Transfer Payments to So,0090171165,REDACTED - PERSONAL DATA,"-1,037.29",25/06/2019
Delivery Units,Adults and Health,Direct Transfer Payments to So,0090177769,REDACTED - PERSONAL DATA,730.92,25/06/2019
Delivery Units,Adults and Health,Direct Transfer Payments to So,0090177426,REDACTED - PERSONAL DATA,351.52,25/06/2019
Delivery Units,Adults and Health,Direct Transfer Payments to So,0090177635,REDACTED - PERSONAL DATA,140.00,25/06/2019
Delivery Units,Adults and Health,Direct Transfer Payments to So,0090177163,REDACTED - PERSONAL DATA,700.00,25/06/2019
Delivery Units,Adults and Health,Direct Transfer Payments to So,0090176954,REDACTED - PERSONAL DATA,"1,464.20",25/06/2019
Delivery Units,Adults and Health,Direct Transfer Payments to So,0090177017,REDACTED - PERSONAL DATA,"1,238.92",25/06/2019
Delivery Units,Adults and Health,Direct Transfer Payments to So,0090177046,REDACTED - PERSONAL DATA,"2,005.04",25/06/2019
Delivery Units,Adults and Health,Direct Transfer Payments to So,0090177438,REDACTED - PERSONAL DATA,"3,444.00",25/06/2019
Delivery Units,Adults and Health,Fees and Charges,0090170344,REDACTED - PERSONAL DATA,0.10,12/06/2019
Delivery Units,Adults and Health,Direct Transfer Payments to So,0090177566,REDACTED - PERSONAL DATA,"3,000.00",25/06/2019
Delivery Units,Adults and Health,Direct Transfer Payments to So,0090171130,REDACTED - PERSONAL DATA,"-2,794.44",25/06/2019
Delivery Units,Adults and Health,Direct Transfer Payments to So,0090177497,REDACTED - PERSONAL DATA,"3,279.20",25/06/2019
Delivery Units,Adults and Health,Fees and Charges,0090171679,REDACTED - PERSONAL DATA,-158.76,14/06/2019
Delivery Units,Adults and Health,Direct Transfer Payments to So,0090177332,REDACTED - PERSONAL DATA,"2,931.20",25/06/2019
Delivery Units,Adults and Health,Direct Transfer Payments to So,0090177047,REDACTED - PERSONAL DATA,"1,342.48",25/06/2019
Delivery Units,Adults and Health,Direct Transfer Payments to So,0090171176,REDACTED - PERSONAL DATA,"-1,561.03",25/06/2019
Delivery Units,Adults and Health,Direct Transfer Payments to So,0090177716,REDACTED - PERSONAL DATA,"2,520.00",25/06/2019
Delivery Units,Adults and Health,Direct Transfer Payments to So,0090176956,REDACTED - PERSONAL DATA,913.52,25/06/2019
Delivery Units,Adults and Health,Direct Transfer Payments to So,0090177359,REDACTED - PERSONAL DATA,231.40,25/06/2019
Delivery Units,Adults and Health,Fees and Charges,0090171127,REDACTED - PERSONAL DATA,-804.00,25/06/2019
Delivery Units,Adults and Health,Direct Transfer Payments to So,0090176973,REDACTED - PERSONAL DATA,"2,638.76",25/06/2019
Delivery Units,Adults and Health,Direct Transfer Payments to So,0090177390,REDACTED - PERSONAL DATA,"3,834.44",25/06/2019
Delivery Units,Adults and Health,Direct Transfer Payments to So,0090170199,REDACTED - PERSONAL DATA,313.75,06/06/2019
Delivery Units,Adults and Health,Direct Transfer Payments to So,0090177483,REDACTED - PERSONAL DATA,"3,260.00",25/06/2019
Delivery Units,Adults and Health,Direct Transfer Payments to So,0090177200,REDACTED - PERSONAL DATA,490.04,25/06/2019
Delivery Units,Adults and Health,Direct Transfer Payments to So,0090177743,REDACTED - PERSONAL DATA,482.72,25/06/2019
Delivery Units,Adults and Health,Fees and Charges,0090176231,REDACTED - PERSONAL DATA,-31.40,25/06/2019
Delivery Units,Adults and Health,Direct Transfer Payments to So,0090177543,REDACTED - PERSONAL DATA,301.48,25/06/2019
Delivery Units,Adults and Health,Direct Transfer Payments to So,0090171158,REDACTED - PERSONAL DATA,"2,463.59",17/06/2019
Delivery Units,Adults and Health,Direct Transfer Payments to So,0090171167,REDACTED - PERSONAL DATA,"-32,886.00",17/06/2019
Delivery Units,Adults and Health,Direct Transfer Payments to So,0090171188,REDACTED - PERSONAL DATA,"1,195.13",17/06/2019
Delivery Units,Adults and Health,Direct Transfer Payments to So,0090177599,REDACTED - PERSONAL DATA,792.88,25/06/2019
Delivery Units,Adults and Health,Direct Transfer Payments to So,0090177651,REDACTED - PERSONAL DATA,384.64,25/06/2019
Delivery Units,Adults and Health,Other Agencies - Third Party P,0090168900,ALINA HOMECARE LTD,85.27,03/06/2019
Delivery Units,Adults and Health,Other Agencies - Third Party P,0090168903,ALINA HOMECARE LTD,262.42,03/06/2019
Delivery Units,Adults and Health,Other Agencies - Third Party P,0090168904,ALINA HOMECARE LTD,45.89,03/06/2019
Delivery Units,Adults and Health,Other Agencies - Third Party P,0090168905,ALINA HOMECARE LTD,214.27,03/06/2019
Delivery Units,Adults and Health,Other Agencies - Third Party P,0090168906,ALINA HOMECARE LTD,26.24,03/06/2019
Delivery Units,Adults and Health,Other Agencies - Third Party P,0090168910,ALINA HOMECARE LTD,168.36,03/06/2019
Delivery Units,Adults and Health,Other Agencies - Third Party P,0090168911,ALINA HOMECARE LTD,295.25,03/06/2019
Delivery Units,Adults and Health,Other Agencies - Third Party P,0090168912,ALINA HOMECARE LTD,164.01,03/06/2019
Delivery Units,Adults and Health,Other Agencies - Third Party P,0090168913,ALINA HOMECARE LTD,26.24,03/06/2019
Delivery Units,Adults and Health,Other Agencies - Third Party P,0090168915,ALINA HOMECARE LTD,179.31,03/06/2019
Delivery Units,Adults and Health,Other Agencies - Third Party P,0090168916,ALINA HOMECARE LTD,72.15,03/06/2019
Delivery Units,Adults and Health,Other Agencies - Third Party P,0090168917,ALINA HOMECARE LTD,157.45,03/06/2019
Delivery Units,Adults and Health,Other Agencies - Third Party P,0090168918,ALINA HOMECARE LTD,94.02,03/06/2019
Delivery Units,Adults and Health,Other Agencies - Third Party P,0090168921,ALINA HOMECARE LTD,262.34,03/06/2019
Delivery Units,Adults and Health,Other Agencies - Third Party P,0090168922,ALINA HOMECARE LTD,295.24,03/06/2019
Delivery Units,Adults and Health,Other Agencies - Third Party P,0090168923,ALINA HOMECARE LTD,98.39,03/06/2019
Delivery Units,Adults and Health,Other Agencies - Third Party P,0090168924,ALINA HOMECARE LTD,293.01,03/06/2019
Delivery Units,Adults and Health,Other Agencies - Third Party P,0090168925,ALINA HOMECARE LTD,30.62,03/06/2019
Delivery Units,Adults and Health,Other Agencies - Third Party P,0090168926,ALINA HOMECARE LTD,124.68,03/06/2019
Delivery Units,Adults and Health,Other Agencies - Third Party P,0090168927,ALINA HOMECARE LTD,225.25,03/06/2019
Delivery Units,Adults and Health,Other Agencies - Third Party P,0090168928,ALINA HOMECARE LTD,131.24,03/06/2019
Delivery Units,Adults and Health,Other Agencies - Third Party P,0090168931,ALINA HOMECARE LTD,126.80,03/06/2019
Delivery Units,Adults and Health,Other Agencies - Third Party P,0090168932,ALINA HOMECARE LTD,229.63,03/06/2019
Delivery Units,Adults and Health,Other Agencies - Third Party P,0090168934,ALINA HOMECARE LTD,306.15,03/06/2019
Delivery Units,Adults and Health,Other Agencies - Third Party P,0090168935,ALINA HOMECARE LTD,133.38,03/06/2019
Delivery Units,Adults and Health,Other Agencies - Third Party P,0090168937,ALINA HOMECARE LTD,231.84,03/06/2019
Delivery Units,Adults and Health,Other Agencies - Third Party P,0090168942,ALINA HOMECARE LTD,131.17,03/06/2019
Delivery Units,Adults and Health,Other Agencies - Third Party P,0090168943,ALINA HOMECARE LTD,575.07,03/06/2019
Delivery Units,Adults and Health,Other Agencies - Third Party P,0090168945,ALINA HOMECARE LTD,131.17,03/06/2019
Delivery Units,Adults and Health,Other Agencies - Third Party P,0090168946,ALINA HOMECARE LTD,465.68,03/06/2019
Delivery Units,Adults and Health,Other Agencies - Third Party P,0090168947,ALINA HOMECARE LTD,284.28,03/06/2019
Delivery Units,Adults and Health,Other Agencies - Third Party P,0090168948,ALINA HOMECARE LTD,131.17,03/06/2019
Delivery Units,Adults and Health,Other Agencies - Third Party P,0090168949,ALINA HOMECARE LTD,253.62,03/06/2019
Delivery Units,Adults and Health,Other Agencies - Third Party P,0090168950,ALINA HOMECARE LTD,131.24,03/06/2019
Delivery Units,Adults and Health,Other Agencies - Third Party P,0090168951,ALINA HOMECARE LTD,98.39,03/06/2019
Delivery Units,Adults and Health,Other Agencies - Third Party P,0090168953,ALINA HOMECARE LTD,104.97,03/06/2019
Delivery Units,Adults and Health,Other Agencies - Third Party P,0090168954,ALINA HOMECARE LTD,682.26,03/06/2019
Delivery Units,Adults and Health,Other Agencies - Third Party P,0090168955,ALINA HOMECARE LTD,190.22,03/06/2019
Delivery Units,Adults and Health,Other Agencies - Third Party P,0090168956,ALINA HOMECARE LTD,85.27,03/06/2019
Delivery Units,Adults and Health,Other Agencies - Third Party P,0090168957,ALINA HOMECARE LTD,286.44,03/06/2019
Delivery Units,Adults and Health,Other Agencies - Third Party P,0090168959,ALINA HOMECARE LTD,295.25,03/06/2019
Delivery Units,Adults and Health,Other Agencies - Third Party P,0090168960,ALINA HOMECARE LTD,380.50,03/06/2019
Delivery Units,Adults and Health,Other Agencies - Third Party P,0090168961,ALINA HOMECARE LTD,327.98,03/06/2019
Delivery Units,Adults and Health,Other Agencies - Third Party P,0090168962,ALINA HOMECARE LTD,164.01,03/06/2019
Delivery Units,Adults and Health,Other Agencies - Third Party P,0090168963,ALINA HOMECARE LTD,262.40,03/06/2019
Delivery Units,Adults and Health,Other Agencies - Third Party P,0090168964,ALINA HOMECARE LTD,131.17,03/06/2019
Delivery Units,Adults and Health,Other Agencies - Third Party P,0090168965,ALINA HOMECARE LTD,360.80,03/06/2019
Delivery Units,Adults and Health,Other Agencies - Third Party P,0090168966,ALINA HOMECARE LTD,345.44,03/06/2019
Delivery Units,Adults and Health,Other Agencies - Third Party P,0090168967,ALINA HOMECARE LTD,164.01,03/06/2019
Delivery Units,Adults and Health,Other Agencies - Third Party P,0090168968,ALINA HOMECARE LTD,131.17,03/06/2019
Delivery Units,Adults and Health,Other Agencies - Third Party P,0090168970,ALINA HOMECARE LTD,164.01,03/06/2019
Delivery Units,Adults and Health,Other Agencies - Third Party P,0090168973,ALINA HOMECARE LTD,295.25,03/06/2019
Delivery Units,Adults and Health,Other Agencies - Third Party P,0090168974,ALINA HOMECARE LTD,295.25,03/06/2019
Delivery Units,Adults and Health,Other Agencies - Third Party P,0090168978,ALINA HOMECARE LTD,196.79,03/06/2019
Delivery Units,Adults and Health,Other Agencies - Third Party P,0090168980,ALINA HOMECARE LTD,852.68,03/06/2019
Delivery Units,Adults and Health,Other Agencies - Third Party P,0090168982,ALINA HOMECARE LTD,352.05,03/06/2019
Delivery Units,Adults and Health,Other Agencies - Third Party P,0090168983,ALINA HOMECARE LTD,78.72,03/06/2019
Delivery Units,Adults and Health,Other Agencies - Third Party P,0090168988,ALINA HOMECARE LTD,150.86,03/06/2019
Delivery Units,Adults and Health,Other Agencies - Third Party P,0090168989,ALINA HOMECARE LTD,295.25,03/06/2019
Delivery Units,Adults and Health,Other Agencies - Third Party P,0090168990,ALINA HOMECARE LTD,295.25,03/06/2019
Delivery Units,Adults and Health,Other Agencies - Third Party P,0090168992,ALINA HOMECARE LTD,229.63,03/06/2019
Delivery Units,Adults and Health,Other Agencies - Third Party P,0090168993,ALINA HOMECARE LTD,229.63,03/06/2019
Delivery Units,Adults and Health,Other Agencies - Third Party P,0090168994,ALINA HOMECARE LTD,459.26,03/06/2019
Delivery Units,Adults and Health,Other Agencies - Third Party P,0090168995,ALINA HOMECARE LTD,380.49,03/06/2019
Delivery Units,Adults and Health,Other Agencies - Third Party P,0090168996,ALINA HOMECARE LTD,378.29,03/06/2019
Delivery Units,Adults and Health,Other Agencies - Third Party P,0090168997,ALINA HOMECARE LTD,98.39,03/06/2019
Delivery Units,Adults and Health,Other Agencies - Third Party P,0090168998,ALINA HOMECARE LTD,65.60,03/06/2019
Delivery Units,Adults and Health,Other Agencies - Third Party P,0090169001,ALINA HOMECARE LTD,266.77,03/06/2019
Delivery Units,Adults and Health,Other Agencies - Third Party P,0090169002,ALINA HOMECARE LTD,56.84,03/06/2019
Delivery Units,Adults and Health,Other Agencies - Third Party P,0090169003,ALINA HOMECARE LTD,192.43,03/06/2019
Delivery Units,Adults and Health,Other Agencies - Third Party P,0090169004,ALINA HOMECARE LTD,30.61,03/06/2019
Delivery Units,Adults and Health,Other Agencies - Third Party P,0090169005,ALINA HOMECARE LTD,236.19,03/06/2019
Delivery Units,Adults and Health,Other Agencies - Third Party P,0090169009,ALINA HOMECARE LTD,179.31,03/06/2019
Delivery Units,Adults and Health,Other Agencies - Third Party P,0090169010,ALINA HOMECARE LTD,153.09,03/06/2019
Delivery Units,Adults and Health,Other Agencies - Third Party P,0090169011,ALINA HOMECARE LTD,271.20,03/06/2019
Delivery Units,Adults and Health,Other Agencies - Third Party P,0090169012,ALINA HOMECARE LTD,266.82,03/06/2019
Delivery Units,Adults and Health,Other Agencies - Third Party P,0090169014,ALINA HOMECARE LTD,135.59,03/06/2019
Delivery Units,Adults and Health,Other Agencies - Third Party P,0090169016,ALINA HOMECARE LTD,201.19,03/06/2019
Delivery Units,Adults and Health,Other Agencies - Third Party P,0090169017,ALINA HOMECARE LTD,65.60,03/06/2019
Delivery Units,Adults and Health,Other Agencies - Third Party P,0090169018,ALINA HOMECARE LTD,78.72,03/06/2019
Delivery Units,Adults and Health,Other Agencies - Third Party P,0090169021,ALINA HOMECARE LTD,227.37,03/06/2019
Delivery Units,Adults and Health,Other Agencies - Third Party P,0090169022,ALINA HOMECARE LTD,227.47,03/06/2019
Delivery Units,Adults and Health,Other Agencies - Third Party P,0090169023,ALINA HOMECARE LTD,100.58,03/06/2019
Delivery Units,Adults and Health,Other Agencies - Third Party P,0090169024,ALINA HOMECARE LTD,78.72,03/06/2019
Delivery Units,Adults and Health,Other Agencies - Third Party P,0090169025,ALINA HOMECARE LTD,26.25,03/06/2019
Delivery Units,Adults and Health,Other Agencies - Third Party P,0090169026,ALINA HOMECARE LTD,118.12,03/06/2019
Delivery Units,Adults and Health,Other Agencies - Third Party P,0090169027,ALINA HOMECARE LTD,599.10,03/06/2019
Delivery Units,Adults and Health,Other Agencies - Third Party P,0090169028,ALINA HOMECARE LTD,161.83,03/06/2019
Delivery Units,Adults and Health,Other Agencies - Third Party P,0090169029,ALINA HOMECARE LTD,113.75,03/06/2019
Delivery Units,Adults and Health,Other Agencies - Third Party P,0090169031,ALINA HOMECARE LTD,323.64,03/06/2019
Delivery Units,Adults and Health,Other Agencies - Third Party P,0090169032,ALINA HOMECARE LTD,65.60,03/06/2019
Delivery Units,Adults and Health,Other Agencies - Third Party P,0090169034,ALINA HOMECARE LTD,122.43,03/06/2019
Delivery Units,Adults and Health,Other Agencies - Third Party P,0090169035,ALINA HOMECARE LTD,192.46,03/06/2019
Delivery Units,Adults and Health,Other Agencies - Third Party P,0090169037,ALINA HOMECARE LTD,301.78,03/06/2019
Delivery Units,Adults and Health,Other Agencies - Third Party P,0090169038,ALINA HOMECARE LTD,153.08,03/06/2019
Delivery Units,Adults and Health,Other Agencies - Third Party P,0090169041,ALINA HOMECARE LTD,218.72,03/06/2019
Delivery Units,Adults and Health,Other Agencies - Third Party P,0090169047,ALINA HOMECARE LTD,122.43,03/06/2019
Delivery Units,Adults and Health,Other Agencies - Third Party P,0090169048,ALINA HOMECARE LTD,520.43,03/06/2019
Delivery Units,Adults and Health,Other Agencies - Third Party P,0090169050,ALINA HOMECARE LTD,122.43,03/06/2019
Delivery Units,Adults and Health,Other Agencies - Third Party P,0090169051,ALINA HOMECARE LTD,428.55,03/06/2019
Delivery Units,Adults and Health,Other Agencies - Third Party P,0090169052,ALINA HOMECARE LTD,83.08,03/06/2019
Delivery Units,Adults and Health,Other Agencies - Third Party P,0090169053,ALINA HOMECARE LTD,209.97,03/06/2019
Delivery Units,Adults and Health,Other Agencies - Third Party P,0090169054,ALINA HOMECARE LTD,122.50,03/06/2019
Delivery Units,Adults and Health,Other Agencies - Third Party P,0090169055,ALINA HOMECARE LTD,26.24,03/06/2019
Delivery Units,Adults and Health,Other Agencies - Third Party P,0090169056,ALINA HOMECARE LTD,83.10,03/06/2019
Delivery Units,Adults and Health,Other Agencies - Third Party P,0090169058,ALINA HOMECARE LTD,74.35,03/06/2019
Delivery Units,Adults and Health,Other Agencies - Third Party P,0090169059,ALINA HOMECARE LTD,126.80,03/06/2019
Delivery Units,Adults and Health,Other Agencies - Third Party P,0090169060,ALINA HOMECARE LTD,660.43,03/06/2019
Delivery Units,Adults and Health,Other Agencies - Third Party P,0090169061,ALINA HOMECARE LTD,153.07,03/06/2019
Delivery Units,Adults and Health,Other Agencies - Third Party P,0090169062,ALINA HOMECARE LTD,65.61,03/06/2019
Delivery Units,Adults and Health,Other Agencies - Third Party P,0090169063,ALINA HOMECARE LTD,275.52,03/06/2019
Delivery Units,Adults and Health,Other Agencies - Third Party P,0090169065,ALINA HOMECARE LTD,266.83,03/06/2019
Delivery Units,Adults and Health,Other Agencies - Third Party P,0090169066,ALINA HOMECARE LTD,358.65,03/06/2019
Delivery Units,Adults and Health,Other Agencies - Third Party P,0090169067,ALINA HOMECARE LTD,288.65,03/06/2019
Delivery Units,Adults and Health,Other Agencies - Third Party P,0090169068,ALINA HOMECARE LTD,153.09,03/06/2019
Delivery Units,Adults and Health,Other Agencies - Third Party P,0090169069,ALINA HOMECARE LTD,122.43,03/06/2019
Delivery Units,Adults and Health,Other Agencies - Third Party P,0090169070,ALINA HOMECARE LTD,336.77,03/06/2019
Delivery Units,Adults and Health,Other Agencies - Third Party P,0090169071,ALINA HOMECARE LTD,314.86,03/06/2019
Delivery Units,Adults and Health,Other Agencies - Third Party P,0090169072,ALINA HOMECARE LTD,122.43,03/06/2019
Delivery Units,Adults and Health,Other Agencies - Third Party P,0090169074,ALINA HOMECARE LTD,153.09,03/06/2019
Delivery Units,Adults and Health,Other Agencies - Third Party P,0090169077,ALINA HOMECARE LTD,275.59,03/06/2019
Delivery Units,Adults and Health,Other Agencies - Third Party P,0090169079,ALINA HOMECARE LTD,26.25,03/06/2019
Delivery Units,Adults and Health,Other Agencies - Third Party P,0090169081,ALINA HOMECARE LTD,153.09,03/06/2019
Delivery Units,Adults and Health,Other Agencies - Third Party P,0090169082,ALINA HOMECARE LTD,183.68,03/06/2019
Delivery Units,Adults and Health,Other Agencies - Third Party P,0090169088,ALINA HOMECARE LTD,144.31,03/06/2019
Delivery Units,Adults and Health,Other Agencies - Third Party P,0090169089,ALINA HOMECARE LTD,275.59,03/06/2019
Delivery Units,Adults and Health,Other Agencies - Third Party P,0090169091,ALINA HOMECARE LTD,275.59,03/06/2019
Delivery Units,Adults and Health,Other Agencies - Third Party P,0090169093,ALINA HOMECARE LTD,214.34,03/06/2019
Delivery Units,Adults and Health,Other Agencies - Third Party P,0090169094,ALINA HOMECARE LTD,428.68,03/06/2019
Delivery Units,Adults and Health,Other Agencies - Third Party P,0090169095,ALINA HOMECARE LTD,341.16,03/06/2019
Delivery Units,Adults and Health,Other Agencies - Third Party P,0090169096,ALINA HOMECARE LTD,244.86,03/06/2019
Delivery Units,Adults and Health,Other Agencies - Third Party P,0090171795,ALINA HOMECARE LTD,59.03,17/06/2019
Delivery Units,Adults and Health,Other Agencies - Third Party P,0090171798,ALINA HOMECARE LTD,367.37,17/06/2019
Delivery Units,Adults and Health,Other Agencies - Third Party P,0090171799,ALINA HOMECARE LTD,327.98,17/06/2019
Delivery Units,Adults and Health,Other Agencies - Third Party P,0090171800,ALINA HOMECARE LTD,258.03,17/06/2019
Delivery Units,Adults and Health,Other Agencies - Third Party P,0090171801,ALINA HOMECARE LTD,45.90,17/06/2019
Delivery Units,Adults and Health,Other Agencies - Third Party P,0090171802,ALINA HOMECARE LTD,214.27,17/06/2019
Delivery Units,Adults and Health,Other Agencies - Third Party P,0090171803,ALINA HOMECARE LTD,43.72,17/06/2019
Delivery Units,Adults and Health,Other Agencies - Third Party P,0090171804,ALINA HOMECARE LTD,262.40,17/06/2019
Delivery Units,Adults and Health,Other Agencies - Third Party P,0090171807,ALINA HOMECARE LTD,188.04,17/06/2019
Delivery Units,Adults and Health,Other Agencies - Third Party P,0090171808,ALINA HOMECARE LTD,137.77,17/06/2019
Delivery Units,Adults and Health,Other Agencies - Third Party P,0090171810,ALINA HOMECARE LTD,238.37,17/06/2019
Delivery Units,Adults and Health,Other Agencies - Third Party P,0090171811,ALINA HOMECARE LTD,277.73,17/06/2019
Delivery Units,Adults and Health,Other Agencies - Third Party P,0090171813,ALINA HOMECARE LTD,139.94,17/06/2019
Delivery Units,Adults and Health,Other Agencies - Third Party P,0090171814,ALINA HOMECARE LTD,17.50,17/06/2019
Delivery Units,Adults and Health,Other Agencies - Third Party P,0090171816,ALINA HOMECARE LTD,201.19,17/06/2019
Delivery Units,Adults and Health,Other Agencies - Third Party P,0090171817,ALINA HOMECARE LTD,72.15,17/06/2019
Delivery Units,Adults and Health,Other Agencies - Third Party P,0090171818,ALINA HOMECARE LTD,76.52,17/06/2019
Delivery Units,Adults and Health,Other Agencies - Third Party P,0090171819,ALINA HOMECARE LTD,196.79,17/06/2019
Delivery Units,Adults and Health,Other Agencies - Third Party P,0090171822,ALINA HOMECARE LTD,262.34,17/06/2019
Delivery Units,Adults and Health,Other Agencies - Third Party P,0090171823,ALINA HOMECARE LTD,295.25,17/06/2019
Delivery Units,Adults and Health,Other Agencies - Third Party P,0090171824,ALINA HOMECARE LTD,109.32,17/06/2019
Delivery Units,Adults and Health,Other Agencies - Third Party P,0090171825,ALINA HOMECARE LTD,30.62,17/06/2019
Delivery Units,Adults and Health,Other Agencies - Third Party P,0090171826,ALINA HOMECARE LTD,113.72,17/06/2019
Delivery Units,Adults and Health,Other Agencies - Third Party P,0090171828,ALINA HOMECARE LTD,190.24,17/06/2019
Delivery Units,Adults and Health,Other Agencies - Third Party P,0090171829,ALINA HOMECARE LTD,131.24,17/06/2019
Delivery Units,Adults and Health,Other Agencies - Third Party P,0090171831,ALINA HOMECARE LTD,91.84,17/06/2019
Delivery Units,Adults and Health,Other Agencies - Third Party P,0090171832,ALINA HOMECARE LTD,109.36,17/06/2019
Delivery Units,Adults and Health,Other Agencies - Third Party P,0090171834,ALINA HOMECARE LTD,118.05,17/06/2019
Delivery Units,Adults and Health,Other Agencies - Third Party P,0090171835,ALINA HOMECARE LTD,229.63,17/06/2019
Delivery Units,Adults and Health,Other Agencies - Third Party P,0090171836,ALINA HOMECARE LTD,310.51,17/06/2019
Delivery Units,Adults and Health,Other Agencies - Third Party P,0090171837,ALINA HOMECARE LTD,159.63,17/06/2019
Delivery Units,Adults and Health,Other Agencies - Third Party P,0090171840,ALINA HOMECARE LTD,236.21,17/06/2019
Delivery Units,Adults and Health,Other Agencies - Third Party P,0090171846,ALINA HOMECARE LTD,553.23,17/06/2019
Delivery Units,Adults and Health,Other Agencies - Third Party P,0090171848,ALINA HOMECARE LTD,472.24,17/06/2019
Delivery Units,Adults and Health,Other Agencies - Third Party P,0090171849,ALINA HOMECARE LTD,126.80,17/06/2019
Delivery Units,Adults and Health,Other Agencies - Third Party P,0090171850,ALINA HOMECARE LTD,131.24,17/06/2019
Delivery Units,Adults and Health,Other Agencies - Third Party P,0090171851,ALINA HOMECARE LTD,98.39,17/06/2019
Delivery Units,Adults and Health,Other Agencies - Third Party P,0090171853,ALINA HOMECARE LTD,96.20,17/06/2019
Delivery Units,Adults and Health,Other Agencies - Third Party P,0090171854,ALINA HOMECARE LTD,660.40,17/06/2019
Delivery Units,Adults and Health,Other Agencies - Third Party P,0090171855,ALINA HOMECARE LTD,98.39,17/06/2019
Delivery Units,Adults and Health,Other Agencies - Third Party P,0090171856,ALINA HOMECARE LTD,295.18,17/06/2019
Delivery Units,Adults and Health,Other Agencies - Third Party P,0090171858,ALINA HOMECARE LTD,295.25,17/06/2019
Delivery Units,Adults and Health,Other Agencies - Third Party P,0090171859,ALINA HOMECARE LTD,164.01,17/06/2019
Delivery Units,Adults and Health,Other Agencies - Third Party P,0090171861,ALINA HOMECARE LTD,131.17,17/06/2019
Delivery Units,Adults and Health,Other Agencies - Third Party P,0090171862,ALINA HOMECARE LTD,360.80,17/06/2019
Delivery Units,Adults and Health,Other Agencies - Third Party P,0090171863,ALINA HOMECARE LTD,345.44,17/06/2019
Delivery Units,Adults and Health,Other Agencies - Third Party P,0090171864,ALINA HOMECARE LTD,131.17,17/06/2019
Delivery Units,Adults and Health,Other Agencies - Third Party P,0090171865,ALINA HOMECARE LTD,164.01,17/06/2019
Delivery Units,Adults and Health,Other Agencies - Third Party P,0090171868,ALINA HOMECARE LTD,295.25,17/06/2019
Delivery Units,Adults and Health,Other Agencies - Third Party P,0090171871,ALINA HOMECARE LTD,164.01,17/06/2019
Delivery Units,Adults and Health,Other Agencies - Third Party P,0090171873,ALINA HOMECARE LTD,352.05,17/06/2019
Delivery Units,Adults and Health,Other Agencies - Third Party P,0090171874,ALINA HOMECARE LTD,98.39,17/06/2019
Delivery Units,Adults and Health,Other Agencies - Third Party P,0090171878,ALINA HOMECARE LTD,131.17,17/06/2019
Delivery Units,Adults and Health,Other Agencies - Third Party P,0090171879,ALINA HOMECARE LTD,150.86,17/06/2019
Delivery Units,Adults and Health,Other Agencies - Third Party P,0090171880,ALINA HOMECARE LTD,131.17,17/06/2019
Delivery Units,Adults and Health,Other Agencies - Third Party P,0090171881,ALINA HOMECARE LTD,295.25,17/06/2019
Delivery Units,Adults and Health,Other Agencies - Third Party P,0090171883,ALINA HOMECARE LTD,295.25,17/06/2019
Delivery Units,Adults and Health,Other Agencies - Third Party P,0090171885,ALINA HOMECARE LTD,229.63,17/06/2019
Delivery Units,Adults and Health,Other Agencies - Third Party P,0090171886,ALINA HOMECARE LTD,229.63,17/06/2019
Delivery Units,Adults and Health,Other Agencies - Third Party P,0090171887,ALINA HOMECARE LTD,459.26,17/06/2019
Delivery Units,Adults and Health,Other Agencies - Third Party P,0090171888,ALINA HOMECARE LTD,380.49,17/06/2019
Delivery Units,Adults and Health,Other Agencies - Third Party P,0090171889,ALINA HOMECARE LTD,262.34,17/06/2019
Delivery Units,Adults and Health,Other Agencies - Third Party P,0090171890,ALINA HOMECARE LTD,98.39,17/06/2019
Delivery Units,Adults and Health,Other Agencies - Third Party P,0090171891,ALINA HOMECARE LTD,196.78,17/06/2019
Delivery Units,Adults and Health,Other Agencies - Third Party P,0090171893,ALINA HOMECARE LTD,78.72,17/06/2019
Delivery Units,Adults and Health,Other Agencies - Third Party P,0090171896,ALINA HOMECARE LTD,306.14,17/06/2019
Delivery Units,Adults and Health,Other Agencies - Third Party P,0090171897,ALINA HOMECARE LTD,56.83,17/06/2019
Delivery Units,Adults and Health,Other Agencies - Third Party P,0090171898,ALINA HOMECARE LTD,201.17,17/06/2019
Delivery Units,Adults and Health,Other Agencies - Third Party P,0090171899,ALINA HOMECARE LTD,34.98,17/06/2019
Delivery Units,Adults and Health,Other Agencies - Third Party P,0090171902,ALINA HOMECARE LTD,122.43,17/06/2019
Delivery Units,Adults and Health,Other Agencies - Third Party P,0090171903,ALINA HOMECARE LTD,153.09,17/06/2019
Delivery Units,Adults and Health,Other Agencies - Third Party P,0090171905,ALINA HOMECARE LTD,153.09,17/06/2019
Delivery Units,Adults and Health,Other Agencies - Third Party P,0090171906,ALINA HOMECARE LTD,271.21,17/06/2019
Delivery Units,Adults and Health,Other Agencies - Third Party P,0090171907,ALINA HOMECARE LTD,240.56,17/06/2019
Delivery Units,Adults and Health,Other Agencies - Third Party P,0090171909,ALINA HOMECARE LTD,139.97,17/06/2019
Delivery Units,Adults and Health,Other Agencies - Third Party P,0090171910,ALINA HOMECARE LTD,13.12,17/06/2019
Delivery Units,Adults and Health,Other Agencies - Third Party P,0090171911,ALINA HOMECARE LTD,209.95,17/06/2019
Delivery Units,Adults and Health,Other Agencies - Third Party P,0090171912,ALINA HOMECARE LTD,65.60,17/06/2019
Delivery Units,Adults and Health,Other Agencies - Third Party P,0090171914,ALINA HOMECARE LTD,65.60,17/06/2019
Delivery Units,Adults and Health,Other Agencies - Third Party P,0090171915,ALINA HOMECARE LTD,179.29,17/06/2019
Delivery Units,Adults and Health,Other Agencies - Third Party P,0090171918,ALINA HOMECARE LTD,244.86,17/06/2019
Delivery Units,Adults and Health,Other Agencies - Third Party P,0090171919,ALINA HOMECARE LTD,104.95,17/06/2019
Delivery Units,Adults and Health,Other Agencies - Third Party P,0090171921,ALINA HOMECARE LTD,196.83,17/06/2019
Delivery Units,Adults and Health,Other Agencies - Third Party P,0090171922,ALINA HOMECARE LTD,301.81,17/06/2019
Delivery Units,Adults and Health,Other Agencies - Third Party P,0090171923,ALINA HOMECARE LTD,74.35,17/06/2019
Delivery Units,Adults and Health,Other Agencies - Third Party P,0090171924,ALINA HOMECARE LTD,135.60,17/06/2019
Delivery Units,Adults and Health,Other Agencies - Third Party P,0090171925,ALINA HOMECARE LTD,205.59,17/06/2019
Delivery Units,Adults and Health,Other Agencies - Third Party P,0090171927,ALINA HOMECARE LTD,109.31,17/06/2019
Delivery Units,Adults and Health,Other Agencies - Third Party P,0090171928,ALINA HOMECARE LTD,214.34,17/06/2019
Delivery Units,Adults and Health,Other Agencies - Third Party P,0090171929,ALINA HOMECARE LTD,293.05,17/06/2019
Delivery Units,Adults and Health,Other Agencies - Third Party P,0090171930,ALINA HOMECARE LTD,148.71,17/06/2019
Delivery Units,Adults and Health,Other Agencies - Third Party P,0090171933,ALINA HOMECARE LTD,218.73,17/06/2019
Delivery Units,Adults and Health,Other Agencies - Third Party P,0090171939,ALINA HOMECARE LTD,529.19,17/06/2019
Delivery Units,Adults and Health,Other Agencies - Third Party P,0090171941,ALINA HOMECARE LTD,122.43,17/06/2019
Delivery Units,Adults and Health,Other Agencies - Third Party P,0090171942,ALINA HOMECARE LTD,454.77,17/06/2019
Delivery Units,Adults and Health,Other Agencies - Third Party P,0090171943,ALINA HOMECARE LTD,271.20,17/06/2019
Delivery Units,Adults and Health,Other Agencies - Third Party P,0090171944,ALINA HOMECARE LTD,113.69,17/06/2019
Delivery Units,Adults and Health,Other Agencies - Third Party P,0090171945,ALINA HOMECARE LTD,406.77,17/06/2019
Delivery Units,Adults and Health,Other Agencies - Third Party P,0090171946,ALINA HOMECARE LTD,332.38,17/06/2019
Delivery Units,Adults and Health,Other Agencies - Third Party P,0090171947,ALINA HOMECARE LTD,122.50,17/06/2019
Delivery Units,Adults and Health,Other Agencies - Third Party P,0090171948,ALINA HOMECARE LTD,166.17,17/06/2019
Delivery Units,Adults and Health,Other Agencies - Third Party P,0090171949,ALINA HOMECARE LTD,87.47,17/06/2019
Delivery Units,Adults and Health,Other Agencies - Third Party P,0090171950,ALINA HOMECARE LTD,91.84,17/06/2019
Delivery Units,Adults and Health,Other Agencies - Third Party P,0090171951,ALINA HOMECARE LTD,161.80,17/06/2019
Delivery Units,Adults and Health,Other Agencies - Third Party P,0090171952,ALINA HOMECARE LTD,660.43,17/06/2019
Delivery Units,Adults and Health,Other Agencies - Third Party P,0090171953,ALINA HOMECARE LTD,170.56,17/06/2019
Delivery Units,Adults and Health,Other Agencies - Third Party P,0090171954,ALINA HOMECARE LTD,96.21,17/06/2019
Delivery Units,Adults and Health,Other Agencies - Third Party P,0090171955,ALINA HOMECARE LTD,275.52,17/06/2019
Delivery Units,Adults and Health,Other Agencies - Third Party P,0090171956,ALINA HOMECARE LTD,262.44,17/06/2019
Delivery Units,Adults and Health,Other Agencies - Third Party P,0090171957,ALINA HOMECARE LTD,275.59,17/06/2019
Delivery Units,Adults and Health,Other Agencies - Third Party P,0090171958,ALINA HOMECARE LTD,358.65,17/06/2019
Delivery Units,Adults and Health,Other Agencies - Third Party P,0090171959,ALINA HOMECARE LTD,288.65,17/06/2019
Delivery Units,Adults and Health,Other Agencies - Third Party P,0090171960,ALINA HOMECARE LTD,153.09,17/06/2019
Delivery Units,Adults and Health,Other Agencies - Third Party P,0090171961,ALINA HOMECARE LTD,244.93,17/06/2019
Delivery Units,Adults and Health,Other Agencies - Third Party P,0090171963,ALINA HOMECARE LTD,183.68,17/06/2019
Delivery Units,Adults and Health,Other Agencies - Third Party P,0090171964,ALINA HOMECARE LTD,336.77,17/06/2019
Delivery Units,Adults and Health,Other Agencies - Third Party P,0090171965,ALINA HOMECARE LTD,314.86,17/06/2019
Delivery Units,Adults and Health,Other Agencies - Third Party P,0090171966,ALINA HOMECARE LTD,122.43,17/06/2019
Delivery Units,Adults and Health,Other Agencies - Third Party P,0090171968,ALINA HOMECARE LTD,275.59,17/06/2019
Delivery Units,Adults and Health,Other Agencies - Third Party P,0090171971,ALINA HOMECARE LTD,153.09,17/06/2019
Delivery Units,Adults and Health,Other Agencies - Third Party P,0090171972,ALINA HOMECARE LTD,26.25,17/06/2019
Delivery Units,Adults and Health,Other Agencies - Third Party P,0090171973,ALINA HOMECARE LTD,109.36,17/06/2019
Delivery Units,Adults and Health,Other Agencies - Third Party P,0090171975,ALINA HOMECARE LTD,122.50,17/06/2019
Delivery Units,Adults and Health,Other Agencies - Third Party P,0090171977,ALINA HOMECARE LTD,328.02,17/06/2019
Delivery Units,Adults and Health,Other Agencies - Third Party P,0090171978,ALINA HOMECARE LTD,91.84,17/06/2019
Delivery Units,Adults and Health,Other Agencies - Third Party P,0090171982,ALINA HOMECARE LTD,122.43,17/06/2019
Delivery Units,Adults and Health,Other Agencies - Third Party P,0090171983,ALINA HOMECARE LTD,144.31,17/06/2019
Delivery Units,Adults and Health,Other Agencies - Third Party P,0090171984,ALINA HOMECARE LTD,275.59,17/06/2019
Delivery Units,Adults and Health,Other Agencies - Third Party P,0090171987,ALINA HOMECARE LTD,214.34,17/06/2019
Delivery Units,Adults and Health,Other Agencies - Third Party P,0090171988,ALINA HOMECARE LTD,214.34,17/06/2019
Delivery Units,Adults and Health,Other Agencies - Third Party P,0090171989,ALINA HOMECARE LTD,244.86,17/06/2019
Delivery Units,Adults and Health,Other Agencies - Third Party P,0090175104,ALINA HOMECARE LTD,192.42,21/06/2019
Delivery Units,Adults and Health,Other Agencies - Third Party P,0090175105,ALINA HOMECARE LTD,13.12,21/06/2019
Delivery Units,Adults and Health,Other Agencies - Third Party P,0090175106,ALINA HOMECARE LTD,56.84,21/06/2019
Delivery Units,Adults and Health,Other Agencies - Third Party P,0090175107,ALINA HOMECARE LTD,201.17,21/06/2019
Delivery Units,Adults and Health,Other Agencies - Third Party P,0090175108,ALINA HOMECARE LTD,30.61,21/06/2019
Delivery Units,Adults and Health,Other Agencies - Third Party P,0090175109,ALINA HOMECARE LTD,236.17,21/06/2019
Delivery Units,Adults and Health,Other Agencies - Third Party P,0090175112,ALINA HOMECARE LTD,170.56,21/06/2019
Delivery Units,Adults and Health,Other Agencies - Third Party P,0090175113,ALINA HOMECARE LTD,153.09,21/06/2019
Delivery Units,Adults and Health,Other Agencies - Third Party P,0090175116,ALINA HOMECARE LTD,153.09,21/06/2019
Delivery Units,Adults and Health,Other Agencies - Third Party P,0090175117,ALINA HOMECARE LTD,21.87,21/06/2019
Delivery Units,Adults and Health,Other Agencies - Third Party P,0090175119,ALINA HOMECARE LTD,192.45,21/06/2019
Delivery Units,Adults and Health,Other Agencies - Third Party P,0090175120,ALINA HOMECARE LTD,65.60,21/06/2019
Delivery Units,Adults and Health,Other Agencies - Third Party P,0090175121,ALINA HOMECARE LTD,65.60,21/06/2019
Delivery Units,Adults and Health,Other Agencies - Third Party P,0090175124,ALINA HOMECARE LTD,244.86,21/06/2019
Delivery Units,Adults and Health,Other Agencies - Third Party P,0090175125,ALINA HOMECARE LTD,113.69,21/06/2019
Delivery Units,Adults and Health,Other Agencies - Third Party P,0090175126,ALINA HOMECARE LTD,26.25,21/06/2019
Delivery Units,Adults and Health,Other Agencies - Third Party P,0090175127,ALINA HOMECARE LTD,113.73,21/06/2019
Delivery Units,Adults and Health,Other Agencies - Third Party P,0090175129,ALINA HOMECARE LTD,201.21,21/06/2019
Delivery Units,Adults and Health,Other Agencies - Third Party P,0090175130,ALINA HOMECARE LTD,122.50,21/06/2019
Delivery Units,Adults and Health,Other Agencies - Third Party P,0090175132,ALINA HOMECARE LTD,91.84,21/06/2019
Delivery Units,Adults and Health,Other Agencies - Third Party P,0090175133,ALINA HOMECARE LTD,122.48,21/06/2019
Delivery Units,Adults and Health,Other Agencies - Third Party P,0090175134,ALINA HOMECARE LTD,65.61,21/06/2019
Delivery Units,Adults and Health,Other Agencies - Third Party P,0090175135,ALINA HOMECARE LTD,83.09,21/06/2019
Delivery Units,Adults and Health,Other Agencies - Third Party P,0090175139,ALINA HOMECARE LTD,301.80,21/06/2019
Delivery Units,Adults and Health,Other Agencies - Third Party P,0090175140,ALINA HOMECARE LTD,148.70,21/06/2019
Delivery Units,Adults and Health,Other Agencies - Third Party P,0090175145,ALINA HOMECARE LTD,507.34,21/06/2019
Delivery Units,Adults and Health,Other Agencies - Third Party P,0090175146,ALINA HOMECARE LTD,122.43,21/06/2019
Delivery Units,Adults and Health,Other Agencies - Third Party P,0090175147,ALINA HOMECARE LTD,424.17,21/06/2019
Delivery Units,Adults and Health,Other Agencies - Third Party P,0090175148,ALINA HOMECARE LTD,118.06,21/06/2019
Delivery Units,Adults and Health,Other Agencies - Third Party P,0090175149,ALINA HOMECARE LTD,122.50,21/06/2019
Delivery Units,Adults and Health,Other Agencies - Third Party P,0090175150,ALINA HOMECARE LTD,91.84,21/06/2019
Delivery Units,Adults and Health,Other Agencies - Third Party P,0090175152,ALINA HOMECARE LTD,91.84,21/06/2019
Delivery Units,Adults and Health,Other Agencies - Third Party P,0090175153,ALINA HOMECARE LTD,87.45,21/06/2019
Delivery Units,Adults and Health,Other Agencies - Third Party P,0090175154,ALINA HOMECARE LTD,656.06,21/06/2019
Delivery Units,Adults and Health,Other Agencies - Third Party P,0090175155,ALINA HOMECARE LTD,183.68,21/06/2019
Delivery Units,Adults and Health,Other Agencies - Third Party P,0090175156,ALINA HOMECARE LTD,91.83,21/06/2019
Delivery Units,Adults and Health,Other Agencies - Third Party P,0090175157,ALINA HOMECARE LTD,275.52,21/06/2019
Delivery Units,Adults and Health,Other Agencies - Third Party P,0090175158,ALINA HOMECARE LTD,122.43,21/06/2019
Delivery Units,Adults and Health,Other Agencies - Third Party P,0090175159,ALINA HOMECARE LTD,78.72,21/06/2019
Delivery Units,Adults and Health,Other Agencies - Third Party P,0090175160,ALINA HOMECARE LTD,275.59,21/06/2019
Delivery Units,Adults and Health,Other Agencies - Third Party P,0090175161,ALINA HOMECARE LTD,358.65,21/06/2019
Delivery Units,Adults and Health,Other Agencies - Third Party P,0090175162,ALINA HOMECARE LTD,153.09,21/06/2019
Delivery Units,Adults and Health,Other Agencies - Third Party P,0090175164,ALINA HOMECARE LTD,336.77,21/06/2019
Delivery Units,Adults and Health,Other Agencies - Third Party P,0090175165,ALINA HOMECARE LTD,314.86,21/06/2019
Delivery Units,Adults and Health,Other Agencies - Third Party P,0090175166,ALINA HOMECARE LTD,122.43,21/06/2019
Delivery Units,Adults and Health,Other Agencies - Third Party P,0090175167,ALINA HOMECARE LTD,153.09,21/06/2019
Delivery Units,Adults and Health,Other Agencies - Third Party P,0090175168,ALINA HOMECARE LTD,275.59,21/06/2019
Delivery Units,Adults and Health,Other Agencies - Third Party P,0090175170,ALINA HOMECARE LTD,275.59,21/06/2019
Delivery Units,Adults and Health,Other Agencies - Third Party P,0090175171,ALINA HOMECARE LTD,275.59,21/06/2019
Delivery Units,Adults and Health,Other Agencies - Third Party P,0090175174,ALINA HOMECARE LTD,153.09,21/06/2019
Delivery Units,Adults and Health,Other Agencies - Third Party P,0090175175,ALINA HOMECARE LTD,183.68,21/06/2019
Delivery Units,Adults and Health,Other Agencies - Third Party P,0090175178,ALINA HOMECARE LTD,328.02,21/06/2019
Delivery Units,Adults and Health,Other Agencies - Third Party P,0090175179,ALINA HOMECARE LTD,310.57,21/06/2019
Delivery Units,Adults and Health,Other Agencies - Third Party P,0090175180,ALINA HOMECARE LTD,367.36,21/06/2019
Delivery Units,Adults and Health,Other Agencies - Third Party P,0090175181,ALINA HOMECARE LTD,214.34,21/06/2019
Delivery Units,Adults and Health,Other Agencies - Third Party P,0090175183,ALINA HOMECARE LTD,214.34,21/06/2019
Delivery Units,Adults and Health,Other Agencies - Third Party P,0090175185,ALINA HOMECARE LTD,218.73,21/06/2019
Delivery Units,Adults and Health,Other Agencies - Third Party P,0090175188,ALINA HOMECARE LTD,122.43,21/06/2019
Delivery Units,Adults and Health,Other Agencies - Third Party P,0090175189,ALINA HOMECARE LTD,144.31,21/06/2019
Delivery Units,Adults and Health,Other Agencies - Third Party P,0090175190,ALINA HOMECARE LTD,275.59,21/06/2019
Delivery Units,Adults and Health,Other Agencies - Third Party P,0090175192,ALINA HOMECARE LTD,275.59,21/06/2019
Delivery Units,Adults and Health,Other Agencies - Third Party P,0090175194,ALINA HOMECARE LTD,214.34,21/06/2019
Delivery Units,Adults and Health,Other Agencies - Third Party P,0090175195,ALINA HOMECARE LTD,214.34,21/06/2019
Delivery Units,Adults and Health,Other Agencies - Third Party P,0090175196,ALINA HOMECARE LTD,341.16,21/06/2019
Delivery Units,Adults and Health,Other Agencies - Third Party P,0090175197,ALINA HOMECARE LTD,244.86,21/06/2019
Delivery Units,Adults and Health,Other Agencies - Third Party P,0090175198,ALINA HOMECARE LTD,354.26,21/06/2019
Delivery Units,Adults and Health,Other Agencies - Third Party P,0090176451,ANA HOMECARE LTD,63.70,25/06/2019
Delivery Units,Adults and Health,Other Agencies - Third Party P,0090170819,BARNET CARERS CENTRE,39.51,13/06/2019
Delivery Units,Adults and Health,Other Agencies - Third Party P,0090170820,BARNET CARERS CENTRE,27.34,13/06/2019
Delivery Units,Adults and Health,Other Agencies - Third Party P,0090170821,BARNET CARERS CENTRE,27.34,13/06/2019
Delivery Units,Adults and Health,Other Agencies - Third Party P,0090170822,BARNET CARERS CENTRE,27.34,13/06/2019
Delivery Units,Adults and Health,Other Agencies - Third Party P,0090170823,BARNET CARERS CENTRE,39.51,13/06/2019
Delivery Units,Adults and Health,Other Agencies - Third Party P,0090170824,BARNET CARERS CENTRE,27.34,13/06/2019
Delivery Units,Adults and Health,Other Agencies - Third Party P,0090170825,BARNET CARERS CENTRE,27.34,13/06/2019
Delivery Units,Adults and Health,Other Agencies - Third Party P,0090170826,BARNET CARERS CENTRE,27.34,13/06/2019
Delivery Units,Adults and Health,Other Agencies - Third Party P,0090170827,BARNET CARERS CENTRE,27.34,13/06/2019
Delivery Units,Adults and Health,Other Agencies - Third Party P,0090170828,BARNET CARERS CENTRE,39.51,13/06/2019
Delivery Units,Adults and Health,Other Agencies - Third Party P,0090175199,BARNET CARERS CENTRE,451.13,21/06/2019
Delivery Units,Adults and Health,Other Agencies - Third Party P,0090175201,BARNET CARERS CENTRE,27.34,21/06/2019
Delivery Units,Adults and Health,Other Agencies - Third Party P,0090175202,BARNET CARERS CENTRE,568.08,21/06/2019
Delivery Units,Adults and Health,Other Agencies - Third Party P,0090175204,BARNET CARERS CENTRE,584.78,21/06/2019
Delivery Units,Adults and Health,Other Agencies - Third Party P,0090170614,BLUEBIRD CARE (BARNET),280.00,12/06/2019
Delivery Units,Adults and Health,Other Agencies - Third Party P,0090170615,BLUEBIRD CARE (BARNET),967.50,12/06/2019
Delivery Units,Adults and Health,Other Agencies - Third Party P,0090170616,BLUEBIRD CARE (BARNET),"1,435.00",12/06/2019
Delivery Units,Adults and Health,Other Agencies - Third Party P,0090170617,BLUEBIRD CARE (BARNET),242.50,12/06/2019
Delivery Units,Adults and Health,Other Agencies - Third Party P,0090170619,BLUEBIRD CARE (BARNET),"2,155.00",12/06/2019
Delivery Units,Adults and Health,Other Agencies - Third Party P,0090170620,BLUEBIRD CARE (BARNET),952.50,12/06/2019
Delivery Units,Adults and Health,Other Agencies - Third Party P,0090170622,BLUEBIRD CARE (BARNET),682.50,12/06/2019
Delivery Units,Adults and Health,Other Agencies - Third Party P,0090170623,BLUEBIRD CARE (BARNET),75.00,12/06/2019
Delivery Units,Adults and Health,Other Agencies - Third Party P,0090170624,BLUEBIRD CARE (BARNET),"1,257.50",12/06/2019
Delivery Units,Adults and Health,Other Agencies - Third Party P,0090170625,BLUEBIRD CARE (BARNET),"1,562.50",12/06/2019
Delivery Units,Adults and Health,Other Agencies - Third Party P,0090170626,BLUEBIRD CARE (BARNET),"4,200.00",12/06/2019
Delivery Units,Adults and Health,Other Agencies - Third Party P,0090170627,BLUEBIRD CARE (BARNET),375.00,12/06/2019
Delivery Units,Adults and Health,Other Agencies - Third Party P,0090170628,BLUEBIRD CARE (BARNET),345.00,12/06/2019
Delivery Units,Adults and Health,Other Agencies - Third Party P,0090170629,BLUEBIRD CARE (BARNET),600.00,12/06/2019
Delivery Units,Adults and Health,Other Agencies - Third Party P,0090170630,BLUEBIRD CARE (BARNET),277.50,12/06/2019
Delivery Units,Adults and Health,Other Agencies - Third Party P,0090170632,BLUEBIRD CARE (BARNET),45.00,12/06/2019
Delivery Units,Adults and Health,Other Agencies - Third Party P,0090170633,BLUEBIRD CARE (BARNET),457.50,12/06/2019
Delivery Units,Adults and Health,Other Agencies - Third Party P,0090170639,BLUEBIRD CARE (BARNET),"2,465.00",12/06/2019
Delivery Units,Adults and Health,Other Agencies - Third Party P,0090170640,BLUEBIRD CARE (BARNET),645.00,12/06/2019
Delivery Units,Adults and Health,Other Agencies - Third Party P,0090170641,BLUEBIRD CARE (BARNET),322.50,12/06/2019
Delivery Units,Adults and Health,Other Agencies - Third Party P,0090170642,BLUEBIRD CARE (BARNET),"3,032.50",12/06/2019
Delivery Units,Adults and Health,Other Agencies - Third Party P,0090170643,BLUEBIRD CARE (BARNET),335.00,12/06/2019
Delivery Units,Adults and Health,Other Agencies - Third Party P,0090170644,BLUEBIRD CARE (BARNET),210.00,12/06/2019
Delivery Units,Adults and Health,Other Agencies - Third Party P,0090170646,BLUEBIRD CARE (BARNET),635.00,12/06/2019
Delivery Units,Adults and Health,Other Agencies - Third Party P,0090175988,BLUEBIRD CARE (BARNET),"2,800.00",24/06/2019
Delivery Units,Adults and Health,Other Agencies - Third Party P,0090175989,BLUEBIRD CARE (BARNET),"1,568.00",24/06/2019
Delivery Units,Adults and Health,Other Agencies - Third Party P,0090175992,BLUEBIRD CARE (BARNET),240.00,24/06/2019
Delivery Units,Adults and Health,Other Agencies - Third Party P,0090175994,BLUEBIRD CARE (BARNET),200.00,24/06/2019
Delivery Units,Adults and Health,Other Agencies - Third Party P,0090175995,BLUEBIRD CARE (BARNET),630.00,24/06/2019
Delivery Units,Adults and Health,Other Agencies - Third Party P,0090175996,BLUEBIRD CARE (BARNET),940.00,24/06/2019
Delivery Units,Adults and Health,Other Agencies - Third Party P,0090175997,BLUEBIRD CARE (BARNET),165.00,24/06/2019
Delivery Units,Adults and Health,Other Agencies - Third Party P,0090175999,BLUEBIRD CARE (BARNET),"1,405.00",24/06/2019
Delivery Units,Adults and Health,Other Agencies - Third Party P,0090176000,BLUEBIRD CARE (BARNET),525.00,24/06/2019
Delivery Units,Adults and Health,Other Agencies - Third Party P,0090176001,BLUEBIRD CARE (BARNET),475.00,24/06/2019
Delivery Units,Adults and Health,Other Agencies - Third Party P,0090176002,BLUEBIRD CARE (BARNET),705.00,24/06/2019
Delivery Units,Adults and Health,Other Agencies - Third Party P,0090176003,BLUEBIRD CARE (BARNET),"1,050.00",24/06/2019
Delivery Units,Adults and Health,Other Agencies - Third Party P,0090176004,BLUEBIRD CARE (BARNET),210.00,24/06/2019
Delivery Units,Adults and Health,Other Agencies - Third Party P,0090176005,BLUEBIRD CARE (BARNET),420.00,24/06/2019
Delivery Units,Adults and Health,Other Agencies - Third Party P,0090176006,BLUEBIRD CARE (BARNET),375.00,24/06/2019
Delivery Units,Adults and Health,Other Agencies - Third Party P,0090176007,BLUEBIRD CARE (BARNET),210.00,24/06/2019
Delivery Units,Adults and Health,Other Agencies - Third Party P,0090176008,BLUEBIRD CARE (BARNET),180.00,24/06/2019
Delivery Units,Adults and Health,Other Agencies - Third Party P,0090176010,BLUEBIRD CARE (BARNET),60.00,24/06/2019
Delivery Units,Adults and Health,Other Agencies - Third Party P,0090176011,BLUEBIRD CARE (BARNET),340.00,24/06/2019
Delivery Units,Adults and Health,Other Agencies - Third Party P,0090176015,BLUEBIRD CARE (BARNET),580.00,24/06/2019
Delivery Units,Adults and Health,Other Agencies - Third Party P,0090176016,BLUEBIRD CARE (BARNET),"1,810.00",24/06/2019
Delivery Units,Adults and Health,Other Agencies - Third Party P,0090176017,BLUEBIRD CARE (BARNET),420.00,24/06/2019
Delivery Units,Adults and Health,Other Agencies - Third Party P,0090176018,BLUEBIRD CARE (BARNET),135.00,24/06/2019
Delivery Units,Adults and Health,Other Agencies - Third Party P,0090176019,BLUEBIRD CARE (BARNET),"1,940.00",24/06/2019
Delivery Units,Adults and Health,Other Agencies - Third Party P,0090176020,BLUEBIRD CARE (BARNET),150.00,24/06/2019
Delivery Units,Adults and Health,Other Agencies - Third Party P,0090176022,BLUEBIRD CARE (BARNET),315.00,24/06/2019
Delivery Units,Adults and Health,Other Agencies - Third Party P,0090176023,BLUEBIRD CARE (BARNET),315.00,24/06/2019
Delivery Units,Adults and Health,Other Agencies - Third Party P,0090176024,BLUEBIRD CARE (BARNET),145.00,24/06/2019
Delivery Units,Adults and Health,Other Agencies - Third Party P,0090176025,BLUEBIRD CARE (BARNET),"2,042.50",24/06/2019
Delivery Units,Adults and Health,Other Agencies - Third Party P,0090172897,BMM CARE LTD,63.73,18/06/2019
Delivery Units,Adults and Health,Other Agencies - Third Party P,0090173253,BMM CARE LTD,230.14,21/06/2019
Delivery Units,Adults and Health,Other Agencies - Third Party P,0090173254,BMM CARE LTD,169.94,21/06/2019
Delivery Units,Adults and Health,Other Agencies - Third Party P,0090173255,BMM CARE LTD,51.59,21/06/2019
Delivery Units,Adults and Health,Other Agencies - Third Party P,0090173256,BMM CARE LTD,662.64,21/06/2019
Delivery Units,Adults and Health,Other Agencies - Third Party P,0090173259,BMM CARE LTD,242.28,21/06/2019
Delivery Units,Adults and Health,Other Agencies - Third Party P,0090173260,BMM CARE LTD,278.08,21/06/2019
Delivery Units,Adults and Health,Other Agencies - Third Party P,0090173261,BMM CARE LTD,423.90,21/06/2019
Delivery Units,Adults and Health,Other Agencies - Third Party P,0090173262,BMM CARE LTD,484.56,21/06/2019
Delivery Units,Adults and Health,Other Agencies - Third Party P,0090173263,BMM CARE LTD,143.92,21/06/2019
Delivery Units,Adults and Health,Other Agencies - Third Party P,0090173264,BMM CARE LTD,107.38,21/06/2019
Delivery Units,Adults and Health,Other Agencies - Third Party P,0090173265,BMM CARE LTD,95.38,21/06/2019
Delivery Units,Adults and Health,Other Agencies - Third Party P,0090173266,BMM CARE LTD,226.86,21/06/2019
Delivery Units,Adults and Health,Other Agencies - Third Party P,0090173268,BMM CARE LTD,157.77,21/06/2019
Delivery Units,Adults and Health,Other Agencies - Third Party P,0090173269,BMM CARE LTD,365.42,21/06/2019
Delivery Units,Adults and Health,Other Agencies - Third Party P,0090173270,BMM CARE LTD,261.43,21/06/2019
Delivery Units,Adults and Health,Other Agencies - Third Party P,0090173271,BMM CARE LTD,153.36,21/06/2019
Delivery Units,Adults and Health,Other Agencies - Third Party P,0090173272,BMM CARE LTD,281.85,21/06/2019
Delivery Units,Adults and Health,Other Agencies - Third Party P,0090173273,BMM CARE LTD,235.06,21/06/2019
Delivery Units,Adults and Health,Other Agencies - Third Party P,0090173274,BMM CARE LTD,274.04,21/06/2019
Delivery Units,Adults and Health,Other Agencies - Third Party P,0090173275,BMM CARE LTD,91.04,21/06/2019
Delivery Units,Adults and Health,Other Agencies - Third Party P,0090173276,BMM CARE LTD,267.36,21/06/2019
Delivery Units,Adults and Health,Other Agencies - Third Party P,0090173277,BMM CARE LTD,107.38,21/06/2019
Delivery Units,Adults and Health,Other Agencies - Third Party P,0090173278,BMM CARE LTD,50.40,21/06/2019
Delivery Units,Adults and Health,Other Agencies - Third Party P,0090173279,BMM CARE LTD,60.70,21/06/2019
Delivery Units,Adults and Health,Other Agencies - Third Party P,0090173280,BMM CARE LTD,60.70,21/06/2019
Delivery Units,Adults and Health,Other Agencies - Third Party P,0090173281,BMM CARE LTD,218.74,21/06/2019
Delivery Units,Adults and Health,Other Agencies - Third Party P,0090173282,BMM CARE LTD,78.90,21/06/2019
Delivery Units,Adults and Health,Other Agencies - Third Party P,0090173283,BMM CARE LTD,107.38,21/06/2019
Delivery Units,Adults and Health,Other Agencies - Third Party P,0090173286,BMM CARE LTD,635.80,21/06/2019
Delivery Units,Adults and Health,Other Agencies - Third Party P,0090173287,BMM CARE LTD,126.27,21/06/2019
Delivery Units,Adults and Health,Other Agencies - Third Party P,0090173289,BMM CARE LTD,124.62,21/06/2019
Delivery Units,Adults and Health,Other Agencies - Third Party P,0090173290,BMM CARE LTD,242.28,21/06/2019
Delivery Units,Adults and Health,Other Agencies - Third Party P,0090173291,BMM CARE LTD,182.08,21/06/2019
Delivery Units,Adults and Health,Other Agencies - Third Party P,0090173292,BMM CARE LTD,51.59,21/06/2019
Delivery Units,Adults and Health,Other Agencies - Third Party P,0090173293,BMM CARE LTD,623.10,21/06/2019
Delivery Units,Adults and Health,Other Agencies - Third Party P,0090173296,BMM CARE LTD,242.28,21/06/2019
Delivery Units,Adults and Health,Other Agencies - Third Party P,0090173297,BMM CARE LTD,278.08,21/06/2019
Delivery Units,Adults and Health,Other Agencies - Third Party P,0090173298,BMM CARE LTD,408.73,21/06/2019
Delivery Units,Adults and Health,Other Agencies - Third Party P,0090173299,BMM CARE LTD,448.56,21/06/2019
Delivery Units,Adults and Health,Other Agencies - Third Party P,0090173300,BMM CARE LTD,151.24,21/06/2019
Delivery Units,Adults and Health,Other Agencies - Third Party P,0090173301,BMM CARE LTD,107.38,21/06/2019
Delivery Units,Adults and Health,Other Agencies - Third Party P,0090173302,BMM CARE LTD,226.86,21/06/2019
Delivery Units,Adults and Health,Other Agencies - Third Party P,0090173304,BMM CARE LTD,365.42,21/06/2019
Delivery Units,Adults and Health,Other Agencies - Third Party P,0090173305,BMM CARE LTD,274.04,21/06/2019
Delivery Units,Adults and Health,Other Agencies - Third Party P,0090173306,BMM CARE LTD,151.24,21/06/2019
Delivery Units,Adults and Health,Other Agencies - Third Party P,0090173307,BMM CARE LTD,291.93,21/06/2019
Delivery Units,Adults and Health,Other Agencies - Third Party P,0090173308,BMM CARE LTD,235.06,21/06/2019
Delivery Units,Adults and Health,Other Agencies - Third Party P,0090173309,BMM CARE LTD,274.04,21/06/2019
Delivery Units,Adults and Health,Other Agencies - Third Party P,0090173310,BMM CARE LTD,220.73,21/06/2019
Delivery Units,Adults and Health,Other Agencies - Third Party P,0090173311,BMM CARE LTD,81.02,21/06/2019
Delivery Units,Adults and Health,Other Agencies - Third Party P,0090173312,BMM CARE LTD,10.08,21/06/2019
Delivery Units,Adults and Health,Other Agencies - Third Party P,0090173313,BMM CARE LTD,34.36,21/06/2019
Delivery Units,Adults and Health,Other Agencies - Third Party P,0090173314,BMM CARE LTD,91.04,21/06/2019
Delivery Units,Adults and Health,Other Agencies - Third Party P,0090173315,BMM CARE LTD,50.40,21/06/2019
Delivery Units,Adults and Health,Other Agencies - Third Party P,0090173316,BMM CARE LTD,60.70,21/06/2019
Delivery Units,Adults and Health,Other Agencies - Third Party P,0090173317,BMM CARE LTD,137.97,21/06/2019
Delivery Units,Adults and Health,Other Agencies - Third Party P,0090173319,BMM CARE LTD,126.27,21/06/2019
Delivery Units,Adults and Health,Other Agencies - Third Party P,0090173320,BMM CARE LTD,635.80,21/06/2019
Delivery Units,Adults and Health,Other Agencies - Third Party P,0090173322,BMM CARE LTD,78.90,21/06/2019
Delivery Units,Adults and Health,Other Agencies - Third Party P,0090173324,BMM CARE LTD,60.70,21/06/2019
Delivery Units,Adults and Health,Other Agencies - Third Party P,0090174164,BMM CARE LTD,242.28,21/06/2019
Delivery Units,Adults and Health,Other Agencies - Third Party P,0090174165,BMM CARE LTD,182.08,21/06/2019
Delivery Units,Adults and Health,Other Agencies - Third Party P,0090174166,BMM CARE LTD,51.59,21/06/2019
Delivery Units,Adults and Health,Other Agencies - Third Party P,0090174167,BMM CARE LTD,668.48,21/06/2019
Delivery Units,Adults and Health,Other Agencies - Third Party P,0090174170,BMM CARE LTD,242.28,21/06/2019
Delivery Units,Adults and Health,Other Agencies - Third Party P,0090174171,BMM CARE LTD,274.03,21/06/2019
Delivery Units,Adults and Health,Other Agencies - Third Party P,0090174172,BMM CARE LTD,423.90,21/06/2019
Delivery Units,Adults and Health,Other Agencies - Third Party P,0090174173,BMM CARE LTD,484.56,21/06/2019
Delivery Units,Adults and Health,Other Agencies - Third Party P,0090174174,BMM CARE LTD,143.92,21/06/2019
Delivery Units,Adults and Health,Other Agencies - Third Party P,0090174175,BMM CARE LTD,107.38,21/06/2019
Delivery Units,Adults and Health,Other Agencies - Third Party P,0090174176,BMM CARE LTD,226.86,21/06/2019
Delivery Units,Adults and Health,Other Agencies - Third Party P,0090174178,BMM CARE LTD,365.42,21/06/2019
Delivery Units,Adults and Health,Other Agencies - Third Party P,0090174179,BMM CARE LTD,274.04,21/06/2019
Delivery Units,Adults and Health,Other Agencies - Third Party P,0090174180,BMM CARE LTD,151.24,21/06/2019
Delivery Units,Adults and Health,Other Agencies - Third Party P,0090174181,BMM CARE LTD,274.04,21/06/2019
Delivery Units,Adults and Health,Other Agencies - Third Party P,0090174182,BMM CARE LTD,235.06,21/06/2019
Delivery Units,Adults and Health,Other Agencies - Third Party P,0090174183,BMM CARE LTD,274.04,21/06/2019
Delivery Units,Adults and Health,Other Agencies - Third Party P,0090174184,BMM CARE LTD,60.70,21/06/2019
Delivery Units,Adults and Health,Other Agencies - Third Party P,0090174185,BMM CARE LTD,78.90,21/06/2019
Delivery Units,Adults and Health,Other Agencies - Third Party P,0090174186,BMM CARE LTD,57.28,21/06/2019
Delivery Units,Adults and Health,Other Agencies - Third Party P,0090174189,BMM CARE LTD,89.50,21/06/2019
Delivery Units,Adults and Health,Other Agencies - Third Party P,0090174190,BMM CARE LTD,218.74,21/06/2019
Delivery Units,Adults and Health,Other Agencies - Third Party P,0090174191,BMM CARE LTD,126.27,21/06/2019
Delivery Units,Adults and Health,Other Agencies - Third Party P,0090174192,BMM CARE LTD,625.72,21/06/2019
Delivery Units,Adults and Health,Other Agencies - Third Party P,0090174193,BMM CARE LTD,10.08,21/06/2019
Delivery Units,Adults and Health,Other Agencies - Third Party P,0090174194,BMM CARE LTD,91.04,21/06/2019
Delivery Units,Adults and Health,Other Agencies - Third Party P,0090174195,BMM CARE LTD,50.40,21/06/2019
Delivery Units,Adults and Health,Other Agencies - Third Party P,0090174196,BMM CARE LTD,60.70,21/06/2019
Delivery Units,Adults and Health,Other Agencies - Third Party P,0090174197,BMM CARE LTD,170.25,21/06/2019
Delivery Units,Adults and Health,Other Agencies - Third Party P,0090176027,BMM CARE LTD,242.28,24/06/2019
Delivery Units,Adults and Health,Other Agencies - Third Party P,0090176028,BMM CARE LTD,182.08,24/06/2019
Delivery Units,Adults and Health,Other Agencies - Third Party P,0090176029,BMM CARE LTD,51.59,24/06/2019
Delivery Units,Adults and Health,Other Agencies - Third Party P,0090176030,BMM CARE LTD,658.40,24/06/2019
Delivery Units,Adults and Health,Other Agencies - Third Party P,0090176033,BMM CARE LTD,242.28,24/06/2019
Delivery Units,Adults and Health,Other Agencies - Third Party P,0090176034,BMM CARE LTD,278.08,24/06/2019
Delivery Units,Adults and Health,Other Agencies - Third Party P,0090176035,BMM CARE LTD,423.90,24/06/2019
Delivery Units,Adults and Health,Other Agencies - Third Party P,0090176036,BMM CARE LTD,474.48,24/06/2019
Delivery Units,Adults and Health,Other Agencies - Third Party P,0090176037,BMM CARE LTD,151.24,24/06/2019
Delivery Units,Adults and Health,Other Agencies - Third Party P,0090176038,BMM CARE LTD,107.38,24/06/2019
Delivery Units,Adults and Health,Other Agencies - Third Party P,0090176039,BMM CARE LTD,226.86,24/06/2019
Delivery Units,Adults and Health,Other Agencies - Third Party P,0090176040,BMM CARE LTD,151.49,24/06/2019
Delivery Units,Adults and Health,Other Agencies - Third Party P,0090176042,BMM CARE LTD,274.04,24/06/2019
Delivery Units,Adults and Health,Other Agencies - Third Party P,0090176043,BMM CARE LTD,151.24,24/06/2019
Delivery Units,Adults and Health,Other Agencies - Third Party P,0090176044,BMM CARE LTD,291.93,24/06/2019
Delivery Units,Adults and Health,Other Agencies - Third Party P,0090176045,BMM CARE LTD,235.06,24/06/2019
Delivery Units,Adults and Health,Other Agencies - Third Party P,0090176046,BMM CARE LTD,274.04,24/06/2019
Delivery Units,Adults and Health,Other Agencies - Third Party P,0090176047,BMM CARE LTD,365.42,24/06/2019
Delivery Units,Adults and Health,Other Agencies - Third Party P,0090176048,BMM CARE LTD,177.68,24/06/2019
Delivery Units,Adults and Health,Other Agencies - Third Party P,0090176049,BMM CARE LTD,91.04,24/06/2019
Delivery Units,Adults and Health,Other Agencies - Third Party P,0090176050,BMM CARE LTD,50.40,24/06/2019
Delivery Units,Adults and Health,Other Agencies - Third Party P,0090176051,BMM CARE LTD,36.42,24/06/2019
Delivery Units,Adults and Health,Other Agencies - Third Party P,0090176052,BMM CARE LTD,236.94,24/06/2019
Delivery Units,Adults and Health,Other Agencies - Third Party P,0090176053,BMM CARE LTD,60.70,24/06/2019
Delivery Units,Adults and Health,Other Agencies - Third Party P,0090176054,BMM CARE LTD,240.89,24/06/2019
Delivery Units,Adults and Health,Other Agencies - Third Party P,0090176055,BMM CARE LTD,78.90,24/06/2019
Delivery Units,Adults and Health,Other Agencies - Third Party P,0090176058,BMM CARE LTD,635.80,24/06/2019
Delivery Units,Adults and Health,Other Agencies - Third Party P,0090176059,BMM CARE LTD,126.27,24/06/2019
Delivery Units,Adults and Health,Other Agencies - Third Party P,0090176061,BMM CARE LTD,87.02,24/06/2019
Delivery Units,Adults and Health,Other Agencies - Third Party P,0090176062,BMM CARE LTD,390.96,24/06/2019
Delivery Units,Adults and Health,Other Agencies - Third Party P,0090176063,BMM CARE LTD,10.08,24/06/2019
Delivery Units,Adults and Health,Other Agencies - Third Party P,0090176064,BMM CARE LTD,75.62,24/06/2019
Delivery Units,Adults and Health,Other Agencies - Third Party P,0090169684,CAPITAL HOMECARE (UK) LIMITED,924.00,04/06/2019
Delivery Units,Adults and Health,Other Agencies - Third Party P,0090169685,CAPITAL HOMECARE (UK) LIMITED,982.00,04/06/2019
Delivery Units,Adults and Health,Other Agencies - Third Party P,0090169686,CAPITAL HOMECARE (UK) LIMITED,"1,078.00",04/06/2019
Delivery Units,Adults and Health,Other Agencies - Third Party P,0090169693,CAPITAL HOMECARE (UK) LIMITED,676.00,04/06/2019
Delivery Units,Adults and Health,Other Agencies - Third Party P,0090168682,CAREWATCH (BARNET),214.75,03/06/2019
Delivery Units,Adults and Health,Other Agencies - Third Party P,0090168683,CAREWATCH (BARNET),597.04,03/06/2019
Delivery Units,Adults and Health,Other Agencies - Third Party P,0090168684,CAREWATCH (BARNET),90.23,03/06/2019
Delivery Units,Adults and Health,Other Agencies - Third Party P,0090168685,CAREWATCH (BARNET),34.37,03/06/2019
Delivery Units,Adults and Health,Other Agencies - Third Party P,0090168686,CAREWATCH (BARNET),55.84,03/06/2019
Delivery Units,Adults and Health,Other Agencies - Third Party P,0090168687,CAREWATCH (BARNET),201.90,03/06/2019
Delivery Units,Adults and Health,Other Agencies - Third Party P,0090168688,CAREWATCH (BARNET),128.89,03/06/2019
Delivery Units,Adults and Health,Other Agencies - Third Party P,0090168689,CAREWATCH (BARNET),549.84,03/06/2019
Delivery Units,Adults and Health,Other Agencies - Third Party P,0090168691,CAREWATCH (BARNET),120.26,03/06/2019
Delivery Units,Adults and Health,Other Agencies - Third Party P,0090168692,CAREWATCH (BARNET),227.64,03/06/2019
Delivery Units,Adults and Health,Other Agencies - Third Party P,0090168693,CAREWATCH (BARNET),193.30,03/06/2019
